Transaction Number,Service - Fund ,Service  - Function ,Service - Cost Centre,Expense Type ,Expense Description,Supplier Name,Supplier Post Code (first 4 digits),Payment Date,Amount �
30425233,Property Service Charged Properties,Property,Service Charged - Kendrick Close,Premises Costs,Maintenance - Grounds,1ST IMPRESSIONS SIGNS & GRAPHICS LTD,SN1 ,27/06/2022,"2,495.00"
30424233,Property Service Charged Properties,Property,Service Charged - Brindley Close,Premises Costs,Maintenance - Grounds,1ST IMPRESSIONS SIGNS & GRAPHICS LTD,SN1 ,27/06/2022,"2,520.00"
29854233,Physical Support,Adults,Physical Support 18 - 64,3rd Party Payments,Personal Budget - Domiciliary care,247 HOME CARE LTD,SN5 ,24/06/2022,"1,140.18"
27751236,Physical Support,Adults,Physical Support 18 - 64,3rd Party Payments,Personal Budget - Domiciliary care,247 HOME CARE LTD,SN5 ,17/06/2022,"1,140.18"
29854233,Physical Support,Adults,Physical Support 18 - 64,3rd Party Payments,Personal Budget - Domiciliary care,247 HOME CARE LTD,SN5 ,24/06/2022,-3.8
26453233,Physical Support,Adults,Physical Support 18 - 64,3rd Party Payments,Personal Budget - Domiciliary care,247 HOME CARE LTD,SN5 ,10/06/2022,-3.8
27751236,Physical Support,Adults,Physical Support 18 - 64,3rd Party Payments,Personal Budget - Domiciliary care,247 HOME CARE LTD,SN5 ,17/06/2022,-3.8
25530237,Physical Support,Adults,Physical Support 18 - 64,3rd Party Payments,Personal Budget - Domiciliary care,247 HOME CARE LTD,SN5 ,01/06/2022,-3.8
25530237,Physical Support,Adults,Physical Support 18 - 64,3rd Party Payments,Personal Budget - Domiciliary care,247 HOME CARE LTD,SN5 ,01/06/2022,"1,140.18"
26453233,Physical Support,Adults,Physical Support 18 - 64,3rd Party Payments,Personal Budget - Domiciliary care,247 HOME CARE LTD,SN5 ,10/06/2022,"1,302.46"
26087233,School Transport,Inclusion and Achievement,Special Educational Needs Transport,Transport Costs,Home to School Transport,4K TRAVEL,SN2 ,06/06/2022,"-2,483.33"
26103233,School Transport,Inclusion and Achievement,Special Educational Needs Transport,Employees,Temporary / Agency - by Accounts Payable,4K TRAVEL,SN2 ,06/06/2022,950
26102233,School Transport,Inclusion and Achievement,Special Educational Needs Transport,Transport Costs,Home to School Transport,4K TRAVEL,SN2 ,06/06/2022,"4,015.33"
26104233,School Transport,Inclusion and Achievement,Special Educational Needs Transport,Transport Costs,Home to School Transport,4K TRAVEL,SN2 ,06/06/2022,"2,483.33"
28599233,Highways & Transport,Highways & Transport,Traffic Signalling,Employees,Temporary / Agency - by Accounts Payable,4WAY CONSULTING LTD,SK4 ,17/06/2022,547.5
28596233,Highways & Transport,Highways & Transport,Traffic Signalling,Employees,Temporary / Agency - by Accounts Payable,4WAY CONSULTING LTD,SK4 ,17/06/2022,908.85
28598233,Highways Schemes,Strategic Planning and Highways,Traffic Signals Maintenance,Capital,Contractor Payments,4WAY CONSULTING LTD,SK4 ,17/06/2022,777.85
26670233,Sheltered Accomodation,Special Services,Sheltered Housing Management General,Employees,Temporary / Agency - by Accounts Payable,A PLUS SAFETY & TRAINING SERVICES LTD,SN3 ,08/06/2022,630
30043243,Homelessness and Travellers,Housing Services,Leased Private Managed Accommodation,Transfer Payments,Payment of Costs,REDACTED PERSONAL DATA,SN3 ,24/06/2022,800
30051234,Homelessness and Travellers,Housing Services,Leased Private Managed Accommodation,Transfer Payments,Payment of Costs,REDACTED PERSONAL DATA,SN3 ,24/06/2022,800
26501233,Sheltered Accomodation,Special Services,Herbert Harvey Court,Premises Costs,Contract Cleaning,AAFD SERVICES LTD,SO14,08/06/2022,75
26501233,Disabled Children,"Children, Families and Community Health Services",Salt Way Centre Running Costs,Premises Costs,Contract Cleaning,AAFD SERVICES LTD,SO14,08/06/2022,250
26501233,Sheltered Accomodation,Special Services,Elsie Hazell Court,Premises Costs,Contract Cleaning,AAFD SERVICES LTD,SO14,08/06/2022,75
26501233,Sheltered Accomodation,Special Services,Mountbatten House,Premises Costs,Contract Cleaning,AAFD SERVICES LTD,SO14,08/06/2022,100
26501233,Property Estates,Property,Childrens Outreach,Premises Costs,Contract Cleaning,AAFD SERVICES LTD,SO14,08/06/2022,250
26501233,Sheltered Accomodation,Special Services,Gardner House,Premises Costs,Contract Cleaning,AAFD SERVICES LTD,SO14,08/06/2022,75
30780233,Property & Assets,Property & Assets,General Enhancement Works Corporate Buildings,Capital,Contractor Payments,ABBEY ELECTRICAL (SWINDON) LTD T/A ABBEY ELECTRICAL UK,SN6 ,29/06/2022,"1,104.44"
27231233,Early Years Block,DSG Skills and Attainment,Free Nursery Education Commissioning - three & four  year olds,3rd Party Payments,Contracts - Child Care,ABBEY MEADS COMMUNITY PRIMARY SCHOOL,SN25,15/06/2022,"11,273.04"
28338238,High Needs Block,DSG Skills and Attainment,SEN Resourcing Assessment Panel,3rd Party Payments,Top up funding - Academies and Free Schools Pre 16,ABBEY MEADS COMMUNITY PRIMARY SCHOOL,SN25,15/06/2022,"7,558.08"
25393234,Physical Support,Adults,Physical Support 18 - 64,3rd Party Payments,Personal Budget - Domiciliary care,ABICARE SERVICES LTD,BS32,01/06/2022,571.78
27750241,Physical Support,Adults,Physical Support 18 - 64,3rd Party Payments,Personal Budget - Domiciliary care,ABICARE SERVICES LTD,BS32,15/06/2022,571.78
26697233,Physical Support,Adults,Physical Support 18 - 64,3rd Party Payments,Personal Budget - Domiciliary care,ABICARE SERVICES LTD,BS32,08/06/2022,622.18
31011244,Physical Support,Adults,Physical Support 18 - 64,3rd Party Payments,Personal Budget - Domiciliary care,ABICARE SERVICES LTD,BS32,29/06/2022,571.78
29849234,Physical Support,Adults,Physical Support 18 - 64,3rd Party Payments,Personal Budget - Domiciliary care,ABICARE SERVICES LTD,BS32,22/06/2022,571.78
25393236,Physical Support,Adults,Physical Support 18 - 64,3rd Party Payments,Personal Budget - Domiciliary care,ABICARE SERVICES LTD (LIVE IN),SP2 ,01/06/2022,988.68
31011249,Mental Health,Adults,Mental Health 65 and over,3rd Party Payments,Personal Budget - Domiciliary care,ABICARE SERVICES LTD (LIVE IN),SP2 ,29/06/2022,"1,106.00"
25393238,Mental Health,Adults,Mental Health 65 and over,3rd Party Payments,Personal Budget - Domiciliary care,ABICARE SERVICES LTD (LIVE IN),SP2 ,01/06/2022,"1,106.00"
25393237,Memory & Cognition,Adults,Support for Memory and Cognition 65 and over,3rd Party Payments,Personal Budget - Domiciliary care,ABICARE SERVICES LTD (LIVE IN),SP2 ,01/06/2022,"1,106.00"
27751234,Memory & Cognition,Adults,Support for Memory and Cognition 65 and over,3rd Party Payments,Personal Budget - Domiciliary care,ABICARE SERVICES LTD (LIVE IN),SP2 ,15/06/2022,"1,106.00"
31011246,Mental Health,Adults,Mental Health 65 and over,3rd Party Payments,Personal Budget - Domiciliary care,ABICARE SERVICES LTD (LIVE IN),SP2 ,29/06/2022,988.68
29853233,Memory & Cognition,Adults,Support for Memory and Cognition 65 and over,3rd Party Payments,Personal Budget - Domiciliary care,ABICARE SERVICES LTD (LIVE IN),SP2 ,22/06/2022,"1,106.00"
26698234,Physical Support,Adults,Physical Support 18 - 64,3rd Party Payments,Personal Budget - Domiciliary care,ABICARE SERVICES LTD (LIVE IN),SP2 ,08/06/2022,988.68
27751233,Physical Support,Adults,Physical Support 18 - 64,3rd Party Payments,Personal Budget - Domiciliary care,ABICARE SERVICES LTD (LIVE IN),SP2 ,15/06/2022,988.68
29851233,Mental Health,Adults,Mental Health 65 and over,3rd Party Payments,Personal Budget - Domiciliary care,ABICARE SERVICES LTD (LIVE IN),SP2 ,22/06/2022,988.68
26700233,Mental Health,Adults,Mental Health 65 and over,3rd Party Payments,Personal Budget - Domiciliary care,ABICARE SERVICES LTD (LIVE IN),SP2 ,08/06/2022,"1,106.00"
25393235,Mental Health,Adults,Mental Health 65 and over,3rd Party Payments,Personal Budget - Domiciliary care,ABICARE SERVICES LTD (LIVE IN),SP2 ,01/06/2022,988.68
29852233,Physical Support,Adults,Physical Support 18 - 64,3rd Party Payments,Personal Budget - Domiciliary care,ABICARE SERVICES LTD (LIVE IN),SP2 ,22/06/2022,988.68
26698235,Mental Health,Adults,Mental Health 65 and over,3rd Party Payments,Personal Budget - Domiciliary care,ABICARE SERVICES LTD (LIVE IN),SP2 ,08/06/2022,988.68
27750243,Mental Health,Adults,Mental Health 65 and over,3rd Party Payments,Personal Budget - Domiciliary care,ABICARE SERVICES LTD (LIVE IN),SP2 ,15/06/2022,988.68
31011248,Memory & Cognition,Adults,Support for Memory and Cognition 65 and over,3rd Party Payments,Personal Budget - Domiciliary care,ABICARE SERVICES LTD (LIVE IN),SP2 ,29/06/2022,"1,106.00"
26699233,Memory & Cognition,Adults,Support for Memory and Cognition 65 and over,3rd Party Payments,Personal Budget - Domiciliary care,ABICARE SERVICES LTD (LIVE IN),SP2 ,08/06/2022,"1,106.00"
31011247,Physical Support,Adults,Physical Support 18 - 64,3rd Party Payments,Personal Budget - Domiciliary care,ABICARE SERVICES LTD (LIVE IN),SP2 ,29/06/2022,988.68
27751235,Mental Health,Adults,Mental Health 65 and over,3rd Party Payments,Personal Budget - Domiciliary care,ABICARE SERVICES LTD (LIVE IN),SP2 ,15/06/2022,"1,106.00"
29853234,Mental Health,Adults,Mental Health 65 and over,3rd Party Payments,Personal Budget - Domiciliary care,ABICARE SERVICES LTD (LIVE IN),SP2 ,22/06/2022,"1,106.00"
26003233,Streetsmart,Streetsmart,Waterside Fleet Hires,Transport Costs,Vehicle Hire / Contract,ACCESS HIRE NATIONWIDE,WF6 ,01/06/2022,"1,306.43"
26859233,Highways Inspections & Maintenance,Highway Operations and Car Parking,Streetlighting,Transport Costs,Fleet Management Recharge,ACCESS HIRE NATIONWIDE,WF6 ,08/06/2022,568.2
26001233,Streetsmart,Streetsmart,Waterside Fleet Hires,Transport Costs,Vehicle Hire / Contract,ACCESS HIRE NATIONWIDE,WF6 ,01/06/2022,847.86
26002233,Streetsmart,Streetsmart,Waterside Fleet Hires,Transport Costs,Vehicle Hire / Contract,ACCESS HIRE NATIONWIDE,WF6 ,01/06/2022,"1,448.14"
28869350,Physical Support,Adults,Physical Support 18 - 64,3rd Party Payments,Residential Care,ACCOMPLISH,B45 ,20/06/2022,"5,817.12"
28869350,Physical Support,Adults,Physical Support 18 - 64,Income,Client Contribution - Residential,ACCOMPLISH,B45 ,20/06/2022,-414.2
26899233,Customer Strategy & Operations,"People, Culture and Organisational Resilience",Registrar of Births etc.,Supplies and Services,Materials,ACORN PRESS SWINDON LTD,SN5 ,08/06/2022,526
25897234,Social Care,"Children, Families and Community Health Services",External Placements,3rd Party Payments,Independent Fostering Agency Placements,ACTION FOR CHILDREN,WD18,01/06/2022,"3,068.70"
25903233,Social Care,"Children, Families and Community Health Services",External Placements,3rd Party Payments,Independent Fostering Agency Placements,ACTION FOR CHILDREN,WD18,01/06/2022,"3,660.17"
25904233,Social Care,"Children, Families and Community Health Services",External Placements,3rd Party Payments,Independent Fostering Agency Placements,ACTION FOR CHILDREN,WD18,01/06/2022,"3,542.10"
25901233,Social Care,"Children, Families and Community Health Services",External Placements,3rd Party Payments,Independent Fostering Agency Placements,ACTION FOR CHILDREN,WD18,01/06/2022,"3,175.33"
25898233,Social Care,"Children, Families and Community Health Services",External Placements,3rd Party Payments,Independent Fostering Agency Placements,ACTION FOR CHILDREN,WD18,01/06/2022,"3,170.99"
25900233,Social Care,"Children, Families and Community Health Services",External Placements,3rd Party Payments,Independent Fostering Agency Placements,ACTION FOR CHILDREN,WD18,01/06/2022,"3,072.90"
25899233,Social Care,"Children, Families and Community Health Services",External Placements,3rd Party Payments,Independent Fostering Agency Placements,ACTION FOR CHILDREN,WD18,01/06/2022,"3,175.33"
25905233,Social Care,"Children, Families and Community Health Services",External Placements,3rd Party Payments,Independent Fostering Agency Placements,ACTION FOR CHILDREN,WD18,01/06/2022,"3,660.17"
25897233,Social Care,"Children, Families and Community Health Services",External Placements,3rd Party Payments,Independent Fostering Agency Placements,ACTION FOR CHILDREN,WD18,01/06/2022,"3,170.99"
25902233,Social Care,"Children, Families and Community Health Services",External Placements,3rd Party Payments,Independent Fostering Agency Placements,ACTION FOR CHILDREN,WD18,01/06/2022,"3,542.10"
28343241,High Needs Block,DSG Skills and Attainment,SEN Resourcing Assessment Panel,3rd Party Payments,Top up funding - Academies and Free Schools Pre 16,ACTIVATE LEARNING EDUCATION TRUST,OX1 ,15/06/2022,570.42
28352233,High Needs Block,DSG Skills and Attainment,SEN Resourcing Assessment Panel,3rd Party Payments,Top up funding - Academies and Free Schools Post 16,ACTIVATE LEARNING EDUCATION TRUST,OX1 ,15/06/2022,"2,372.83"
28840238,Social Care,"Children, Families and Community Health Services",External Placements,3rd Party Payments,Independent Fostering Agency Placements,ACTIVE CARE SOLUTIONS LTD,B60 ,17/06/2022,"3,171.30"
28840244,Social Care,"Children, Families and Community Health Services",External Placements,3rd Party Payments,Independent Fostering Agency Placements,ACTIVE CARE SOLUTIONS LTD,B60 ,17/06/2022,"6,188.40"
28840240,Social Care,"Children, Families and Community Health Services",Unaccompanied Asylum Seeking Children (UASC),3rd Party Payments,Independent Fostering Agency Placements,ACTIVE CARE SOLUTIONS LTD,B60 ,17/06/2022,"4,205.40"
28840239,Social Care,"Children, Families and Community Health Services",External Placements,3rd Party Payments,Independent Fostering Agency Placements,ACTIVE CARE SOLUTIONS LTD,B60 ,17/06/2022,"3,256.80"
31037233,Learning Disabilities,Adults,Learning Disability 26 - 64,Transfer Payments,Personal Budget - Direct Payments - Domiciliary Care,REDACTED PERSONAL DATA,SN4 ,29/06/2022,"1,146.29"
31040495,Learning Disabilities,Adults,Learning Disability 26 - 64,Transfer Payments,Personal Budget - Direct Payments - Domiciliary Care,REDACTED PERSONAL DATA,SN3 ,29/06/2022,"2,026.16"
30059233,Homelessness and Travellers,Housing Services,Leased Private Managed Accommodation,Transfer Payments,Payment of Costs,ADVANCE HOUSING & SUPPORT LTD,OX28,24/06/2022,"1,074.00"
27437233,Social Care,"Children, Families and Community Health Services",CP & CIN Social Work - South,3rd Party Payments,Supported Living,AGILE QUARTER ACCOMMODATION LTD,EC1V,13/06/2022,"1,000.00"
25947233,Physical Support,Adults,Physical Support 65 and over,3rd Party Payments,Personal Budget - Respite Care,AGINCARE LTD,DT5 ,01/06/2022,"2,255.87"
27644233,Streetsmart,Streetsmart,Grounds Maintenance,Supplies and Services,Materials,AITKENS SPORTSTURF LIMITED,LS25,13/06/2022,316
30605233,Streetsmart,Streetsmart,Grounds Maintenance,Supplies and Services,Materials,AITKENS SPORTSTURF LIMITED,LS25,29/06/2022,203
27644233,Streetsmart,Streetsmart,Grounds Maintenance,Supplies and Services,Materials,AITKENS SPORTSTURF LIMITED,LS25,13/06/2022,543.84
30605233,Streetsmart,Streetsmart,Grounds Maintenance,Supplies and Services,Materials,AITKENS SPORTSTURF LIMITED,LS25,29/06/2022,220
30605233,Streetsmart,Streetsmart,Grounds Maintenance,Supplies and Services,Materials,AITKENS SPORTSTURF LIMITED,LS25,29/06/2022,264
26095233,Physical Support,Adults,Physical Support 65 and over,Transport Costs,Home to Centre Transport,AKCESS LTD,SN2 ,06/06/2022,"2,604.17"
26098233,School Transport,Inclusion and Achievement,Special Educational Needs Transport,Employees,Temporary / Agency - by Accounts Payable,AKCESS LTD,SN2 ,06/06/2022,"3,479.00"
28031233,Travel,Highways & Transport,Public Transport,3rd Party Payments,Contract Payments,AKCESS LTD,SN2 ,15/06/2022,"14,680.14"
26094233,School Transport,Inclusion and Achievement,Mainstream School Transport,Transport Costs,Home to School Transport,AKCESS LTD,SN2 ,06/06/2022,"2,580.83"
26092233,School Transport,Inclusion and Achievement,Mainstream School Transport,Transport Costs,Home to School Transport,AKCESS LTD,SN2 ,06/06/2022,"1,889.58"
26093233,School Transport,Inclusion and Achievement,Special Educational Needs Transport,Transport Costs,Home to School Transport,AKCESS LTD,SN2 ,06/06/2022,"63,666.67"
31197233,School Transport,Inclusion and Achievement,Special Educational Needs Transport,Transport Costs,Home to School Transport,AKCESS LTD,SN2 ,29/06/2022,"1,820.00"
26092233,School Transport,Inclusion and Achievement,Special Educational Needs Transport,Transport Costs,Home to School Transport,AKCESS LTD,SN2 ,06/06/2022,"92,589.19"
26095233,Physical Support,Adults,Physical Support 65 and over,Transport Costs,Home to Centre Transport,AKCESS LTD,SN2 ,06/06/2022,"5,208.33"
26096233,School Transport,Inclusion and Achievement,Special Educational Needs Transport,Transport Costs,Home to School Transport,AKCESS LTD,SN2 ,06/06/2022,"17,690.83"
26101233,School Transport,Inclusion and Achievement,Special Educational Needs Transport,Transport Costs,Home to School Transport,AKCESS LTD,SN2 ,06/06/2022,633.01
26097233,School Transport,Inclusion and Achievement,Special Educational Needs Transport,Employees,Temporary / Agency - by Accounts Payable,AKCESS LTD,SN2 ,06/06/2022,"5,795.00"
26095233,Learning Disabilities,Adults,Learning Disability 26 - 64,Transport Costs,Home to Centre Transport,AKCESS LTD,SN2 ,06/06/2022,"5,208.33"
26095233,Learning Disabilities,Adults,Learning Disability 26 - 64,Transport Costs,Home to Centre Transport,AKCESS LTD,SN2 ,06/06/2022,"18,229.17"
26095233,Physical Support,Adults,Physical Support 65 and over,Transport Costs,Home to Centre Transport,AKCESS LTD,SN2 ,06/06/2022,"5,208.33"
26100233,School Transport,Inclusion and Achievement,Special Educational Needs Transport,Transport Costs,Home to School Transport,AKCESS LTD,SN2 ,06/06/2022,"2,470.00"
26099233,School Transport,Inclusion and Achievement,Special Educational Needs Transport,Employees,Temporary / Agency - by Accounts Payable,AKCESS LTD,SN2 ,06/06/2022,"1,107.50"
30969233,Senior Management Team,"Children, Families and Community Health Services",Family Safeguarding Model,Supplies and Services,Services,ALASDAIR CANT & ASSOCIATES LIMITED,CB2 ,29/06/2022,"5,850.00"
29069233,Social Care,"Children, Families and Community Health Services",Placement Fostering Service,3rd Party Payments,Carers Skills Payments - Core,REDACTED PERSONAL DATA,SN4 ,20/06/2022,116
26145237,Social Care,"Children, Families and Community Health Services",Placement Fostering Service,3rd Party Payments,Foster Care Basic Payments,REDACTED PERSONAL DATA,SN4 ,06/06/2022,520.2
29069233,Social Care,"Children, Families and Community Health Services",Placement Fostering Service,3rd Party Payments,Foster Care Basic Payments,REDACTED PERSONAL DATA,SN4 ,20/06/2022,520.2
26145237,Social Care,"Children, Families and Community Health Services",Placement Fostering Service,3rd Party Payments,Carers Skills Payments - Core,REDACTED PERSONAL DATA,SN4 ,06/06/2022,116
28583233,Social Care,"Children, Families and Community Health Services",Looked After Children Service,3rd Party Payments,Day Care,REDACTED PERSONAL DATA,MK42,17/06/2022,726.75
30244234,Social Care,"Children, Families and Community Health Services",Looked After Children Service,3rd Party Payments,Personal Needs,REDACTED PERSONAL DATA,MK42,24/06/2022,606.95
28399233,Learning Disabilities,Adults,Learning Disability 26 - 64,3rd Party Payments,Supported Accommodation Scheme,REDACTED PERSONAL DATA,SN2 ,22/06/2022,"3,056.20"
31040512,Learning Disabilities,Adults,Learning Disability 26 - 64,Transfer Payments,Personal Budget - Direct Payments - Domiciliary Care,REDACTED PERSONAL DATA,SN25,29/06/2022,973.45
28470233,Learning Disabilities,Adults,Learning Disability 26 - 64,3rd Party Payments,Supported Accommodation Scheme,REDACTED PERSONAL DATA,SN1 ,22/06/2022,"3,056.20"
30217239,School Transport,Inclusion and Achievement,Special Educational Needs Transport,Transport Costs,Home to School Transport,REDACTED PERSONAL DATA,SN5 ,27/06/2022,528.55
28471233,Learning Disabilities,Adults,Learning Disability 26 - 64,3rd Party Payments,Supported Accommodation Scheme,REDACTED PERSONAL DATA,SN2 ,22/06/2022,"2,134.20"
28471233,Learning Disabilities,Adults,Learning Disability 26 - 64,3rd Party Payments,Supported Accommodation Scheme,REDACTED PERSONAL DATA,SN2 ,22/06/2022,"2,481.75"
28471233,Learning Disabilities,Adults,Learning Disability 26 - 64,3rd Party Payments,Supported Accommodation Scheme,REDACTED PERSONAL DATA,SN2 ,22/06/2022,"2,088.80"
31039233,Learning Disabilities,Adults,Learning Disability 26 - 64,Transfer Payments,Personal Budget - Direct Payments - Domiciliary Care,REDACTED PERSONAL DATA,SN5 ,29/06/2022,"8,839.97"
30089233,Social Care,"Children, Families and Community Health Services",Legal Fees,Supplies and Services,Fees,REDACTED PERSONAL DATA,GL7 ,24/06/2022,"1,217.00"
27233237,Early Years Block,DSG Skills and Attainment,Free Nursery Education Commissioning - three & four  year olds,3rd Party Payments,Contracts - Child Care,REDACTED PERSONAL DATA,SN1 ,15/06/2022,708.76
27233238,Early Years Block,DSG Skills and Attainment,Free Nursery Education Commissioning - three & four  year olds,3rd Party Payments,Contracts - Child Care,REDACTED PERSONAL DATA,SN1 ,15/06/2022,857.89
31040402,Learning Disabilities,Adults,Learning Disability 26 - 64,Transfer Payments,Personal Budget - Direct Payments - Domiciliary Care,REDACTED PERSONAL DATA,SN4 ,29/06/2022,"3,427.95"
27624233,Highways & Transport,Highways & Transport,Rights of Way (ROW),Supplies and Services,Repairs & Maintenance,ALLBUILD BUILDING & LANDSCAPING SERVICES,SN25,13/06/2022,480
29986235,Streetsmart,Streetsmart,Waterside Fleet Workshops,Supplies and Services,Materials,ALLIANCE AUTOMOTIVE UK T/A BRAYMARC,BD4 ,22/06/2022,325.24
28709233,Landlord Services,Supervision & Management,Estate Management Team,Supplies and Services,Contracts,ALLPAY-NET LIMITED,HR1 ,17/06/2022,"1,884.06"
29487233,Treasury,Corporate Finance,Treasury,Supplies and Services,Bank Charges,ALLPAY-NET LIMITED,HR1 ,22/06/2022,"1,428.46"
25855234,Highways Schemes,Strategic Planning and Highways,"Rapid Transit - QBC Wichelstowe, North and UTMC",Capital,Professional Fees,ALUN GRIFFITHS (CONTRACTORS ) LTD,NP7 ,01/06/2022,"58,229.87"
30907234,Highways Schemes,Strategic Planning and Highways,Wichelstowe Southern Access,Capital,Contractor Payments,ALUN GRIFFITHS (CONTRACTORS ) LTD,NP7 ,29/06/2022,"130,141.17"
29880233,"Volutary Sector, Equipment and Carers",Adults,Carers Short Term Breaks - Adults,3rd Party Payments,Carers,REDACTED PERSONAL DATA,SN4 ,22/06/2022,500
28824239,Social Care,"Children, Families and Community Health Services",External Placements,3rd Party Payments,Residential Care,AMEGREEN CHILDREN'S SERVICES LTD,RG7 ,17/06/2022,"16,875.00"
27300233,Responsive Repairs,Repairs,Responsive Repairs,Premises Costs,Repairs - Buildings,AMELIO UTILITIES(GLOU) LTD T/A 3 COUNTIES DRAIN SERVICES,GL1 ,10/06/2022,450.38
27300233,Responsive Repairs,Repairs,Responsive Repairs,Premises Costs,Repairs - Buildings,AMELIO UTILITIES(GLOU) LTD T/A 3 COUNTIES DRAIN SERVICES,GL1 ,10/06/2022,660.93
27300233,Responsive Repairs,Repairs,Responsive Repairs,Premises Costs,Repairs - Buildings,AMELIO UTILITIES(GLOU) LTD T/A 3 COUNTIES DRAIN SERVICES,GL1 ,10/06/2022,270.51
27300233,Responsive Repairs,Repairs,Responsive Repairs,Premises Costs,Repairs - Buildings,AMELIO UTILITIES(GLOU) LTD T/A 3 COUNTIES DRAIN SERVICES,GL1 ,10/06/2022,179.87
25884233,Responsive Repairs,Repairs,Responsive Repairs,Premises Costs,Repairs - Buildings,AMELIO UTILITIES(GLOU) LTD T/A 3 COUNTIES DRAIN SERVICES,GL1 ,01/06/2022,159.94
27300233,Responsive Repairs,Repairs,Responsive Repairs,Premises Costs,Repairs - Buildings,AMELIO UTILITIES(GLOU) LTD T/A 3 COUNTIES DRAIN SERVICES,GL1 ,10/06/2022,150.6
27300233,Responsive Repairs,Repairs,Responsive Repairs,Premises Costs,Repairs - Buildings,AMELIO UTILITIES(GLOU) LTD T/A 3 COUNTIES DRAIN SERVICES,GL1 ,10/06/2022,119.91
25884233,Responsive Repairs,Repairs,Responsive Repairs,Premises Costs,Repairs - Buildings,AMELIO UTILITIES(GLOU) LTD T/A 3 COUNTIES DRAIN SERVICES,GL1 ,01/06/2022,505.8
27300233,Responsive Repairs,Repairs,Responsive Repairs,Premises Costs,Repairs - Buildings,AMELIO UTILITIES(GLOU) LTD T/A 3 COUNTIES DRAIN SERVICES,GL1 ,10/06/2022,330.47
25884233,Responsive Repairs,Repairs,Responsive Repairs,Premises Costs,Repairs - Buildings,AMELIO UTILITIES(GLOU) LTD T/A 3 COUNTIES DRAIN SERVICES,GL1 ,01/06/2022,583.42
27300233,Responsive Repairs,Repairs,Responsive Repairs,Premises Costs,Repairs - Buildings,AMELIO UTILITIES(GLOU) LTD T/A 3 COUNTIES DRAIN SERVICES,GL1 ,10/06/2022,239.82
25884233,Responsive Repairs,Repairs,Responsive Repairs,Premises Costs,Repairs - Buildings,AMELIO UTILITIES(GLOU) LTD T/A 3 COUNTIES DRAIN SERVICES,GL1 ,01/06/2022,127.35
26529233,Property Estates,Property,Estates - Corporate Property General,Premises Costs,Rents,AMEY TPT,EC4A,08/06/2022,"2,785.00"
Corporate Card Transaction,Lydiard Park,Streetsmart,Lydiard : Hotel Operations,Supplies and Services,Equipment,Amznmktplace,,15/06/2022,974.7
31040268,Mental Health,Adults,Mental Health 18-64,Transfer Payments,Personal Budget - Direct Payments - Domiciliary Care,REDACTED PERSONAL DATA,SN25,29/06/2022,555.51
27234239,Early Years Block,DSG Skills and Attainment,Free Nursery Education Commissioning - three & four  year olds,3rd Party Payments,Contracts - Child Care,REDACTED PERSONAL DATA,SN25,15/06/2022,916.5
30010238,Homelessness and Travellers,Housing Services,Leased Private Managed Accommodation,Transfer Payments,Payment of Costs,REDACTED PERSONAL DATA,SN26,24/06/2022,675
30051236,Homelessness and Travellers,Housing Services,Leased Private Managed Accommodation,Transfer Payments,Payment of Costs,ANGELVIEW PROPERTIES LTD,ALBO,24/06/2022,548.45
30051237,Homelessness and Travellers,Housing Services,Leased Private Managed Accommodation,Transfer Payments,Payment of Costs,ANGELVIEW PROPERTIES LTD,ALBO,24/06/2022,548.51
31040497,Physical Support,Adults,Physical Support 18 - 64,Transfer Payments,Personal Budget - Direct Payments - Domiciliary Care,REDACTED PERSONAL DATA,SN25,29/06/2022,"2,385.10"
28285233,Early Help,"Children, Families and Community Health Services",On Trak Youth Counselling Service,3rd Party Payments,Contract Payments,REDACTED PERSONAL DATA,SN2 ,15/06/2022,810
28850233,HRA Overheads,Supervision & Management,Admin / Management General,Premises Costs,Insurance - Premises,AON UK LIMITED,EC3V,17/06/2022,"3,261.69"
26733234,Supported Employment,Housing Services,Community Meals,Supplies and Services,Food,APETITO LIMITED,BA14,08/06/2022,830.89
30603233,Supported Employment,Housing Services,Community Meals,Supplies and Services,Food,APETITO LIMITED,BA14,29/06/2022,"1,042.11"
28093233,Supported Employment,Housing Services,Community Meals,Supplies and Services,Food,APETITO LIMITED,BA14,15/06/2022,881.75
30601233,Supported Employment,Housing Services,Community Meals,Supplies and Services,Food,APETITO LIMITED,BA14,29/06/2022,717.2
28094233,Supported Employment,Housing Services,Community Meals,Supplies and Services,Food,APETITO LIMITED,BA14,15/06/2022,893.25
29519233,Responsive Repairs,Repairs,Responsive Repairs,3rd Party Payments,Contract Payments,APEX SCAFFOLDING SERVICES,SN2 ,22/06/2022,585
28176233,Responsive Repairs,Repairs,Responsive Repairs,3rd Party Payments,Contract Payments,APEX SCAFFOLDING SERVICES,SN2 ,15/06/2022,500
28172234,Responsive Repairs,Repairs,Responsive Repairs,3rd Party Payments,Contract Payments,APEX SCAFFOLDING SERVICES,SN2 ,15/06/2022,110
28171234,Responsive Repairs,Repairs,Responsive Repairs,3rd Party Payments,Contract Payments,APEX SCAFFOLDING SERVICES,SN2 ,15/06/2022,550
28174233,Responsive Repairs,Repairs,Responsive Repairs,3rd Party Payments,Contract Payments,APEX SCAFFOLDING SERVICES,SN2 ,15/06/2022,580
29843233,Responsive Repairs,Repairs,Responsive Repairs,3rd Party Payments,Contract Payments,APEX SCAFFOLDING SERVICES,SN2 ,22/06/2022,455
28170234,Responsive Repairs,Repairs,Responsive Repairs,3rd Party Payments,Contract Payments,APEX SCAFFOLDING SERVICES,SN2 ,15/06/2022,55
28167234,Responsive Repairs,Repairs,Responsive Repairs,3rd Party Payments,Contract Payments,APEX SCAFFOLDING SERVICES,SN2 ,15/06/2022,500
28172234,Responsive Repairs,Repairs,Responsive Repairs,3rd Party Payments,Contract Payments,APEX SCAFFOLDING SERVICES,SN2 ,15/06/2022,55
28175234,Responsive Repairs,Repairs,Responsive Repairs,3rd Party Payments,Contract Payments,APEX SCAFFOLDING SERVICES,SN2 ,15/06/2022,450
29513233,Responsive Repairs,Repairs,Responsive Repairs,3rd Party Payments,Contract Payments,APEX SCAFFOLDING SERVICES,SN2 ,22/06/2022,55
26609233,Responsive Repairs,Repairs,Responsive Repairs,3rd Party Payments,Contract Payments,APEX SCAFFOLDING SERVICES,SN2 ,08/06/2022,450
29513233,Responsive Repairs,Repairs,Responsive Repairs,Supplies and Services,Materials,APEX SCAFFOLDING SERVICES,SN2 ,22/06/2022,55
29516233,Responsive Repairs,Repairs,Responsive Repairs,3rd Party Payments,Contract Payments,APEX SCAFFOLDING SERVICES,SN2 ,22/06/2022,550
29515233,Responsive Repairs,Repairs,Responsive Repairs,3rd Party Payments,Contract Payments,APEX SCAFFOLDING SERVICES,SN2 ,22/06/2022,"1,210.00"
29520233,Responsive Repairs,Repairs,Responsive Repairs,3rd Party Payments,Contract Payments,APEX SCAFFOLDING SERVICES,SN2 ,22/06/2022,650
29483233,,,Balance Sheet,Balance Sheet & Recharge,Resources Recharges,APOGEE CORPORATION LIMITED,EC2A,22/06/2022,837.18
29791233,,,Balance Sheet,Balance Sheet & Recharge,Resources Recharges,APOGEE CORPORATION LIMITED,EC2A,22/06/2022,"9,544.11"
29483233,,,Balance Sheet,Balance Sheet & Recharge,Resources Recharges,APOGEE CORPORATION LIMITED,EC2A,22/06/2022,160.59
28869309,Learning Disabilities,Adults,Learning Disability 26 - 64,Income,Client Contribution - Residential,APPLEFORD LTD T/A DANESWOOD,BS25,20/06/2022,-397
28869309,Learning Disabilities,Adults,Learning Disability 26 - 64,3rd Party Payments,Residential Care,APPLEFORD LTD T/A DANESWOOD,BS25,20/06/2022,"19,174.68"
29207233,Adults - Staffing and Supporting People,Adults,Blue Badges,Supplies and Services,Materials,APS GROUP,SK3 ,20/06/2022,"1,386.01"
31077233,Communications & Engagement,Communications & Engagement,"Policy, Campaigns and Communications",Employees,Training,APSE--------------------------------,M32 ,29/06/2022,"1,441.00"
Corporate Card Transaction,Social Care,"Children, Families and Community Health Services",Placement - Care Leaver Team,Transfer Payments,Grants to Individuals,Argos Ltd,,14/06/2022,656.95
Corporate Card Transaction,ASC Finance Services Teams,ASC Finance Services,ASC Money Management Team,Supplies and Services,Services,Argos Ltd,,27/05/2022,546.95
Corporate Card Transaction,ASC Finance Services Teams,ASC Finance Services,ASC Money Management Team,Supplies and Services,Services,Argos Ltd,,27/05/2022,576.95
25996233,Property & Assets,Property & Assets,General Enhancement Works Corporate Buildings,Capital,Contractor Payments,AQUA SOLVE WATER MANAGEMENT,OX44,01/06/2022,"1,187.50"
27610233,Learning Disabilities,Adults,Firethorn Close,Supplies and Services,Equipment,AQUATRONIC GROUP MANAGEMENT PLC,CO6 ,13/06/2022,"1,039.25"
29360233,Early Years Block,DSG Skills and Attainment,Free Nursery Education Commissioning - three & four  year olds,3rd Party Payments,Contracts - Child Care,REDACTED PERSONAL DATA,SN2 ,22/06/2022,"7,980.00"
29389233,High Needs Block,DSG Skills and Attainment,SEN Resourcing Assessment Panel,3rd Party Payments,Top up funding - Maintained providers Pre 16,REDACTED PERSONAL DATA,SN2 ,22/06/2022,"7,980.00"
30335236,Social Care,"Children, Families and Community Health Services",External Placements,3rd Party Payments,Residential Care,AREA CAMDEN GROUP,N8 0,24/06/2022,"2,964.30"
30335235,Social Care,"Children, Families and Community Health Services",External Placements,3rd Party Payments,Residential Care,AREA CAMDEN GROUP,N8 0,24/06/2022,"17,785.80"
Corporate Card Transaction,Community Health & Wellbeing,Public Health,Swindon Circles,Supplies and Services,Food,Asda Superstore,,10/06/2022,"1,200.00"
29854234,Communications & Engagement,Communications & Engagement,"Policy, Campaigns and Communications",Supplies and Services,Materials,ASF SIGNS LTD,SN4 ,22/06/2022,590
28869310,Mental Health,Adults,Mental Health 18-64,Income,Client Contribution - Residential,ASH VIEW HOUSE,BS15,20/06/2022,-394.2
28869310,Mental Health,Adults,Mental Health 18-64,3rd Party Payments,Residential Care,ASH VIEW HOUSE,BS15,20/06/2022,"7,476.36"
28869238,Physical Support,Adults,Physical Support 65 and over,Income,Client Contribution - Residential,ASHBURY LODGE,SN3 ,20/06/2022,"-1,032.64"
28869238,Physical Support,Adults,Physical Support 65 and over,3rd Party Payments,Residential Care,ASHBURY LODGE,SN3 ,20/06/2022,"2,525.28"
28869238,Physical Support,Adults,Physical Support 65 and over,3rd Party Payments,Residential Care,ASHBURY LODGE,SN3 ,20/06/2022,"3,240.59"
28869238,Physical Support,Adults,Physical Support 65 and over,3rd Party Payments,Residential Care,ASHBURY LODGE,SN3 ,20/06/2022,"2,384.04"
28869238,Physical Support,Adults,Physical Support 65 and over,3rd Party Payments,Residential Care,ASHBURY LODGE,SN3 ,20/06/2022,"13,080.24"
28869238,Physical Support,Adults,Physical Support 65 and over,Income,Client Contribution - Residential,ASHBURY LODGE,SN3 ,20/06/2022,-730.76
28869238,Physical Support,Adults,Physical Support 65 and over,Income,Client Contribution - Residential,ASHBURY LODGE,SN3 ,20/06/2022,-608.8
28869238,Physical Support,Adults,Physical Support 65 and over,3rd Party Payments,Residential Care,ASHBURY LODGE,SN3 ,20/06/2022,"2,668.72"
28869238,Physical Support,Adults,Physical Support 65 and over,3rd Party Payments,Residential Care,ASHBURY LODGE,SN3 ,20/06/2022,"4,114.48"
28869238,Physical Support,Adults,Physical Support 65 and over,Income,Client Contribution - Residential,ASHBURY LODGE,SN3 ,20/06/2022,-610
28869238,Physical Support,Adults,Physical Support 65 and over,Income,Client Contribution - Residential,ASHBURY LODGE,SN3 ,20/06/2022,-587.4
28869238,Physical Support,Adults,Physical Support 65 and over,Income,Client Contribution - Residential,ASHBURY LODGE,SN3 ,20/06/2022,-608.76
28869238,Physical Support,Adults,Physical Support 65 and over,Income,Client Contribution - Residential,ASHBURY LODGE,SN3 ,20/06/2022,-742.81
28869238,Physical Support,Adults,Physical Support 65 and over,Income,Client Contribution - Residential,ASHBURY LODGE,SN3 ,20/06/2022,-627.8
28869238,Physical Support,Adults,Physical Support 65 and over,3rd Party Payments,Residential Care,ASHBURY LODGE,SN3 ,20/06/2022,"8,959.27"
28869238,Physical Support,Adults,Physical Support 65 and over,3rd Party Payments,Residential Care,ASHBURY LODGE,SN3 ,20/06/2022,"2,560.12"
28869238,Physical Support,Adults,Physical Support 65 and over,Income,Client Contribution - Residential,ASHBURY LODGE,SN3 ,20/06/2022,"-1,844.23"
28869238,Physical Support,Adults,Physical Support 65 and over,Income,Client Contribution - Residential,ASHBURY LODGE,SN3 ,20/06/2022,-875.2
28869238,Physical Support,Adults,Physical Support 65 and over,3rd Party Payments,Residential Care,ASHBURY LODGE,SN3 ,20/06/2022,87.08
28869238,Physical Support,Adults,Physical Support 65 and over,Income,Client Contribution - Residential,ASHBURY LODGE,SN3 ,20/06/2022,"-2,192.28"
28869238,Physical Support,Adults,Physical Support 65 and over,Income,Client Contribution - Residential,ASHBURY LODGE,SN3 ,20/06/2022,-833.52
28869238,Physical Support,Adults,Physical Support 65 and over,Income,Client Contribution - Residential,ASHBURY LODGE,SN3 ,20/06/2022,-595.4
28869238,Physical Support,Adults,Physical Support 65 and over,Income,Client Contribution - Residential,ASHBURY LODGE,SN3 ,20/06/2022,-256.14
28869238,Memory & Cognition,Adults,Support for Memory and Cognition 65 and over,Income,Client Contribution - Residential,ASHBURY LODGE,SN3 ,20/06/2022,-855.12
28869238,Physical Support,Adults,Physical Support 65 and over,Income,Client Contribution - Residential,ASHBURY LODGE,SN3 ,20/06/2022,-762.33
28869238,Physical Support,Adults,Physical Support 65 and over,3rd Party Payments,Residential Care,ASHBURY LODGE,SN3 ,20/06/2022,181.67
28869238,Physical Support,Adults,Physical Support 65 and over,3rd Party Payments,Residential Care,ASHBURY LODGE,SN3 ,20/06/2022,914.33
28869238,Physical Support,Adults,Physical Support 65 and over,3rd Party Payments,Residential Care,ASHBURY LODGE,SN3 ,20/06/2022,"7,680.36"
28869238,Mental Health,Adults,Mental Health 65 and over,Income,Client Contribution - Residential,ASHBURY LODGE,SN3 ,20/06/2022,-805.32
28869238,Physical Support,Adults,Physical Support 65 and over,Income,Client Contribution - Residential,ASHBURY LODGE,SN3 ,20/06/2022,-25.61
28869238,Physical Support,Adults,Physical Support 65 and over,3rd Party Payments,Residential Care,ASHBURY LODGE,SN3 ,20/06/2022,"-8,532.65"
28869238,Mental Health,Adults,Mental Health 65 and over,3rd Party Payments,Residential Care,ASHBURY LODGE,SN3 ,20/06/2022,"2,668.72"
28282233,Customer Strategy & Operations,"People, Culture and Organisational Resilience",Cemeteries & Crematoria,Supplies and Services,Materials,ASHDOWN SUPPLIES,TN22,15/06/2022,674.75
30096233,Public Health,Public Health,Sexual Health & Health Protection Budget,3rd Party Payments,Contract Payments,ASHINGTON HOUSE SURGERY,SN5 ,24/06/2022,"1,072.00"
28371233,Public Health,Public Health,Sexual Health & Health Protection Budget,3rd Party Payments,Contract Payments,ASHINGTON HOUSE SURGERY,SN5 ,15/06/2022,624
31040517,Physical Support,Adults,Physical Support 18 - 64,Transfer Payments,Personal Budget - Direct Payments - Domiciliary Care,REDACTED PERSONAL DATA,SN25,29/06/2022,"1,510.98"
29551233,Libraries,Inclusion and Achievement,Library Delivery,Supplies and Services,Materials,ASKEWS AND HOLTS LIBRARY SERVICES LIMITED,PR1 ,22/06/2022,"1,865.18"
30670233,Libraries,Inclusion and Achievement,Library Delivery,Supplies and Services,Materials,ASKEWS AND HOLTS LIBRARY SERVICES LIMITED,PR1 ,29/06/2022,"6,491.02"
26373233,Libraries,Inclusion and Achievement,Library Delivery,Supplies and Services,Materials,ASKEWS AND HOLTS LIBRARY SERVICES LIMITED,PR1 ,08/06/2022,"1,368.35"
31194233,Libraries,Inclusion and Achievement,Library Delivery,Supplies and Services,Materials,ASKEWS AND HOLTS LIBRARY SERVICES LIMITED,PR1 ,29/06/2022,"1,797.82"
30671233,Libraries,Inclusion and Achievement,Library Delivery,Supplies and Services,Materials,ASKEWS AND HOLTS LIBRARY SERVICES LIMITED,PR1 ,29/06/2022,512.71
29552233,Libraries,Inclusion and Achievement,Library Delivery,Supplies and Services,Materials,ASKEWS AND HOLTS LIBRARY SERVICES LIMITED,PR1 ,22/06/2022,"1,344.97"
28869283,Learning Disabilities,Adults,Learning Disability 26 - 64,Income,Client Contribution - Residential,ASPECTS & MILESTONES TRUST,BS16,20/06/2022,-425.6
28869283,Learning Disabilities,Adults,Learning Disability 26 - 64,3rd Party Payments,Residential Care,ASPECTS & MILESTONES TRUST,BS16,20/06/2022,"6,062.60"
28869320,Learning Disabilities,Adults,Learning Disability 26 - 64,3rd Party Payments,Residential Care,ASPECTS 2 LTD,B70 ,20/06/2022,"8,284.52"
28869320,Mental Health,Adults,Mental Health 65 and over,3rd Party Payments,Supported Living,ASPECTS 2 LTD,B70 ,20/06/2022,"3,052.80"
28869320,Learning Disabilities,Adults,Learning Disability 26 - 64,Income,Client Contribution - Residential,ASPECTS 2 LTD,B70 ,20/06/2022,-414.2
28869320,Physical Support,Adults,Physical Support 18 - 64,3rd Party Payments,Supported Living,ASPECTS 2 LTD,B70 ,20/06/2022,"3,931.20"
Corporate Card Transaction,Responsive Repairs,Repairs,Responsive Repairs,Supplies and Services,Materials,Asphaltic Roofing,,10/06/2022,670
28869341,Learning Disabilities,Adults,Learning Disability 26 - 64,Income,Client Contribution - Residential,ASTON CARE LIMITED,RG30,20/06/2022,-594.36
28869341,Learning Disabilities,Adults,Learning Disability 26 - 64,3rd Party Payments,Residential Care,ASTON CARE LIMITED,RG30,20/06/2022,"9,104.80"
28869342,Learning Disabilities,Adults,Learning Disability 26 - 64,3rd Party Payments,Residential Care,ASTON CARE LIMITED,RG30,20/06/2022,"9,182.84"
28869341,Learning Disabilities,Adults,Learning Disability 26 - 64,Income,Client Contribution - Residential,ASTON CARE LIMITED,RG30,20/06/2022,"-1,033.20"
28869341,Learning Disabilities,Adults,Learning Disability 26 - 64,Income,Client Contribution - Residential,ASTON CARE LIMITED,RG30,20/06/2022,-349
28869341,Learning Disabilities,Adults,Learning Disability 26 - 64,3rd Party Payments,Residential Care,ASTON CARE LIMITED,RG30,20/06/2022,"6,350.24"
28869341,Learning Disabilities,Adults,Learning Disability 26 - 64,3rd Party Payments,Residential Care,ASTON CARE LIMITED,RG30,20/06/2022,"6,909.40"
28869342,Learning Disabilities,Adults,Learning Disability 26 - 64,Income,Client Contribution - Residential,ASTON CARE LIMITED,RG30,20/06/2022,-262.4
25971233,Highways & Transport,Highways & Transport,Project Delivery,Supplies and Services,Services,ATKINS LTD,WR5 ,01/06/2022,"19,209.54"
26064233,Highways & Transport,Highways & Transport,Project Delivery,Supplies and Services,Services,ATKINS LTD,WR5 ,06/06/2022,"8,612.61"
26542233,"Volutary Sector, Equipment and Carers",Adults,Carers Short Term Breaks - Adults,3rd Party Payments,Carers,REDACTED PERSONAL DATA,SN1 ,08/06/2022,500
31040596,Physical Support,Adults,Physical Support 65 and over,Transfer Payments,Personal Budget - Direct Payments - Domiciliary Care,REDACTED PERSONAL DATA,SP11,29/06/2022,"3,943.39"
28869373,Physical Support,Adults,Physical Support 65 and over,Income,Client Contribution - Nursing,AURA CARE LIVING CIRENCESTER LTD,GL7 ,20/06/2022,-538.11
28869373,Physical Support,Adults,Physical Support 65 and over,Income,Client Contribution - Nursing,AURA CARE LIVING CIRENCESTER LTD,GL7 ,20/06/2022,-470.85
28869373,Physical Support,Adults,Physical Support 65 and over,3rd Party Payments,Residential Care,AURA CARE LIVING CIRENCESTER LTD,GL7 ,20/06/2022,"3,800.00"
28869373,Physical Support,Adults,Physical Support 65 and over,3rd Party Payments,Nursing Care,AURA CARE LIVING CIRENCESTER LTD,GL7 ,20/06/2022,"4,400.00"
28869373,Mental Health,Adults,Mental Health 18-64,3rd Party Payments,Residential Care,AURA CARE LIVING CIRENCESTER LTD,GL7 ,20/06/2022,"4,600.00"
28869373,Physical Support,Adults,Physical Support 18 - 64,3rd Party Payments,Nursing Care,AURA CARE LIVING CIRENCESTER LTD,GL7 ,20/06/2022,"4,400.00"
28869373,Care Management & Safeguarding,Adults,Community Response Hub,3rd Party Payments,Residential Care,AURA CARE LIVING CIRENCESTER LTD,GL7 ,20/06/2022,"5,185.71"
28869373,Care Management & Safeguarding,Adults,Community Response Hub,3rd Party Payments,Residential Care,AURA CARE LIVING CIRENCESTER LTD,GL7 ,20/06/2022,"4,400.00"
28869373,Mental Health,Adults,Mental Health 65 and over,3rd Party Payments,Residential Care,AURA CARE LIVING CIRENCESTER LTD,GL7 ,20/06/2022,"5,600.00"
28869373,Mental Health,Adults,Mental Health 18-64,3rd Party Payments,Residential Care,AURA CARE LIVING CIRENCESTER LTD,GL7 ,20/06/2022,"6,720.00"
28869373,Physical Support,Adults,Physical Support 65 and over,3rd Party Payments,Nursing Care,AURA CARE LIVING CIRENCESTER LTD,GL7 ,20/06/2022,"3,771.43"
28869373,Physical Support,Adults,Physical Support 65 and over,3rd Party Payments,Nursing Care,AURA CARE LIVING CIRENCESTER LTD,GL7 ,20/06/2022,"4,000.00"
28869373,Physical Support,Adults,Physical Support 65 and over,3rd Party Payments,Nursing Care,AURA CARE LIVING CIRENCESTER LTD,GL7 ,20/06/2022,"3,142.86"
28869373,Physical Support,Adults,Physical Support 65 and over,3rd Party Payments,Nursing Care,AURA CARE LIVING CIRENCESTER LTD,GL7 ,20/06/2022,"3,300.00"
28869373,Physical Support,Adults,Physical Support 65 and over,Income,Client Contribution - Nursing,AURA CARE LIVING CIRENCESTER LTD,GL7 ,20/06/2022,-448.43
28869373,Physical Support,Adults,Physical Support 65 and over,Income,Client Contribution - Nursing,AURA CARE LIVING CIRENCESTER LTD,GL7 ,20/06/2022,-627.8
28869373,Mental Health,Adults,Mental Health 65 and over,3rd Party Payments,Residential Care,AURA CARE LIVING CIRENCESTER LTD,GL7 ,20/06/2022,"10,400.00"
28869353,Learning Disabilities,Adults,Learning Disability 65 and over,3rd Party Payments,Residential Care,AUTONOMY LIFE LIMITED,SN12,20/06/2022,"9,312.84"
28869353,Learning Disabilities,Adults,Learning Disability 65 and over,Income,Client Contribution - Residential,AUTONOMY LIFE LIMITED,SN12,20/06/2022,-528.8
26106233,Care Management & Safeguarding,Adults,Mental Health Non-Pool,3rd Party Payments,Contracts - Social Care,AVON & WILTSHIRE MENTAL HEALTH PARTNERSHIP NHS TRUST,BA1 ,06/06/2022,"24,088.83"
29213233,Care Management & Safeguarding,Adults,Mental Health Non-Pool,3rd Party Payments,Contracts - Social Care,AVON & WILTSHIRE MENTAL HEALTH PARTNERSHIP NHS TRUST,BA1 ,20/06/2022,"24,088.83"
28869254,Learning Disabilities,Adults,Learning Disability 26 - 64,3rd Party Payments,Residential Care,AVON AUTISTIC FOUNDATION LTD,BS11,20/06/2022,"6,823.92"
28869253,Learning Disabilities,Adults,Learning Disability 26 - 64,Income,Client Contribution - Residential,AVON AUTISTIC FOUNDATION LTD,BS11,20/06/2022,-414.2
28869254,Learning Disabilities,Adults,Learning Disability 26 - 64,Income,Client Contribution - Residential,AVON AUTISTIC FOUNDATION LTD,BS11,20/06/2022,-414.2
28869253,Learning Disabilities,Adults,Learning Disability 26 - 64,3rd Party Payments,Residential Care,AVON AUTISTIC FOUNDATION LTD,BS11,20/06/2022,"4,878.40"
30019238,Homelessness and Travellers,Housing Services,Leased Private Managed Accommodation,Transfer Payments,Payment of Costs,AVONPARK PROPERTIES LTD,NW1W,24/06/2022,650
30019237,Homelessness and Travellers,Housing Services,Leased Private Managed Accommodation,Transfer Payments,Payment of Costs,AVONPARK PROPERTIES LTD,NW1W,24/06/2022,615
30069240,Homelessness and Travellers,Housing Services,Leased Private Managed Accommodation,Transfer Payments,Payment of Costs,AVONPARK PROPERTIES LTD,NW1W,24/06/2022,550
28947233,Human Resources and Organisational Development,"People, Culture and Organisational Resilience",Organisational Development,Employees,Training,AWARENESS TRAINING LTD,GL54,20/06/2022,500
27646233,Streetsmart,Streetsmart,Coate Water,Supplies and Services,Materials,AWBS------------,OX1 ,13/06/2022,865.33
30938233,Digital & Business Change,Digital & Business Change,IT Operations,Supplies and Services,Equipment,AZURA NETWORKS,BN11,29/06/2022,"1,289.00"
28589233,Internal Audit,Internal Audit,Internal Audit,Supplies and Services,Services,BACK CARE SOLUTIONS LTD,PR5 ,17/06/2022,422
30085233,ASC Finance Services Teams,ASC Finance Services,ASC Finance Admin,Supplies and Services,Equipment,BACK CARE SOLUTIONS LTD,PR5 ,24/06/2022,955.5
28161233,Town Centre,"Economy, Growth and Place","No 7, 9 & 11 Carriage works @ Railway Village",Capital,Consultants,BAILEY PARTNERSHIP (CONSULTANTS) LLP,PL1 ,15/06/2022,"1,500.00"
28162233,Town Centre,"Economy, Growth and Place","No 7, 9 & 11 Carriage works @ Railway Village",Capital,Consultants,BAILEY PARTNERSHIP (CONSULTANTS) LLP,PL1 ,15/06/2022,"1,500.00"
25401233,Licencing,Regulatory Services,Taxis & Private Hire,Supplies and Services,Testing / Inspection,BANSAL MOTORS,SN2 ,01/06/2022,990
28869348,Physical Support,Adults,Physical Support 65 and over,3rd Party Payments,Nursing Care,BARCHESTER HEALTHCARE HOMES,GL7 ,20/06/2022,"3,415.00"
28869348,Memory & Cognition,Adults,Support for Memory and Cognition 65 and over,3rd Party Payments,Nursing Care,BARCHESTER HEALTHCARE HOMES,GL7 ,20/06/2022,"6,271.84"
28869348,Physical Support,Adults,Physical Support 65 and over,Income,Client Contribution - Nursing,BARCHESTER HEALTHCARE HOMES,GL7 ,20/06/2022,-809.92
27043233,School Transport,Inclusion and Achievement,Mainstream School Transport,Transport Costs,Home to School Transport,BARNES COACHES LTD,SN3 ,10/06/2022,"9,025.00"
28503233,School Transport,Inclusion and Achievement,Mainstream School Transport,Employees,Temporary / Agency - by Accounts Payable,BARNES COACHES LTD,SN3 ,15/06/2022,560.4
28625233,School Transport,Inclusion and Achievement,Mainstream School Transport,Transport Costs,Home to School Transport,BARNES COACHES LTD,SN3 ,17/06/2022,"2,320.00"
28625233,School Transport,Inclusion and Achievement,Mainstream School Transport,Transport Costs,Home to School Transport,BARNES COACHES LTD,SN3 ,17/06/2022,"9,500.00"
28502233,School Transport,Inclusion and Achievement,Special Educational Needs Transport,Transport Costs,Home to School Transport,BARNES COACHES LTD,SN3 ,15/06/2022,"3,360.00"
27043233,School Transport,Inclusion and Achievement,Mainstream School Transport,Employees,Temporary / Agency - by Accounts Payable,BARNES COACHES LTD,SN3 ,10/06/2022,709.84
28503233,School Transport,Inclusion and Achievement,Mainstream School Transport,Transport Costs,Home to School Transport,BARNES COACHES LTD,SN3 ,15/06/2022,"7,125.00"
28625233,School Transport,Inclusion and Achievement,Mainstream School Transport,Employees,Temporary / Agency - by Accounts Payable,BARNES COACHES LTD,SN3 ,17/06/2022,747.2
27042233,School Transport,Inclusion and Achievement,Special Educational Needs Transport,Employees,Temporary / Agency - by Accounts Payable,BARNES COACHES LTD,SN3 ,10/06/2022,920.55
28503233,School Transport,Inclusion and Achievement,Mainstream School Transport,Transport Costs,Home to School Transport,BARNES COACHES LTD,SN3 ,15/06/2022,"2,175.00"
28502233,School Transport,Inclusion and Achievement,Special Educational Needs Transport,Employees,Temporary / Agency - by Accounts Payable,BARNES COACHES LTD,SN3 ,15/06/2022,726.75
27042233,School Transport,Inclusion and Achievement,Special Educational Needs Transport,Transport Costs,Home to School Transport,BARNES COACHES LTD,SN3 ,10/06/2022,"4,256.00"
30084233,Non-HRA Vehicles,Transport,Vehicle & Plant replacement strategy,Capital,Acquisitions,BARTEC MUNICIPAL TECHNOLOGIES LTD,S75 ,24/06/2022,"11,750.00"
30083233,Non-HRA Vehicles,Transport,Vehicle & Plant replacement strategy,Capital,Acquisitions,BARTEC MUNICIPAL TECHNOLOGIES LTD,S75 ,24/06/2022,"12,150.00"
28869313,Physical Support,Adults,Physical Support 65 and over,3rd Party Payments,Nursing Care,BASSETT HOUSE CARE HOME,SN4 ,20/06/2022,"3,018.40"
28869313,Physical Support,Adults,Physical Support 65 and over,Income,Client Contribution - Nursing,BASSETT HOUSE CARE HOME,SN4 ,20/06/2022,-879.52
25123242,Schools - Primary,DSG Skills and Attainment,Primary School Budgets,Supplies and Services,Payments to Educational Bodies,BEECHCROFT INFANT SCHOOL,SN2 ,01/06/2022,"4,066.88"
30340251,DSG Other Funding,DSG Skills and Attainment,DFE Additional Grants,Supplies and Services,Payments to Educational Bodies,BEECHCROFT INFANT SCHOOL,SN2 ,27/06/2022,"13,852.00"
28508246,Schools - Primary,DSG Skills and Attainment,Primary School Budgets,3rd Party Payments,Mainstream Delegated Funding,BEECHCROFT INFANT SCHOOL,SN2 ,17/06/2022,"97,492.00"
25120250,Schools - Primary,DSG Skills and Attainment,Primary School Budgets,Supplies and Services,Payments to Educational Bodies,BEECHCROFT INFANT SCHOOL,SN2 ,01/06/2022,"7,317.00"
25121250,Schools - Primary,DSG Skills and Attainment,Primary School Budgets,Supplies and Services,Payments to Educational Bodies,BEECHCROFT INFANT SCHOOL,SN2 ,01/06/2022,"2,501.25"
28331243,High Needs Block,DSG Skills and Attainment,SEN Resourcing Assessment Panel,3rd Party Payments,Top up funding - Maintained providers Pre 16,BEECHCROFT INFANT SCHOOL,SN2 ,15/06/2022,"6,245.00"
28513245,DSG Other Funding,DSG Skills and Attainment,DFE Additional Grants,3rd Party Payments,Payment of Pupil Premium to school,BEECHCROFT INFANT SCHOOL,SN2 ,17/06/2022,"7,558.00"
28869307,Learning Disabilities,Adults,Learning Disability 26 - 64,3rd Party Payments,Residential Care,BEECHWOOD COURT LTD,CF10,20/06/2022,"-39,293.61"
28869307,Learning Disabilities,Adults,Learning Disability 26 - 64,3rd Party Payments,Residential Care,BEECHWOOD COURT LTD,CF10,20/06/2022,"-82,166.74"
28869307,Learning Disabilities,Adults,Learning Disability 26 - 64,3rd Party Payments,Residential Care,BEECHWOOD COURT LTD,CF10,20/06/2022,"42,928.32"
28869307,Learning Disabilities,Adults,Learning Disability 26 - 64,Income,Client Contribution - Residential,BEECHWOOD COURT LTD,CF10,20/06/2022,-322.56
28869307,Learning Disabilities,Adults,Learning Disability 26 - 64,3rd Party Payments,Residential Care,BEECHWOOD COURT LTD,CF10,20/06/2022,"26,739.16"
28869307,Learning Disabilities,Adults,Learning Disability 26 - 64,3rd Party Payments,Residential Care,BEECHWOOD COURT LTD,CF10,20/06/2022,"12,787.16"
28869307,Learning Disabilities,Adults,Learning Disability 26 - 64,3rd Party Payments,Residential Care,BEECHWOOD COURT LTD,CF10,20/06/2022,"89,767.18"
29433233,Other Repairs,Repairs,Delivery Team & Overheads,Supplies and Services,Materials,BEESLEYS TOOLS,SN2 ,22/06/2022,11.55
28097233,Other Repairs,Repairs,Delivery Team & Overheads,Supplies and Services,Equipment,BEESLEYS TOOLS,SN2 ,15/06/2022,16.82
29225233,Other Repairs,Repairs,Delivery Team & Overheads,Supplies and Services,Equipment,BEESLEYS TOOLS,SN2 ,20/06/2022,19.99
29225233,Other Repairs,Repairs,Delivery Team & Overheads,Supplies and Services,Equipment,BEESLEYS TOOLS,SN2 ,20/06/2022,27.52
29225233,Other Repairs,Repairs,Delivery Team & Overheads,Supplies and Services,Equipment,BEESLEYS TOOLS,SN2 ,20/06/2022,29
28097233,Other Repairs,Repairs,Delivery Team & Overheads,Supplies and Services,Equipment,BEESLEYS TOOLS,SN2 ,15/06/2022,6
28097233,Other Repairs,Repairs,Delivery Team & Overheads,Supplies and Services,Equipment,BEESLEYS TOOLS,SN2 ,15/06/2022,5.06
28097233,Other Repairs,Repairs,Delivery Team & Overheads,Supplies and Services,Equipment,BEESLEYS TOOLS,SN2 ,15/06/2022,13.88
28097233,Other Repairs,Repairs,Delivery Team & Overheads,Supplies and Services,Equipment,BEESLEYS TOOLS,SN2 ,15/06/2022,99.99
29433233,Other Repairs,Repairs,Asbestos Services,Supplies and Services,Materials,BEESLEYS TOOLS,SN2 ,22/06/2022,9.99
29433233,Other Repairs,Repairs,Delivery Team & Overheads,Supplies and Services,Materials,BEESLEYS TOOLS,SN2 ,22/06/2022,10.97
29433233,Other Repairs,Repairs,Delivery Team & Overheads,Supplies and Services,Materials,BEESLEYS TOOLS,SN2 ,22/06/2022,79.99
29433233,Other Repairs,Repairs,Delivery Team & Overheads,Supplies and Services,Materials,BEESLEYS TOOLS,SN2 ,22/06/2022,5.83
29433233,Other Repairs,Repairs,Delivery Team & Overheads,Supplies and Services,Materials,BEESLEYS TOOLS,SN2 ,22/06/2022,10.99
29433233,Other Repairs,Repairs,Delivery Team & Overheads,Supplies and Services,Materials,BEESLEYS TOOLS,SN2 ,22/06/2022,13.99
29433233,Other Repairs,Repairs,Delivery Team & Overheads,Supplies and Services,Materials,BEESLEYS TOOLS,SN2 ,22/06/2022,19.99
29433233,Other Repairs,Repairs,Delivery Team & Overheads,Supplies and Services,Materials,BEESLEYS TOOLS,SN2 ,22/06/2022,8.42
29433233,Other Repairs,Repairs,Delivery Team & Overheads,Supplies and Services,Materials,BEESLEYS TOOLS,SN2 ,22/06/2022,37.5
28097233,Other Repairs,Repairs,Delivery Team & Overheads,Supplies and Services,Equipment,BEESLEYS TOOLS,SN2 ,15/06/2022,21.45
29225233,Other Repairs,Repairs,Delivery Team & Overheads,Supplies and Services,Equipment,BEESLEYS TOOLS,SN2 ,20/06/2022,8.83
29225233,Other Repairs,Repairs,Delivery Team & Overheads,Supplies and Services,Equipment,BEESLEYS TOOLS,SN2 ,20/06/2022,124.99
28097233,Other Repairs,Repairs,Delivery Team & Overheads,Supplies and Services,Equipment,BEESLEYS TOOLS,SN2 ,15/06/2022,8.88
28097233,Other Repairs,Repairs,Delivery Team & Overheads,Supplies and Services,Equipment,BEESLEYS TOOLS,SN2 ,15/06/2022,9.69
28097233,Other Repairs,Repairs,Delivery Team & Overheads,Supplies and Services,Equipment,BEESLEYS TOOLS,SN2 ,15/06/2022,14.59
29433233,Other Repairs,Repairs,Asbestos Services,Supplies and Services,Materials,BEESLEYS TOOLS,SN2 ,22/06/2022,9.69
29433233,Other Repairs,Repairs,Delivery Team & Overheads,Supplies and Services,Materials,BEESLEYS TOOLS,SN2 ,22/06/2022,11.14
29433233,Other Repairs,Repairs,Delivery Team & Overheads,Supplies and Services,Materials,BEESLEYS TOOLS,SN2 ,22/06/2022,49
29433233,Other Repairs,Repairs,Delivery Team & Overheads,Supplies and Services,Materials,BEESLEYS TOOLS,SN2 ,22/06/2022,7.99
29433233,Other Repairs,Repairs,Delivery Team & Overheads,Supplies and Services,Materials,BEESLEYS TOOLS,SN2 ,22/06/2022,48.35
29433233,Other Repairs,Repairs,Delivery Team & Overheads,Supplies and Services,Materials,BEESLEYS TOOLS,SN2 ,22/06/2022,18.08
29433233,Other Repairs,Repairs,Delivery Team & Overheads,Supplies and Services,Materials,BEESLEYS TOOLS,SN2 ,22/06/2022,25.99
29433233,Other Repairs,Repairs,Delivery Team & Overheads,Supplies and Services,Materials,BEESLEYS TOOLS,SN2 ,22/06/2022,35.99
28100233,Other Repairs,Repairs,Delivery Team & Overheads,Supplies and Services,Materials,BEESLEYS TOOLS,SN2 ,15/06/2022,540
29225233,Other Repairs,Repairs,Delivery Team & Overheads,Supplies and Services,Equipment,BEESLEYS TOOLS,SN2 ,20/06/2022,39.32
29225233,Other Repairs,Repairs,Delivery Team & Overheads,Supplies and Services,Equipment,BEESLEYS TOOLS,SN2 ,20/06/2022,2.99
29225233,Other Repairs,Repairs,Delivery Team & Overheads,Supplies and Services,Equipment,BEESLEYS TOOLS,SN2 ,20/06/2022,105.12
29225233,Other Repairs,Repairs,Delivery Team & Overheads,Supplies and Services,Equipment,BEESLEYS TOOLS,SN2 ,20/06/2022,9.69
28097233,Other Repairs,Repairs,Delivery Team & Overheads,Supplies and Services,Equipment,BEESLEYS TOOLS,SN2 ,15/06/2022,31.8
28097233,Other Repairs,Repairs,Delivery Team & Overheads,Supplies and Services,Equipment,BEESLEYS TOOLS,SN2 ,15/06/2022,19.13
29433233,Other Repairs,Repairs,Asbestos Services,Supplies and Services,Materials,BEESLEYS TOOLS,SN2 ,22/06/2022,24.99
29433233,Other Repairs,Repairs,Delivery Team & Overheads,Supplies and Services,Materials,BEESLEYS TOOLS,SN2 ,22/06/2022,17.96
29433233,Other Repairs,Repairs,Delivery Team & Overheads,Supplies and Services,Materials,BEESLEYS TOOLS,SN2 ,22/06/2022,5.12
29433233,Other Repairs,Repairs,Delivery Team & Overheads,Supplies and Services,Materials,BEESLEYS TOOLS,SN2 ,22/06/2022,45
29433233,Other Repairs,Repairs,Delivery Team & Overheads,Supplies and Services,Materials,BEESLEYS TOOLS,SN2 ,22/06/2022,16.66
29433233,Other Repairs,Repairs,Delivery Team & Overheads,Supplies and Services,Materials,BEESLEYS TOOLS,SN2 ,22/06/2022,4.4
28097233,Other Repairs,Repairs,Delivery Team & Overheads,Supplies and Services,Equipment,BEESLEYS TOOLS,SN2 ,15/06/2022,5.5
29433233,Other Repairs,Repairs,Delivery Team & Overheads,Supplies and Services,Materials,BEESLEYS TOOLS,SN2 ,22/06/2022,23.35
29433233,Other Repairs,Repairs,Delivery Team & Overheads,Supplies and Services,Materials,BEESLEYS TOOLS,SN2 ,22/06/2022,27
29433233,Other Repairs,Repairs,Delivery Team & Overheads,Supplies and Services,Materials,BEESLEYS TOOLS,SN2 ,22/06/2022,44.99
29433233,Other Repairs,Repairs,Delivery Team & Overheads,Supplies and Services,Materials,BEESLEYS TOOLS,SN2 ,22/06/2022,33.99
29433233,Other Repairs,Repairs,Delivery Team & Overheads,Supplies and Services,Materials,BEESLEYS TOOLS,SN2 ,22/06/2022,9.99
29433233,Other Repairs,Repairs,Delivery Team & Overheads,Supplies and Services,Materials,BEESLEYS TOOLS,SN2 ,22/06/2022,30.96
28100233,Other Repairs,Repairs,Delivery Team & Overheads,Supplies and Services,Materials,BEESLEYS TOOLS,SN2 ,15/06/2022,252
29225233,Other Repairs,Repairs,Delivery Team & Overheads,Supplies and Services,Equipment,BEESLEYS TOOLS,SN2 ,20/06/2022,8.33
29225233,Other Repairs,Repairs,Delivery Team & Overheads,Supplies and Services,Equipment,BEESLEYS TOOLS,SN2 ,20/06/2022,12.99
28097233,Other Repairs,Repairs,Delivery Team & Overheads,Supplies and Services,Equipment,BEESLEYS TOOLS,SN2 ,15/06/2022,74.99
28097233,Other Repairs,Repairs,Delivery Team & Overheads,Supplies and Services,Equipment,BEESLEYS TOOLS,SN2 ,15/06/2022,20.99
28097233,Other Repairs,Repairs,Delivery Team & Overheads,Supplies and Services,Equipment,BEESLEYS TOOLS,SN2 ,15/06/2022,81.99
29433233,Other Repairs,Repairs,Asbestos Services,Supplies and Services,Materials,BEESLEYS TOOLS,SN2 ,22/06/2022,11.68
29433233,Other Repairs,Repairs,Asbestos Services,Supplies and Services,Materials,BEESLEYS TOOLS,SN2 ,22/06/2022,14.59
29433233,Other Repairs,Repairs,Asbestos Services,Supplies and Services,Materials,BEESLEYS TOOLS,SN2 ,22/06/2022,19.86
29433233,Other Repairs,Repairs,Delivery Team & Overheads,Supplies and Services,Materials,BEESLEYS TOOLS,SN2 ,22/06/2022,9.22
28100233,Other Repairs,Repairs,Delivery Team & Overheads,Supplies and Services,Materials,BEESLEYS TOOLS,SN2 ,15/06/2022,75
28097233,Other Repairs,Repairs,Delivery Team & Overheads,Supplies and Services,Equipment,BEESLEYS TOOLS,SN2 ,15/06/2022,24.4
29225233,Other Repairs,Repairs,Delivery Team & Overheads,Supplies and Services,Equipment,BEESLEYS TOOLS,SN2 ,20/06/2022,29.99
28097233,Other Repairs,Repairs,Delivery Team & Overheads,Supplies and Services,Equipment,BEESLEYS TOOLS,SN2 ,15/06/2022,6.18
28097233,Other Repairs,Repairs,Delivery Team & Overheads,Supplies and Services,Equipment,BEESLEYS TOOLS,SN2 ,15/06/2022,13.85
28097233,Other Repairs,Repairs,Delivery Team & Overheads,Supplies and Services,Equipment,BEESLEYS TOOLS,SN2 ,15/06/2022,5.19
28097233,Other Repairs,Repairs,Delivery Team & Overheads,Supplies and Services,Equipment,BEESLEYS TOOLS,SN2 ,15/06/2022,11.68
29433233,Other Repairs,Repairs,Delivery Team & Overheads,Supplies and Services,Materials,BEESLEYS TOOLS,SN2 ,22/06/2022,7.49
29433233,Other Repairs,Repairs,Delivery Team & Overheads,Supplies and Services,Materials,BEESLEYS TOOLS,SN2 ,22/06/2022,6.04
29433233,Other Repairs,Repairs,Delivery Team & Overheads,Supplies and Services,Materials,BEESLEYS TOOLS,SN2 ,22/06/2022,10.48
29433233,Other Repairs,Repairs,Delivery Team & Overheads,Supplies and Services,Materials,BEESLEYS TOOLS,SN2 ,22/06/2022,6.2
29433233,Other Repairs,Repairs,Delivery Team & Overheads,Supplies and Services,Materials,BEESLEYS TOOLS,SN2 ,22/06/2022,29.36
29433233,Other Repairs,Repairs,Delivery Team & Overheads,Supplies and Services,Materials,BEESLEYS TOOLS,SN2 ,22/06/2022,12.75
28097233,Other Repairs,Repairs,Delivery Team & Overheads,Supplies and Services,Equipment,BEESLEYS TOOLS,SN2 ,15/06/2022,91.28
28097233,Other Repairs,Repairs,Delivery Team & Overheads,Supplies and Services,Equipment,BEESLEYS TOOLS,SN2 ,15/06/2022,79.98
28097233,Other Repairs,Repairs,Delivery Team & Overheads,Supplies and Services,Equipment,BEESLEYS TOOLS,SN2 ,15/06/2022,144
29433233,Other Repairs,Repairs,Asbestos Services,Supplies and Services,Materials,BEESLEYS TOOLS,SN2 ,22/06/2022,6.62
29433233,Other Repairs,Repairs,Delivery Team & Overheads,Supplies and Services,Materials,BEESLEYS TOOLS,SN2 ,22/06/2022,20.08
29433233,Other Repairs,Repairs,Delivery Team & Overheads,Supplies and Services,Materials,BEESLEYS TOOLS,SN2 ,22/06/2022,18.42
29433233,Other Repairs,Repairs,Delivery Team & Overheads,Supplies and Services,Materials,BEESLEYS TOOLS,SN2 ,22/06/2022,55
29433233,Other Repairs,Repairs,Delivery Team & Overheads,Supplies and Services,Materials,BEESLEYS TOOLS,SN2 ,22/06/2022,169.32
29433233,Other Repairs,Repairs,Delivery Team & Overheads,Supplies and Services,Materials,BEESLEYS TOOLS,SN2 ,22/06/2022,54.87
29433233,Other Repairs,Repairs,Delivery Team & Overheads,Supplies and Services,Materials,BEESLEYS TOOLS,SN2 ,22/06/2022,17.5
29433233,Other Repairs,Repairs,Delivery Team & Overheads,Supplies and Services,Materials,BEESLEYS TOOLS,SN2 ,22/06/2022,15.4
29433233,Other Repairs,Repairs,Delivery Team & Overheads,Supplies and Services,Materials,BEESLEYS TOOLS,SN2 ,22/06/2022,32.99
29225233,Other Repairs,Repairs,Delivery Team & Overheads,Supplies and Services,Equipment,BEESLEYS TOOLS,SN2 ,20/06/2022,17.8
29225233,Other Repairs,Repairs,Delivery Team & Overheads,Supplies and Services,Equipment,BEESLEYS TOOLS,SN2 ,20/06/2022,225
29433233,Void Repairs,Supervision & Management,Void Property Repairs,Supplies and Services,Materials,BEESLEYS TOOLS,SN2 ,22/06/2022,172.64
29433233,Other Repairs,Repairs,Delivery Team & Overheads,Supplies and Services,Materials,BEESLEYS TOOLS,SN2 ,22/06/2022,4.99
29433233,Other Repairs,Repairs,Delivery Team & Overheads,Supplies and Services,Materials,BEESLEYS TOOLS,SN2 ,22/06/2022,8.33
29433233,Other Repairs,Repairs,Delivery Team & Overheads,Supplies and Services,Materials,BEESLEYS TOOLS,SN2 ,22/06/2022,5.18
29433233,Other Repairs,Repairs,Delivery Team & Overheads,Supplies and Services,Materials,BEESLEYS TOOLS,SN2 ,22/06/2022,8.28
29433233,Other Repairs,Repairs,Delivery Team & Overheads,Supplies and Services,Materials,BEESLEYS TOOLS,SN2 ,22/06/2022,16.7
29225233,Other Repairs,Repairs,Delivery Team & Overheads,Supplies and Services,Equipment,BEESLEYS TOOLS,SN2 ,20/06/2022,16.66
29225233,Other Repairs,Repairs,Delivery Team & Overheads,Supplies and Services,Equipment,BEESLEYS TOOLS,SN2 ,20/06/2022,34.5
29225233,Other Repairs,Repairs,Delivery Team & Overheads,Supplies and Services,Equipment,BEESLEYS TOOLS,SN2 ,20/06/2022,17.65
27755233,Highways Inspections & Maintenance,Highway Operations and Car Parking,Streetlighting,Supplies and Services,Materials,BEI LIGHTING LTD,RG14,15/06/2022,"1,990.00"
28930233,Parking & Bus lanes,Highway Operations and Car Parking,Car Parking,Supplies and Services,Equipment,BEMROSE BOOTH PARAGON LTD,HU7 ,17/06/2022,663
29980233,Social Care,"Children, Families and Community Health Services",CP & CIN Social Work - South,3rd Party Payments,Cash Support,BERKSHIRE WOMEN'S AID (BWA),RG1 ,22/06/2022,"1,508.16"
27145233,Lydiard Park,Streetsmart,Lydiard : Hotel Operations,Supplies and Services,Fees,BERRY MARKETING SERVICES LTD T/A VENUEDIRECTORY.COM,BH8 ,10/06/2022,900
26414233,Social Care,"Children, Families and Community Health Services",Placement - Care Leaver Team,Transport Costs,Client Costs of Mileage,BESPOKE GUARDIANS LTD,SN6 ,08/06/2022,"1,184.40"
28242233,Social Care,"Children, Families and Community Health Services",Looked After Children Service,3rd Party Payments,Personal Needs,BESPOKE GUARDIANS LTD,SN6 ,15/06/2022,"4,853.60"
28666233,Libraries,Inclusion and Achievement,Library Delivery,Supplies and Services,Repairs & Maintenance,BIBLIOTHECA LTD,SK8 ,17/06/2022,"3,000.00"
25804233,Libraries,Inclusion and Achievement,Library Delivery,Supplies and Services,Repairs & Maintenance,BIBLIOTHECA LTD,SK8 ,01/06/2022,"7,500.00"
26011233,Learning Disabilities,Adults,LD Day Services (OK4U),Premises Costs,Waste,BIFFA WASTE SERVICES LTD,HP12,01/06/2022,951.21
26742233,Supported Employment,Housing Services,EW - Timber,Supplies and Services,Materials,BIRKDALE SALES,HP14,08/06/2022,790.46
25123233,Schools - Primary,DSG Skills and Attainment,Primary School Budgets,Supplies and Services,Payments to Educational Bodies,BISHOPSTONE C E PRIMARY SCHOOL,SN6 ,01/06/2022,911.25
28513236,DSG Other Funding,DSG Skills and Attainment,DFE Additional Grants,3rd Party Payments,Payment of Pupil Premium to school,BISHOPSTONE C E PRIMARY SCHOOL,SN6 ,17/06/2022,808
28508237,Schools - Primary,DSG Skills and Attainment,Primary School Budgets,3rd Party Payments,Mainstream Delegated Funding,BISHOPSTONE C E PRIMARY SCHOOL,SN6 ,17/06/2022,"26,319.00"
25120241,Schools - Primary,DSG Skills and Attainment,Primary School Budgets,Supplies and Services,Payments to Educational Bodies,BISHOPSTONE C E PRIMARY SCHOOL,SN6 ,01/06/2022,"6,837.00"
25121241,Schools - Primary,DSG Skills and Attainment,Primary School Budgets,Supplies and Services,Payments to Educational Bodies,BISHOPSTONE C E PRIMARY SCHOOL,SN6 ,01/06/2022,500
30340242,DSG Other Funding,DSG Skills and Attainment,DFE Additional Grants,Supplies and Services,Payments to Educational Bodies,BISHOPSTONE C E PRIMARY SCHOOL,SN6 ,27/06/2022,"3,504.00"
28607233,Customer Strategy & Operations,"People, Culture and Organisational Resilience",Cemeteries & Crematoria,Supplies and Services,Grants to Organisations,BISHOPSTONE PARISH COUNCIL,SN1 ,17/06/2022,"1,250.00"
26675233,Streetsmart,Streetsmart,Waterside Fleet Hires,Transport Costs,Vehicle Hire / Contract,BLAKEDALE LTD,PR7 ,08/06/2022,770
30434233,Landscaping & Open Space,Culture & Heritage & Art,Moredon Recreation - Multi Sports Hub,Capital,Contractor Payments,BLB KILMINSTER BEER LLP,SN1 ,27/06/2022,"8,200.00"
30441233,Town Centre,"Economy, Growth and Place",Economic Development,Supplies and Services,Consultants,BLUE HORIZON VENTURES LIMITED,KT8 ,27/06/2022,"1,068.75"
27365233,Town Centre,"Economy, Growth and Place",Economic Development,Supplies and Services,Consultants,BLUE HORIZON VENTURES LIMITED,KT8 ,10/06/2022,"1,465.00"
30178235,Social Care,"Children, Families and Community Health Services",External Placements,3rd Party Payments,Independent Fostering Agency Placements,BLUE SKY,HA1 ,24/06/2022,"3,318.90"
30176240,Social Care,"Children, Families and Community Health Services",External Placements,3rd Party Payments,Parent & Child Placements,BLUE SKY,HA1 ,24/06/2022,"6,546.60"
30178233,Social Care,"Children, Families and Community Health Services",External Placements,3rd Party Payments,Independent Fostering Agency Placements,BLUE SKY,HA1 ,24/06/2022,"5,292.90"
30176242,Social Care,"Children, Families and Community Health Services",External Placements,3rd Party Payments,Independent Fostering Agency Placements,BLUE SKY,HA1 ,24/06/2022,"6,300.00"
30176239,Social Care,"Children, Families and Community Health Services",External Placements,3rd Party Payments,Parent & Child Placements,BLUE SKY,HA1 ,24/06/2022,"6,764.82"
30176241,Social Care,"Children, Families and Community Health Services",External Placements,3rd Party Payments,Independent Fostering Agency Placements,BLUE SKY,HA1 ,24/06/2022,"6,510.00"
30177233,Social Care,"Children, Families and Community Health Services",External Placements,3rd Party Payments,Independent Fostering Agency Placements,BLUE SKY,HA1 ,24/06/2022,"5,469.33"
30178234,Social Care,"Children, Families and Community Health Services",External Placements,3rd Party Payments,Independent Fostering Agency Placements,BLUE SKY,HA1 ,24/06/2022,"3,429.53"
28869239,Physical Support,Adults,Physical Support 65 and over,3rd Party Payments,Residential Care,BLUEBELLS RESIDENTIAL HOME,SN25,20/06/2022,"3,818.88"
28869239,Mental Health,Adults,Mental Health 65 and over,3rd Party Payments,Residential Care,BLUEBELLS RESIDENTIAL HOME,SN25,20/06/2022,"3,800.00"
28869239,Physical Support,Adults,Physical Support 65 and over,Income,Client Contribution - Residential,BLUEBELLS RESIDENTIAL HOME,SN25,20/06/2022,"-1,140.68"
28869239,Physical Support,Adults,Physical Support 65 and over,Income,Client Contribution - Residential,BLUEBELLS RESIDENTIAL HOME,SN25,20/06/2022,-688.8
28869239,Physical Support,Adults,Physical Support 65 and over,3rd Party Payments,Residential Care,BLUEBELLS RESIDENTIAL HOME,SN25,20/06/2022,"4,920.00"
23588266,Learning Disabilities,Adults,Learning Disability 26 - 64,3rd Party Payments,Personal Budget - Domiciliary care,BLUEBIRD CARE (SWINDON),SN25,15/06/2022,636.9
27224233,Physical Support,Adults,Physical Support 65 and over,3rd Party Payments,Carers,BLUEBIRD CARE (SWINDON),SN25,15/06/2022,514.24
23588265,Learning Disabilities,Adults,Learning Disability 26 - 64,3rd Party Payments,Personal Budget - Domiciliary care,BLUEBIRD CARE (SWINDON),SN25,15/06/2022,-644.4
27223264,Learning Disabilities,Adults,Learning Disability 26 - 64,3rd Party Payments,Personal Budget - Domiciliary care,BLUEBIRD CARE (SWINDON),SN25,15/06/2022,893.74
23928236,Learning Disabilities,Adults,Learning Disability 26 - 64,3rd Party Payments,Personal Budget - Domiciliary care,BLUEBIRD CARE (SWINDON),SN25,15/06/2022,-647.4
23928237,Learning Disabilities,Adults,Learning Disability 26 - 64,3rd Party Payments,Personal Budget - Domiciliary care,BLUEBIRD CARE (SWINDON),SN25,15/06/2022,636.9
27223274,Physical Support,Adults,Physical Support 65 and over,3rd Party Payments,Personal Budget - Domiciliary care,BLUEBIRD CARE (SWINDON),SN25,15/06/2022,"1,206.24"
27223270,Learning Disabilities,Adults,Learning Disability 26 - 64,3rd Party Payments,Personal Budget - Domiciliary care,BLUEBIRD CARE (SWINDON),SN25,15/06/2022,567.84
27223269,Learning Disabilities,Adults,Learning Disability 26 - 64,3rd Party Payments,Personal Budget - Domiciliary care,BLUEBIRD CARE (SWINDON),SN25,15/06/2022,760.12
28869334,Mental Health,Adults,Mental Health 65 and over,3rd Party Payments,Residential Care,BOLEALLER HOUSE LTD,EX15,20/06/2022,"4,719.32"
27514233,Physical Support,Adults,Fessey House,Supplies and Services,Food,BOOKER LIMITED,CH5 ,13/06/2022,270.54
27514233,Physical Support,Adults,Fessey House,Supplies and Services,Food,BOOKER LIMITED,CH5 ,13/06/2022,221.55
28315233,Social Care,"Children, Families and Community Health Services",Looked After Children Service,Supplies and Services,Interpretation,BOSTICO INTERNATIONAL COMPANY,BH1 ,15/06/2022,"1,565.38"
27730233,Social Care,"Children, Families and Community Health Services",CP & CIN Social Work - South,Supplies and Services,Interpretation,BOSTICO INTERNATIONAL COMPANY,BH1 ,15/06/2022,"7,241.97"
28313233,Customer Strategy & Operations,"People, Culture and Organisational Resilience",Cemeteries & Crematoria,Supplies and Services,Materials,BOSWELL BROS (SALISBURY) LTD,SP4 ,15/06/2022,"1,945.60"
28869278,Physical Support,Adults,Physical Support 18 - 64,Income,Client Contribution - Nursing,BOTHWELLS LTD,HA6 ,20/06/2022,-425.6
28869278,Physical Support,Adults,Physical Support 65 and over,3rd Party Payments,Nursing Care,BOTHWELLS LTD,HA6 ,20/06/2022,"2,920.32"
28869278,Physical Support,Adults,Physical Support 65 and over,Income,Client Contribution - Nursing,BOTHWELLS LTD,HA6 ,20/06/2022,"-2,727.48"
28869278,Physical Support,Adults,Physical Support 65 and over,Income,Client Contribution - Nursing,BOTHWELLS LTD,HA6 ,20/06/2022,217.86
28869278,Physical Support,Adults,Physical Support 18 - 64,3rd Party Payments,Nursing Care,BOTHWELLS LTD,HA6 ,20/06/2022,"2,384.04"
28869278,Physical Support,Adults,Physical Support 18 - 64,3rd Party Payments,Nursing Care,BOTHWELLS LTD,HA6 ,20/06/2022,"4,079.08"
28869278,Physical Support,Adults,Physical Support 65 and over,Income,Client Contribution - Nursing,BOTHWELLS LTD,HA6 ,20/06/2022,"-7,431.04"
28869278,Physical Support,Adults,Physical Support 65 and over,3rd Party Payments,Nursing Care,BOTHWELLS LTD,HA6 ,20/06/2022,"3,733.20"
28869278,Physical Support,Adults,Physical Support 65 and over,Income,Client Contribution - Nursing,BOTHWELLS LTD,HA6 ,20/06/2022,-569.4
28869278,Physical Support,Adults,Physical Support 65 and over,Income,Client Contribution - Nursing,BOTHWELLS LTD,HA6 ,20/06/2022,-659.8
28869278,Physical Support,Adults,Physical Support 65 and over,Income,Client Contribution - Nursing,BOTHWELLS LTD,HA6 ,20/06/2022,"1,830.00"
28869278,Physical Support,Adults,Physical Support 65 and over,Income,Client Contribution - Nursing,BOTHWELLS LTD,HA6 ,20/06/2022,-523.8
28869278,Physical Support,Adults,Physical Support 18 - 64,3rd Party Payments,Nursing Care,BOTHWELLS LTD,HA6 ,20/06/2022,"2,560.12"
28869278,Physical Support,Adults,Physical Support 65 and over,Income,Client Contribution - Nursing,BOTHWELLS LTD,HA6 ,20/06/2022,-608.8
28869278,Physical Support,Adults,Physical Support 65 and over,Income,Client Contribution - Nursing,BOTHWELLS LTD,HA6 ,20/06/2022,-648.28
28869278,Physical Support,Adults,Physical Support 18 - 64,Income,Client Contribution - Nursing,BOTHWELLS LTD,HA6 ,20/06/2022,-414.2
28869278,Physical Support,Adults,Physical Support 65 and over,Income,Client Contribution - Nursing,BOTHWELLS LTD,HA6 ,20/06/2022,-909.16
28869278,Physical Support,Adults,Physical Support 65 and over,3rd Party Payments,Nursing Care,BOTHWELLS LTD,HA6 ,20/06/2022,"2,560.12"
28869278,Physical Support,Adults,Physical Support 65 and over,Income,Client Contribution - Nursing,BOTHWELLS LTD,HA6 ,20/06/2022,"5,185.00"
28869278,Physical Support,Adults,Physical Support 65 and over,Income,Client Contribution - Nursing,BOTHWELLS LTD,HA6 ,20/06/2022,-312.23
29389235,High Needs Block,DSG Skills and Attainment,SEN Resourcing Assessment Panel,3rd Party Payments,Top up funding - Maintained providers Pre 16,BRAMBLE HOUSE DAY NURSERY LTD,SN2 ,22/06/2022,624
28080234,Social Care,"Children, Families and Community Health Services",External Placements,3rd Party Payments,Residential Care,BRANAS ISAF LIMITED,EN6 ,15/06/2022,"23,785.80"
27732233,Museums & Heritage,Culture & Heritage,Steam:Income Generation,Supplies and Services,Goods for resale,BRANDART LTD,CO4 ,15/06/2022,437.5
26064234,Traded Services,Inclusion and Achievement,Plas Pencelli Outdoor Education Centre,Supplies and Services,Fees,BRECON BEACONS NATIONAL PARK AUTHORITY,LD3 ,06/06/2022,583.33
28513241,DSG Other Funding,DSG Skills and Attainment,DFE Additional Grants,3rd Party Payments,Payment of Pupil Premium to school,BRIDLEWOOD PRIMARY SCHOOL,SN25,17/06/2022,"4,152.00"
25389242,DSG Other Funding,DSG Skills and Attainment,DFE Additional Grants,Supplies and Services,Payments to Educational Bodies,BRIDLEWOOD PRIMARY SCHOOL,SN25,01/06/2022,"1,439.00"
25123238,Schools - Primary,DSG Skills and Attainment,Primary School Budgets,Supplies and Services,Payments to Educational Bodies,BRIDLEWOOD PRIMARY SCHOOL,SN25,01/06/2022,"2,531.25"
25388242,DSG Other Funding,DSG Skills and Attainment,DFE Additional Grants,Supplies and Services,Payments to Educational Bodies,BRIDLEWOOD PRIMARY SCHOOL,SN25,01/06/2022,509
27234242,Early Years Block,DSG Skills and Attainment,Free Nursery Education Commissioning - three & four  year olds,3rd Party Payments,Contracts - Child Care,BRIDLEWOOD PRIMARY SCHOOL,SN25,15/06/2022,"6,834.35"
28331236,High Needs Block,DSG Skills and Attainment,SEN Resourcing Assessment Panel,3rd Party Payments,Top up funding - Maintained providers Pre 16,BRIDLEWOOD PRIMARY SCHOOL,SN25,15/06/2022,"6,428.67"
30340247,DSG Other Funding,DSG Skills and Attainment,DFE Additional Grants,Supplies and Services,Payments to Educational Bodies,BRIDLEWOOD PRIMARY SCHOOL,SN25,27/06/2022,"11,486.00"
25120246,Schools - Primary,DSG Skills and Attainment,Primary School Budgets,Supplies and Services,Payments to Educational Bodies,BRIDLEWOOD PRIMARY SCHOOL,SN25,01/06/2022,"7,417.00"
28508242,Schools - Primary,DSG Skills and Attainment,Primary School Budgets,3rd Party Payments,Mainstream Delegated Funding,BRIDLEWOOD PRIMARY SCHOOL,SN25,17/06/2022,"75,276.00"
25121246,Schools - Primary,DSG Skills and Attainment,Primary School Budgets,Supplies and Services,Payments to Educational Bodies,BRIDLEWOOD PRIMARY SCHOOL,SN25,01/06/2022,"1,123.75"
27078233,Streetsmart,Streetsmart,Coate Water,Supplies and Services,Materials,BRISTOL CITY COUNCIL,BS1 ,10/06/2022,450
27078233,Streetsmart,Streetsmart,Coate Water,Supplies and Services,Materials,BRISTOL CITY COUNCIL,BS1 ,10/06/2022,"2,115.00"
27078233,Streetsmart,Streetsmart,Coate Water,Supplies and Services,Materials,BRISTOL CITY COUNCIL,BS1 ,10/06/2022,40
27078233,Streetsmart,Streetsmart,Coate Water,Supplies and Services,Materials,BRISTOL CITY COUNCIL,BS1 ,10/06/2022,96
27078233,Streetsmart,Streetsmart,Coate Water,Supplies and Services,Materials,BRISTOL CITY COUNCIL,BS1 ,10/06/2022,130
27078233,Streetsmart,Streetsmart,Coate Water,Supplies and Services,Materials,BRISTOL CITY COUNCIL,BS1 ,10/06/2022,75
27078233,Streetsmart,Streetsmart,Coate Water,Supplies and Services,Materials,BRISTOL CITY COUNCIL,BS1 ,10/06/2022,35
27078233,Streetsmart,Streetsmart,Coate Water,Supplies and Services,Materials,BRISTOL CITY COUNCIL,BS1 ,10/06/2022,66
27078233,Streetsmart,Streetsmart,Coate Water,Supplies and Services,Materials,BRISTOL CITY COUNCIL,BS1 ,10/06/2022,"1,450.00"
28170233,Other Repairs,Repairs,Unallocated job costs from OPEN system,3rd Party Payments,Contract Payments,BRISTOL FIRE,BS37,15/06/2022,"1,733.50"
29896233,,,Balance Sheet,Balance Sheet & Recharge,Mobile phone invoices,BRITISH TELECOMMUNICATIONS PLC,NE82,22/06/2022,"6,833.24"
29895233,,,Balance Sheet,Balance Sheet & Recharge,Mobile phone invoices,BRITISH TELECOMMUNICATIONS PLC,NE82,22/06/2022,"16,135.75"
23257233,,,Balance Sheet,Balance Sheet & Recharge,British Telecom invoices,BRITISH TELECOMMUNICATIONS PLC,NE82,22/06/2022,"-17,040.78"
28395233,Corporate,Corporate Finance,Corporate Financial Management,Supplies and Services,Fees,BROADSTONE CONSULTANTS & ACTUARIES LTD,BS1 ,15/06/2022,"2,352.00"
28406233,Property Management,Property,Corporate Repairs & Maintenance Programme,Premises Costs,Maintenance - Buildings,BROADWATER TECHNOLOGIES LTD,BS37,15/06/2022,650
28352239,High Needs Block,DSG Skills and Attainment,Post 16 - New Responsibilties,3rd Party Payments,Independent Service Provider- Post 16,BRUNEL EDUCATION,SN25,15/06/2022,"111,805.07"
28351235,High Needs Block,DSG Skills and Attainment,SEN Resourcing Assessment Panel,3rd Party Payments,Top up funding - Academies and Free Schools Post 16,REDACTED PERSONAL DATA,SN25,15/06/2022,"43,014.99"
25969234,SEND Funds,Skills & Attainment,Education High Needs Provision,Capital,Contractor Payments,REDACTED PERSONAL DATA,SN25,01/06/2022,"4,439.83"
28522233,High Needs Block,DSG Skills and Attainment,Advisory Teacher Services,Supplies and Services,Payments to Educational Bodies,REDACTED PERSONAL DATA,SN25,17/06/2022,"7,250.00"
25970233,SEND Funds,Skills & Attainment,Education High Needs Provision,Capital,Contractor Payments,REDACTED PERSONAL DATA,SN25,01/06/2022,"6,412.83"
28343239,High Needs Block,DSG Skills and Attainment,SEN Resourcing Assessment Panel,3rd Party Payments,Top up funding - Academies and Free Schools Pre 16,REDACTED PERSONAL DATA,SN25,15/06/2022,"115,190.71"
28344233,High Needs Block,DSG Skills and Attainment,SEN Resourcing Assessment Panel,3rd Party Payments,Top up funding - Academies and Free Schools Pre 16,REDACTED PERSONAL DATA,SN25,15/06/2022,"32,916.66"
28343237,High Needs Block,DSG Skills and Attainment,SEN Resourcing Assessment Panel,3rd Party Payments,Top up funding - Academies and Free Schools Pre 16,REDACTED PERSONAL DATA,SN25,15/06/2022,"116,402.30"
28343238,High Needs Block,DSG Skills and Attainment,SEN Resourcing Assessment Panel,3rd Party Payments,Top up funding - Academies and Free Schools Pre 16,REDACTED PERSONAL DATA,SN25,15/06/2022,"99,605.09"
28343242,High Needs Block,DSG Skills and Attainment,SEN Resourcing Assessment Panel,3rd Party Payments,Top up funding - Academies and Free Schools Pre 16,REDACTED PERSONAL DATA,SN25,15/06/2022,"125,382.76"
28523233,High Needs Block,DSG Skills and Attainment,Advisory Teacher Services,Supplies and Services,Payments to Educational Bodies,REDACTED PERSONAL DATA,SN25,17/06/2022,"11,317.00"
26928233,High Needs Block,DSG Skills and Attainment,SEN Resourcing Assessment Panel,Supplies and Services,Services,REDACTED PERSONAL DATA,SN2 ,10/06/2022,"4,760.54"
29884233,Streetsmart,Streetsmart,Lydiard House - Maintenance,Capital,Contractor Payments,BRUNEL SURVEYS LTD,CM20,22/06/2022,"1,550.00"
30608233,Supported Employment,Housing Services,EW - Timber,Supplies and Services,Materials,BSW TIMBER LIMITED,TD4 ,29/06/2022,"2,016.63"
28101233,Supported Employment,Housing Services,EW - Timber,Supplies and Services,Materials,BSW TIMBER LIMITED,TD4 ,15/06/2022,"10,111.81"
28807233,NEV,"Economy, Growth and Place",Southern Connector Road,Capital,Contractor Payments,BUCKINGHAM GROUP CONTRACTING LIMITED,MK18,17/06/2022,"396,902.80"
27635233,Town Centre,"Economy, Growth and Place",Economic Development,Supplies and Services,Subscriptions,BUCKINGHAMSHIRE COUNTY COUNCIL,HP19,13/06/2022,"31,530.00"
29389234,High Needs Block,DSG Skills and Attainment,SEN Resourcing Assessment Panel,3rd Party Payments,Top up funding - Maintained providers Pre 16,"BUSY BEES, BROOME MANOR",SN3 ,22/06/2022,780
29362233,Early Years Block,DSG Skills and Attainment,Free Nursery Education Commissioning - three & four  year olds,3rd Party Payments,Contracts - Child Care,"BUSY BEES, PEATMOOR",SN5 ,22/06/2022,"1,500.00"
29361234,Early Years Block,DSG Skills and Attainment,Free Nursery Education Commissioning - three & four  year olds,3rd Party Payments,Contracts - Child Care,"BUSY BEES, PEATMOOR",SN5 ,22/06/2022,950
28407233,Learning Disabilities,Adults,Learning Disability 26 - 64,3rd Party Payments,Supported Accommodation Scheme,REDACTED PERSONAL DATA,SN3 ,22/06/2022,"2,573.70"
28869293,Learning Disabilities,Adults,Learning Disability 65 and over,3rd Party Payments,Residential Care,C.H.O.I.C.E LTD,RG12,20/06/2022,"8,447.72"
28869294,Learning Disabilities,Adults,Learning Disability 65 and over,Income,Client Contribution - Residential,C.H.O.I.C.E LTD,RG12,20/06/2022,-636.32
28869291,Learning Disabilities,Adults,Learning Disability 26 - 64,3rd Party Payments,Residential Care,C.H.O.I.C.E LTD,RG12,20/06/2022,"6,668.68"
28869295,Learning Disabilities,Adults,Learning Disability 26 - 64,Income,Client Contribution - Residential,C.H.O.I.C.E LTD,RG12,20/06/2022,-414.2
28869292,Learning Disabilities,Adults,Learning Disability 26 - 64,Income,Client Contribution - Residential,C.H.O.I.C.E LTD,RG12,20/06/2022,-415
28869293,Learning Disabilities,Adults,Learning Disability 65 and over,3rd Party Payments,Residential Care,C.H.O.I.C.E LTD,RG12,20/06/2022,"8,898.76"
28869294,Learning Disabilities,Adults,Learning Disability 65 and over,Income,Client Contribution - Residential,C.H.O.I.C.E LTD,RG12,20/06/2022,-550.84
28869295,Physical Support,Adults,Physical Support 18 - 64,Income,Client Contribution - Residential,C.H.O.I.C.E LTD,RG12,20/06/2022,-414.2
28869293,Learning Disabilities,Adults,Learning Disability 65 and over,Income,Client Contribution - Residential,C.H.O.I.C.E LTD,RG12,20/06/2022,-607.6
28869295,Physical Support,Adults,Physical Support 18 - 64,3rd Party Payments,Residential Care,C.H.O.I.C.E LTD,RG12,20/06/2022,"10,222.80"
28869292,Learning Disabilities,Adults,Learning Disability 26 - 64,3rd Party Payments,Residential Care,C.H.O.I.C.E LTD,RG12,20/06/2022,"10,940.40"
28869293,Learning Disabilities,Adults,Learning Disability 26 - 64,Income,Client Contribution - Residential,C.H.O.I.C.E LTD,RG12,20/06/2022,-595.32
28869294,Learning Disabilities,Adults,Learning Disability 65 and over,3rd Party Payments,Residential Care,C.H.O.I.C.E LTD,RG12,20/06/2022,"8,340.72"
28869294,Learning Disabilities,Adults,Learning Disability 26 - 64,Income,Client Contribution - Residential,C.H.O.I.C.E LTD,RG12,20/06/2022,-391
28869295,Learning Disabilities,Adults,Learning Disability 26 - 64,3rd Party Payments,Residential Care,C.H.O.I.C.E LTD,RG12,20/06/2022,"10,934.04"
28869295,Learning Disabilities,Adults,Learning Disability 26 - 64,Income,Client Contribution - Residential,C.H.O.I.C.E LTD,RG12,20/06/2022,-207.6
28869290,Learning Disabilities,Adults,Learning Disability 26 - 64,Income,Client Contribution - Residential,C.H.O.I.C.E LTD,RG12,20/06/2022,-298.2
28869295,Learning Disabilities,Adults,Learning Disability 26 - 64,3rd Party Payments,Residential Care,C.H.O.I.C.E LTD,RG12,20/06/2022,"11,677.40"
28869294,Learning Disabilities,Adults,Learning Disability 26 - 64,3rd Party Payments,Residential Care,C.H.O.I.C.E LTD,RG12,20/06/2022,"6,825.52"
28869291,Learning Disabilities,Adults,Learning Disability 26 - 64,3rd Party Payments,Residential Care,C.H.O.I.C.E LTD,RG12,20/06/2022,"6,691.00"
28869290,Learning Disabilities,Adults,Learning Disability 26 - 64,3rd Party Payments,Residential Care,C.H.O.I.C.E LTD,RG12,20/06/2022,"9,147.40"
28869291,Learning Disabilities,Adults,Learning Disability 26 - 64,Income,Client Contribution - Residential,C.H.O.I.C.E LTD,RG12,20/06/2022,-423
28869294,Learning Disabilities,Adults,Learning Disability 65 and over,3rd Party Payments,Residential Care,C.H.O.I.C.E LTD,RG12,20/06/2022,"9,474.20"
30176236,Social Care,"Children, Families and Community Health Services",External Placements,3rd Party Payments,Residential Care,CALCOT SERVICES FOR CHILDREN LTD,RG7 ,24/06/2022,"31,797.01"
30175234,Social Care,"Children, Families and Community Health Services",External Placements,3rd Party Payments,Residential Care,CALCOT SERVICES FOR CHILDREN LTD,RG7 ,24/06/2022,"-24,299.94"
30176238,Social Care,"Children, Families and Community Health Services",External Placements,3rd Party Payments,Residential Care,CALCOT SERVICES FOR CHILDREN LTD,RG7 ,24/06/2022,"28,931.40"
28077237,Social Care,"Children, Families and Community Health Services",External Placements,3rd Party Payments,Residential Care,CALCOT SERVICES FOR CHILDREN LTD,RG7 ,15/06/2022,"-7,150.00"
30175233,Social Care,"Children, Families and Community Health Services",External Placements,3rd Party Payments,Residential Care,CALCOT SERVICES FOR CHILDREN LTD,RG7 ,24/06/2022,"44,214.14"
30176235,Social Care,"Children, Families and Community Health Services",External Placements,3rd Party Payments,Residential Care,CALCOT SERVICES FOR CHILDREN LTD,RG7 ,24/06/2022,"28,417.20"
30176237,Social Care,"Children, Families and Community Health Services",External Placements,3rd Party Payments,Residential Care,CALCOT SERVICES FOR CHILDREN LTD,RG7 ,24/06/2022,"-1,284.33"
30176233,Social Care,"Children, Families and Community Health Services",External Placements,3rd Party Payments,Residential Care,CALCOT SERVICES FOR CHILDREN LTD,RG7 ,24/06/2022,"31,265.67"
30176234,Social Care,"Children, Families and Community Health Services",External Placements,3rd Party Payments,Residential Care,CALCOT SERVICES FOR CHILDREN LTD,RG7 ,24/06/2022,"-1,904.24"
28077236,Social Care,"Children, Families and Community Health Services",External Placements,3rd Party Payments,Residential Care,CALCOT SERVICES FOR CHILDREN LTD,RG7 ,15/06/2022,"29,450.00"
31040442,Learning Disabilities,Adults,Learning Disability 26 - 64,Transfer Payments,Personal Budget - Direct Payments - Domiciliary Care,REDACTED PERSONAL DATA,SP11,29/06/2022,"1,844.31"
31040529,Learning Disabilities,Adults,Learning Disability 26 - 64,Transfer Payments,Personal Budget - Direct Payments - Domiciliary Care,REDACTED PERSONAL DATA,SP11,29/06/2022,631.33
28079233,Social Care,"Children, Families and Community Health Services",External Placements,3rd Party Payments,Residential Care,CAMBIAN CHILDCARE LTD,EN6 ,15/06/2022,"25,427.10"
28080233,Social Care,"Children, Families and Community Health Services",External Placements,3rd Party Payments,Residential Care,CAMBIAN CHILDCARE LTD,EN6 ,15/06/2022,"23,691.30"
24178233,DSG Other Funding,DSG Skills and Attainment,LAC pupil premium,Supplies and Services,Services,REDACTED PERSONAL DATA,EN6 ,06/06/2022,500
31019236,Physical Support,Adults,Physical Support 18 - 64,Transfer Payments,Personal Budget - Direct Payments - Domiciliary Care,REDACTED PERSONAL DATA,SN25,29/06/2022,832.29
28155233,Planned Maintenance Programme,HRA Capital Financing,Aids & Adaptations,Capital,Contractor Payments,CANTILLON GROUP LTD,SN25,15/06/2022,"3,481.23"
28155233,Planned Maintenance Programme,HRA Capital Financing,Aids & Adaptations,Capital,Contractor Payments,CANTILLON GROUP LTD,SN25,15/06/2022,"5,302.50"
28360234,Planned Maintenance Programme,HRA Capital Financing,Aids & Adaptations,Capital,Contractor Payments,CANTILLON GROUP LTD,SN25,15/06/2022,"5,140.93"
28155233,Planned Maintenance Programme,HRA Capital Financing,Aids & Adaptations,Capital,Contractor Payments,CANTILLON GROUP LTD,SN25,15/06/2022,"5,375.69"
28155233,Planned Maintenance Programme,HRA Capital Financing,Aids & Adaptations,Capital,Contractor Payments,CANTILLON GROUP LTD,SN25,15/06/2022,"3,943.47"
28155233,Planned Maintenance Programme,HRA Capital Financing,Aids & Adaptations,Capital,Contractor Payments,CANTILLON GROUP LTD,SN25,15/06/2022,"4,958.46"
28155233,Planned Maintenance Programme,HRA Capital Financing,Aids & Adaptations,Capital,Contractor Payments,CANTILLON GROUP LTD,SN25,15/06/2022,"3,240.74"
30422233,Void Repairs,Supervision & Management,Void Property Repairs,3rd Party Payments,Contract Payments,CANTILLON GROUP LTD,SN25,27/06/2022,"4,000.00"
28155233,Planned Maintenance Programme,HRA Capital Financing,Aids & Adaptations,Capital,Contractor Payments,CANTILLON GROUP LTD,SN25,15/06/2022,"4,869.92"
28155233,Planned Maintenance Programme,HRA Capital Financing,Aids & Adaptations,Capital,Contractor Payments,CANTILLON GROUP LTD,SN25,15/06/2022,"-20,000.00"
26472233,Planned Maintenance Programme,HRA Capital Financing,Aids & Adaptations,Capital,Contractor Payments,CANTILLON GROUP LTD,SN25,08/06/2022,414.33
28360234,Planned Maintenance Programme,HRA Capital Financing,Bathrooms,Capital,Contractor Payments,CANTILLON GROUP LTD,SN25,15/06/2022,"-4,000.00"
28360234,Planned Maintenance Programme,HRA Capital Financing,Bathrooms,Capital,Contractor Payments,CANTILLON GROUP LTD,SN25,15/06/2022,"5,113.99"
26472233,Planned Maintenance Programme,HRA Capital Financing,Planned Maintenance,Capital,Contractor Payments,CANTILLON GROUP LTD,SN25,08/06/2022,500
26472233,Planned Maintenance Programme,HRA Capital Financing,Planned Maintenance,Capital,Contractor Payments,CANTILLON GROUP LTD,SN25,08/06/2022,405.27
30480233,Void Repairs,Supervision & Management,Void Property Repairs,3rd Party Payments,Contract Payments,CANTILLON GROUP LTD,SN25,27/06/2022,"5,308.36"
30422233,Void Repairs,Supervision & Management,Void Property Repairs,3rd Party Payments,Contract Payments,CANTILLON GROUP LTD,SN25,27/06/2022,"2,021.49"
30422233,Void Repairs,Supervision & Management,Void Property Repairs,3rd Party Payments,Contract Payments,CANTILLON GROUP LTD,SN25,27/06/2022,"2,407.55"
28189233,Other Repairs,Repairs,Delivery Team & Overheads,Supplies and Services,Materials,CANTILLON GROUP LTD,SN25,15/06/2022,600
28155233,Planned Maintenance Programme,HRA Capital Financing,Bathrooms,Capital,Contractor Payments,CANTILLON GROUP LTD,SN25,15/06/2022,"4,029.96"
28360234,Planned Maintenance Programme,HRA Capital Financing,Bathrooms,Capital,Contractor Payments,CANTILLON GROUP LTD,SN25,15/06/2022,"4,000.00"
30480233,Void Repairs,Supervision & Management,Void Property Repairs,3rd Party Payments,Contract Payments,CANTILLON GROUP LTD,SN25,27/06/2022,"8,000.00"
28360234,Planned Maintenance Programme,HRA Capital Financing,Aids & Adaptations,Capital,Contractor Payments,CANTILLON GROUP LTD,SN25,15/06/2022,"5,044.94"
28155233,Planned Maintenance Programme,HRA Capital Financing,Aids & Adaptations,Capital,Contractor Payments,CANTILLON GROUP LTD,SN25,15/06/2022,"20,000.00"
28155233,Planned Maintenance Programme,HRA Capital Financing,Aids & Adaptations,Capital,Contractor Payments,CANTILLON GROUP LTD,SN25,15/06/2022,692.49
28155233,Planned Maintenance Programme,HRA Capital Financing,Aids & Adaptations,Capital,Contractor Payments,CANTILLON GROUP LTD,SN25,15/06/2022,"4,888.26"
28155233,Planned Maintenance Programme,HRA Capital Financing,Aids & Adaptations,Capital,Contractor Payments,CANTILLON GROUP LTD,SN25,15/06/2022,"5,586.38"
28155233,Planned Maintenance Programme,HRA Capital Financing,Aids & Adaptations,Capital,Contractor Payments,CANTILLON GROUP LTD,SN25,15/06/2022,"3,883.74"
28155233,Planned Maintenance Programme,HRA Capital Financing,Aids & Adaptations,Capital,Contractor Payments,CANTILLON GROUP LTD,SN25,15/06/2022,"3,661.34"
28155233,Planned Maintenance Programme,HRA Capital Financing,Aids & Adaptations,Capital,Contractor Payments,CANTILLON GROUP LTD,SN25,15/06/2022,"4,169.74"
28360234,Planned Maintenance Programme,HRA Capital Financing,Aids & Adaptations,Capital,Contractor Payments,CANTILLON GROUP LTD,SN25,15/06/2022,"3,422.71"
26472233,Planned Maintenance Programme,HRA Capital Financing,Planned Maintenance,Capital,Contractor Payments,CANTILLON GROUP LTD,SN25,08/06/2022,-500
26472233,Planned Maintenance Programme,HRA Capital Financing,Planned Maintenance,Capital,Contractor Payments,CANTILLON GROUP LTD,SN25,08/06/2022,209.72
26472233,Planned Maintenance Programme,HRA Capital Financing,Planned Maintenance,Capital,Contractor Payments,CANTILLON GROUP LTD,SN25,08/06/2022,281.59
30480233,Void Repairs,Supervision & Management,Void Property Repairs,3rd Party Payments,Contract Payments,CANTILLON GROUP LTD,SN25,27/06/2022,"12,384.65"
30422233,Void Repairs,Supervision & Management,Void Property Repairs,3rd Party Payments,Contract Payments,CANTILLON GROUP LTD,SN25,27/06/2022,"4,022.45"
28155233,Planned Maintenance Programme,HRA Capital Financing,Aids & Adaptations,Capital,Contractor Payments,CANTILLON GROUP LTD,SN25,15/06/2022,"4,846.81"
30480233,Void Repairs,Supervision & Management,Void Property Repairs,3rd Party Payments,Contract Payments,CANTILLON GROUP LTD,SN25,27/06/2022,"-8,000.00"
30480233,Void Repairs,Supervision & Management,Void Property Repairs,3rd Party Payments,Contract Payments,CANTILLON GROUP LTD,SN25,27/06/2022,"4,282.85"
30422233,Void Repairs,Supervision & Management,Void Property Repairs,3rd Party Payments,Contract Payments,CANTILLON GROUP LTD,SN25,27/06/2022,"-4,000.00"
28360234,Planned Maintenance Programme,HRA Capital Financing,Aids & Adaptations,Capital,Contractor Payments,CANTILLON GROUP LTD,SN25,15/06/2022,"4,462.27"
30480233,Planned Maintenance Programme,HRA Capital Financing,Kitchens,Capital,Contractor Payments,CANTILLON GROUP LTD,SN25,27/06/2022,"2,019.04"
28934233,Revenues & Benefits,Revenues & Benefits,Benefits,3rd Party Payments,Capita Strategic Partnership Service Charges,CAPITA BUSINESS SERVICES LTD,DL1 ,17/06/2022,"11,057.74"
27604233,Revenues & Benefits,Revenues & Benefits,Benefits,3rd Party Payments,Capita Strategic Partnership Service Charges,CAPITA BUSINESS SERVICES LTD,DL1 ,13/06/2022,"38,453.76"
28934233,Revenues & Benefits,Revenues & Benefits,Revenues,3rd Party Payments,Capita Strategic Partnership Service Charges,CAPITA BUSINESS SERVICES LTD,DL1 ,17/06/2022,"12,838.24"
28934233,Revenues & Benefits,Revenues & Benefits,Revenues,3rd Party Payments,Capita Strategic Partnership Service Charges,CAPITA BUSINESS SERVICES LTD,DL1 ,17/06/2022,"110,984.36"
28934233,Revenues & Benefits,Revenues & Benefits,Benefits,3rd Party Payments,Capita Strategic Partnership Service Charges,CAPITA BUSINESS SERVICES LTD,DL1 ,17/06/2022,"2,613.00"
28934233,Revenues & Benefits,Revenues & Benefits,Revenues,3rd Party Payments,Capita Strategic Partnership Service Charges,CAPITA BUSINESS SERVICES LTD,DL1 ,17/06/2022,"2,075.00"
27604233,Revenues & Benefits,Revenues & Benefits,Revenues,3rd Party Payments,Capita Strategic Partnership Service Charges,CAPITA BUSINESS SERVICES LTD,DL1 ,13/06/2022,"24,248.27"
28934233,Revenues & Benefits,Revenues & Benefits,Benefits,3rd Party Payments,Capita Strategic Partnership Service Charges,CAPITA BUSINESS SERVICES LTD,DL1 ,17/06/2022,"196,361.57"
28829233,Social Care,"Children, Families and Community Health Services",External Placements,3rd Party Payments,Independent Fostering Agency Placements,CAPSTONE FOSTER CARE (SW) LTD,TQ12,17/06/2022,"3,471.30"
28827233,Social Care,"Children, Families and Community Health Services",External Placements,3rd Party Payments,Independent Fostering Agency Placements,CAPSTONE FOSTER CARE (SW) LTD,TQ12,17/06/2022,"3,471.30"
28828233,Social Care,"Children, Families and Community Health Services",External Placements,3rd Party Payments,Independent Fostering Agency Placements,CAPSTONE FOSTER CARE (SW) LTD,TQ12,17/06/2022,"3,165.13"
28427233,Streetsmart,Streetsmart,Waterside Fleet Workshops,Supplies and Services,Equipment,CAR AND TRUCK SERVICES (SWINDON) LTD,SN1 ,17/06/2022,186.74
28427233,Streetsmart,Streetsmart,Waterside Fleet Workshops,Supplies and Services,Equipment,CAR AND TRUCK SERVICES (SWINDON) LTD,SN1 ,17/06/2022,16.08
29986233,Streetsmart,Streetsmart,Waterside Fleet Workshops,Supplies and Services,Equipment,CAR AND TRUCK SERVICES (SWINDON) LTD,SN1 ,22/06/2022,729.81
28427233,Streetsmart,Streetsmart,Waterside Fleet Workshops,Supplies and Services,Equipment,CAR AND TRUCK SERVICES (SWINDON) LTD,SN1 ,17/06/2022,74.16
28427233,Streetsmart,Streetsmart,Waterside Fleet Workshops,Supplies and Services,Equipment,CAR AND TRUCK SERVICES (SWINDON) LTD,SN1 ,17/06/2022,71.68
28427233,Streetsmart,Streetsmart,Waterside Fleet Workshops,Supplies and Services,Equipment,CAR AND TRUCK SERVICES (SWINDON) LTD,SN1 ,17/06/2022,244
28528234,Disabled Children,"Children, Families and Community Health Services",ICES Paediatric,Supplies and Services,Equipment,CARE & INDEPENDENCE SYSTEMS LTD,OX26,17/06/2022,440.8
25546233,Disabled Children,"Children, Families and Community Health Services",ICES Paediatric,Supplies and Services,Equipment,CARE & INDEPENDENCE SYSTEMS LTD,OX26,01/06/2022,"1,802.00"
25473233,Disabled Children,"Children, Families and Community Health Services",ICES Paediatric,Supplies and Services,Equipment,CARE & INDEPENDENCE SYSTEMS LTD,OX26,01/06/2022,453.3
28528234,Disabled Children,"Children, Families and Community Health Services",ICES Paediatric,Supplies and Services,Equipment,CARE & INDEPENDENCE SYSTEMS LTD,OX26,17/06/2022,12.5
28528234,Disabled Children,"Children, Families and Community Health Services",ICES Paediatric,Supplies and Services,Equipment,CARE & INDEPENDENCE SYSTEMS LTD,OX26,17/06/2022,234
28869248,Learning Disabilities,Adults,Learning Disability 65 and over,3rd Party Payments,Residential Care,CARE LTD,BS16,20/06/2022,"6,440.36"
28869248,Learning Disabilities,Adults,Learning Disability 65 and over,Income,Client Contribution - Residential,CARE LTD,BS16,20/06/2022,-855
28869372,Learning Disabilities,Adults,Learning Disability 26 - 64,3rd Party Payments,Supported Living,CAREFORYOU LTD,N13 ,20/06/2022,"2,442.00"
28869372,Learning Disabilities,Adults,Learning Disability 26 - 64,3rd Party Payments,Supported Living,CAREFORYOU LTD,N13 ,20/06/2022,"15,169.07"
26367233,Physical Support,Adults,Physical Support 18 - 64,3rd Party Payments,Personal Budget - Domiciliary care,CAREWATCH (SWINDON),BA14,08/06/2022,"2,926.36"
26363235,Physical Support,Adults,Physical Support 65 and over,3rd Party Payments,Personal Budget - Domiciliary care,CAREWATCH (SWINDON),BA14,08/06/2022,793.2
26365233,Physical Support,Adults,Physical Support 65 and over,3rd Party Payments,Personal Budget - Domiciliary care,CAREWATCH (SWINDON),BA14,08/06/2022,"1,286.08"
26363233,Physical Support,Adults,Physical Support 65 and over,3rd Party Payments,Personal Budget - Domiciliary care,CAREWATCH (SWINDON),BA14,08/06/2022,376.53
26363236,Physical Support,Adults,Physical Support 65 and over,3rd Party Payments,Personal Budget - Domiciliary care,CAREWATCH (SWINDON),BA14,08/06/2022,"1,509.56"
26362234,Physical Support,Adults,Physical Support 65 and over,3rd Party Payments,Personal Budget - Domiciliary care,CAREWATCH (SWINDON),BA14,08/06/2022,"3,291.24"
26365234,Physical Support,Adults,Physical Support 65 and over,3rd Party Payments,Personal Budget - Domiciliary care,CAREWATCH (SWINDON),BA14,08/06/2022,987.54
26369233,Physical Support,Adults,Physical Support 65 and over,3rd Party Payments,Personal Budget - Domiciliary care,CAREWATCH (SWINDON),BA14,08/06/2022,"2,386.44"
26364234,Physical Support,Adults,Physical Support 65 and over,3rd Party Payments,Personal Budget - Domiciliary care,CAREWATCH (SWINDON),BA14,08/06/2022,"3,068.04"
26362233,Physical Support,Adults,Physical Support 65 and over,3rd Party Payments,Personal Budget - Domiciliary care,CAREWATCH (SWINDON),BA14,08/06/2022,838.74
26363233,Physical Support,Adults,Physical Support 65 and over,3rd Party Payments,Personal Budget - Domiciliary care,CAREWATCH (SWINDON),BA14,08/06/2022,524.71
26368233,Physical Support,Adults,Physical Support 65 and over,3rd Party Payments,Personal Budget - Domiciliary care,CAREWATCH (SWINDON),BA14,08/06/2022,"1,434.60"
26366233,Physical Support,Adults,Physical Support 65 and over,3rd Party Payments,Personal Budget - Domiciliary care,CAREWATCH (SWINDON),BA14,08/06/2022,573.84
26510242,Physical Support,Adults,Physical Support 65 and over,3rd Party Payments,Carers,CAREWATCH (SWINDON),BA14,08/06/2022,647.68
28945233,"Children, Families & Community Health Services","Children, Familities & Community Health Services",Children's ICS Project,Capital,Contractor Payments,CAREWORKS LTD,SL3 ,17/06/2022,"2,606.64"
30419237,Social Care,"Children, Families and Community Health Services",Placement - Care Leaver Team,3rd Party Payments,Supported Living,CARING FOR COMMUNITIES AND PEOPLE (CCP),GL50,27/06/2022,"2,570.00"
26517240,Social Care,"Children, Families and Community Health Services",Unaccompanied Asylum Seeking Children (UASC),3rd Party Payments,Supported Living,CARING FOR COMMUNITIES AND PEOPLE (CCP),GL50,08/06/2022,"2,520.00"
30419236,Social Care,"Children, Families and Community Health Services",Unaccompanied Asylum Seeking Children (UASC),3rd Party Payments,Supported Living,CARING FOR COMMUNITIES AND PEOPLE (CCP),GL50,27/06/2022,"2,570.00"
26517241,Social Care,"Children, Families and Community Health Services",Unaccompanied Asylum Seeking Children (UASC),3rd Party Payments,Supported Living,CARING FOR COMMUNITIES AND PEOPLE (CCP),GL50,08/06/2022,"2,520.00"
26517239,Social Care,"Children, Families and Community Health Services",External Placements,3rd Party Payments,Supported Living,CARING FOR COMMUNITIES AND PEOPLE (CCP),GL50,08/06/2022,"5,210.00"
26518234,Social Care,"Children, Families and Community Health Services",Unaccompanied Asylum Seeking Children (UASC),3rd Party Payments,Supported Living,CARING FOR COMMUNITIES AND PEOPLE (CCP),GL50,08/06/2022,"5,190.00"
30419238,Social Care,"Children, Families and Community Health Services",Unaccompanied Asylum Seeking Children (UASC),3rd Party Payments,Supported Living,CARING FOR COMMUNITIES AND PEOPLE (CCP),GL50,27/06/2022,"5,415.00"
30419235,Social Care,"Children, Families and Community Health Services",Placement - Care Leaver Team,3rd Party Payments,Supported Living,CARING FOR COMMUNITIES AND PEOPLE (CCP),GL50,27/06/2022,"1,930.00"
26518233,Social Care,"Children, Families and Community Health Services",Unaccompanied Asylum Seeking Children (UASC),3rd Party Payments,Supported Living,CARING FOR COMMUNITIES AND PEOPLE (CCP),GL50,08/06/2022,"5,190.00"
30419239,Social Care,"Children, Families and Community Health Services",Unaccompanied Asylum Seeking Children (UASC),3rd Party Payments,Supported Living,CARING FOR COMMUNITIES AND PEOPLE (CCP),GL50,27/06/2022,"5,775.00"
30419240,Social Care,"Children, Families and Community Health Services",External Placements,3rd Party Payments,Supported Living,CARING FOR COMMUNITIES AND PEOPLE (CCP),GL50,27/06/2022,"1,550.00"
26451233,Physical Support,Adults,Physical Support 18 - 64,3rd Party Payments,Personal Budget - Domiciliary care,CARING HEART CARERS LIMITED,SN25,08/06/2022,951.84
26452233,Physical Support,Adults,Physical Support 65 and over,3rd Party Payments,Personal Budget - Domiciliary care,CARING HEART CARERS LIMITED,SN25,08/06/2022,997.38
26452234,Physical Support,Adults,Physical Support 18 - 64,3rd Party Payments,Personal Budget - Domiciliary care,CARING HEART CARERS LIMITED,SN25,08/06/2022,"1,167.92"
28887233,Physical Support,Adults,Physical Support 65 and over,3rd Party Payments,Personal Budget - Domiciliary care,CARING HEART CARERS LIMITED,SN25,17/06/2022,883.06
28102233,Supported Employment,Housing Services,Community Meals,Supplies and Services,Equipment,CARLTON SERVICES (UK) LTD,SN3 ,15/06/2022,706
30846233,Facilities Management,"People, Culture and Organisational Resilience",Courtyard Caf�,Supplies and Services,Repairs & Maintenance,CARLTON SERVICES (UK) LTD,SN3 ,29/06/2022,"2,789.00"
31040240,Learning Disabilities,Adults,Learning Disability 26 - 64,Transfer Payments,Personal Budget - Direct Payments - Domiciliary Care,REDACTED PERSONAL DATA,SN2 ,29/06/2022,"2,357.21"
31040482,Physical Support,Adults,Physical Support 65 and over,3rd Party Payments,Carers,REDACTED PERSONAL DATA,SP11,29/06/2022,735.84
31040481,Physical Support,Adults,Physical Support 65 and over,3rd Party Payments,Carers,REDACTED PERSONAL DATA,SP11,29/06/2022,527.66
31040485,Learning Disabilities,Adults,Learning Disability 26 - 64,Transfer Payments,Personal Budget - Direct Payments - Domiciliary Care,REDACTED PERSONAL DATA,SN2 ,29/06/2022,"1,800.31"
31040486,Learning Disabilities,Adults,Learning Disability 26 - 64,Transfer Payments,Personal Budget - Direct Payments - Other,REDACTED PERSONAL DATA,SN2 ,29/06/2022,681.56
27236235,Early Years Block,DSG Skills and Attainment,Free Nursery Education Commissioning - three & four  year olds,3rd Party Payments,Contracts - Child Care,REDACTED PERSONAL DATA,SN3 ,15/06/2022,681.09
31155233,Responsive Repairs,Repairs,Responsive Repairs,Supplies and Services,Materials,CARPET WAREHOUSE SWINDON LTD,SN2 ,29/06/2022,987.53
31156233,Responsive Repairs,Repairs,Responsive Repairs,Supplies and Services,Materials,CARPET WAREHOUSE SWINDON LTD,SN2 ,29/06/2022,778.33
27853233,Responsive Repairs,Repairs,Responsive Repairs,Supplies and Services,Materials,CARPET WAREHOUSE SWINDON LTD,SN2 ,15/06/2022,841.67
29449233,Responsive Repairs,Repairs,Responsive Repairs,Supplies and Services,Materials,CARPET WAREHOUSE SWINDON LTD,SN2 ,22/06/2022,800
31040255,Learning Disabilities,Adults,Learning Disability 26 - 64,Transfer Payments,Personal Budget - Direct Payments - Domiciliary Care,REDACTED PERSONAL DATA,SN6 ,29/06/2022,"2,279.00"
26088233,Traded Services,Inclusion and Achievement,Plas Pencelli Outdoor Education Centre,Supplies and Services,Materials,CASTELL HOWELL FOOD LIMITED,SA14,06/06/2022,547.11
30838233,Traded Services,Inclusion and Achievement,Plas Pencelli Outdoor Education Centre,Supplies and Services,Materials,CASTELL HOWELL FOOD LIMITED,SA14,29/06/2022,336.5
28526233,Traded Services,Inclusion and Achievement,Plas Pencelli Outdoor Education Centre,Supplies and Services,Materials,CASTELL HOWELL FOOD LIMITED,SA14,17/06/2022,"1,430.65"
26088233,Traded Services,Inclusion and Achievement,Plas Pencelli Outdoor Education Centre,Supplies and Services,Materials,CASTELL HOWELL FOOD LIMITED,SA14,06/06/2022,"1,070.06"
30838233,Traded Services,Inclusion and Achievement,Plas Pencelli Outdoor Education Centre,Supplies and Services,Materials,CASTELL HOWELL FOOD LIMITED,SA14,29/06/2022,"1,658.72"
28857233,Traded Services,Inclusion and Achievement,Plas Pencelli Outdoor Education Centre,Supplies and Services,Materials,CASTELL HOWELL FOOD LIMITED,SA14,17/06/2022,825.39
28526233,Traded Services,Inclusion and Achievement,Plas Pencelli Outdoor Education Centre,Supplies and Services,Materials,CASTELL HOWELL FOOD LIMITED,SA14,17/06/2022,402.09
28857233,Traded Services,Inclusion and Achievement,Plas Pencelli Outdoor Education Centre,Supplies and Services,Materials,CASTELL HOWELL FOOD LIMITED,SA14,17/06/2022,485.86
28941233,Treasury,Corporate Finance,Private Finance Initiatives (PFI),Supplies and Services,Services,CASTLE GATE LEGAL & COMMERCIAL LTD,NG12,20/06/2022,"2,250.00"
26534233,Treasury,Corporate Finance,Private Finance Initiatives (PFI),Supplies and Services,Services,CASTLE GATE LEGAL & COMMERCIAL LTD,NG12,08/06/2022,"2,250.00"
28508253,,,Balance Sheet,Balance Sheet & Recharge,Water invoices,CASTLE WATER LTD,PH10,15/06/2022,"20,688.61"
28869264,Learning Disabilities,Adults,Learning Disability 26 - 64,Income,Client Contribution - Residential,CATHEDRAL HOMES,GL1 ,20/06/2022,-414.2
28869264,Learning Disabilities,Adults,Learning Disability 26 - 64,3rd Party Payments,Residential Care,CATHEDRAL HOMES,GL1 ,20/06/2022,"5,260.24"
28869264,Learning Disabilities,Adults,Learning Disability 26 - 64,3rd Party Payments,Residential Care,CATHEDRAL HOMES,GL1 ,20/06/2022,"5,961.60"
27236238,Early Years Block,DSG Skills and Attainment,Free Nursery Education Commissioning - three & four  year olds,3rd Party Payments,Contracts - Child Care,REDACTED PERSONAL DATA,SN5 ,15/06/2022,513.24
28468233,Learning Disabilities,Adults,Learning Disability 26 - 64,3rd Party Payments,Supported Accommodation Scheme,REDACTED PERSONAL DATA,SN6 ,22/06/2022,"3,056.20"
28468233,Learning Disabilities,Adults,Learning Disability 26 - 64,3rd Party Payments,Supported Accommodation Scheme,REDACTED PERSONAL DATA,SN6 ,22/06/2022,"2,573.70"
28468233,Learning Disabilities,Adults,Learning Disability 26 - 64,3rd Party Payments,Supported Accommodation Scheme,REDACTED PERSONAL DATA,SN6 ,22/06/2022,"2,088.80"
28840245,Social Care,"Children, Families and Community Health Services",External Placements,3rd Party Payments,Residential Care,CAUSEWAY CARE HOMES LTD,RG30,17/06/2022,"15,000.00"
28078234,Social Care,"Children, Families and Community Health Services",External Placements,3rd Party Payments,Supported Living,CEDAR HOPE CARE SERVICES LTD,RG1 ,15/06/2022,"9,840.00"
30975233,Highways & Transport,Highways & Transport,Traffic Management & Road Safety,Supplies and Services,Services,CENIGMA LTD,N1 7,29/06/2022,"17,600.00"
29214233,Public Health,Public Health,Affordable Warmth,Supplies and Services,Service Charges,CENTRE FOR SUSTAINABLE ENERGY,BS1 ,20/06/2022,"25,000.00"
28279233,Public Health,Public Health,Affordable Warmth,Supplies and Services,Service Charges,CENTRE FOR SUSTAINABLE ENERGY,BS1 ,15/06/2022,"9,075.00"
30471234,Human Resources and Organisational Development,"People, Culture and Organisational Resilience",Organisational Development,Employees,Training,CERTSURE LLP,LU5 ,27/06/2022,"1,500.00"
27191234,Lydiard Park,Streetsmart,Lydiard : Forest Caf�,Supplies and Services,Food,CHAPPLE & JENKINS LTD,BS15,10/06/2022,18.88
29495233,Lydiard Park,Streetsmart,Lydiard : Forest Caf�,Supplies and Services,Confectionary,CHAPPLE & JENKINS LTD,BS15,22/06/2022,341.84
27136233,Lydiard Park,Streetsmart,Lydiard : Forest Caf�,Supplies and Services,Food,CHAPPLE & JENKINS LTD,BS15,10/06/2022,9.44
29544233,Lydiard Park,Streetsmart,Lydiard : Hotel Operations,Supplies and Services,Liquid,CHAPPLE & JENKINS LTD,BS15,22/06/2022,889.78
27134233,Lydiard Park,Streetsmart,Lydiard : Forest Caf�,Supplies and Services,Confectionary,CHAPPLE & JENKINS LTD,BS15,10/06/2022,70.86
29495233,Lydiard Park,Streetsmart,Lydiard : Forest Caf�,Supplies and Services,Food,CHAPPLE & JENKINS LTD,BS15,22/06/2022,47.94
27191234,Lydiard Park,Streetsmart,Lydiard : Forest Caf�,Supplies and Services,Confectionary,CHAPPLE & JENKINS LTD,BS15,10/06/2022,89.43
27136233,Lydiard Park,Streetsmart,Lydiard : Forest Caf�,Supplies and Services,Confectionary,CHAPPLE & JENKINS LTD,BS15,10/06/2022,11.17
27152233,Lydiard Park,Streetsmart,Lydiard : Coach House Caf�,Supplies and Services,Confectionary,CHAPPLE & JENKINS LTD,BS15,10/06/2022,26.76
29495233,Lydiard Park,Streetsmart,Lydiard : Forest Caf�,Supplies and Services,Confectionary,CHAPPLE & JENKINS LTD,BS15,22/06/2022,43.72
27136233,Lydiard Park,Streetsmart,Lydiard : Forest Caf�,Supplies and Services,Confectionary,CHAPPLE & JENKINS LTD,BS15,10/06/2022,493.42
27134233,Lydiard Park,Streetsmart,Lydiard : Forest Caf�,Supplies and Services,Confectionary,CHAPPLE & JENKINS LTD,BS15,10/06/2022,583.15
27191234,Lydiard Park,Streetsmart,Lydiard : Forest Caf�,Supplies and Services,Confectionary,CHAPPLE & JENKINS LTD,BS15,10/06/2022,"1,455.47"
27071233,Facilities Management,"People, Culture and Organisational Resilience",Waterside Canteen,Supplies and Services,Confectionary,CHAPPLE & JENKINS LTD,BS15,10/06/2022,744.8
29535233,Lydiard Park,Streetsmart,Lydiard : Forest Caf�,Supplies and Services,Confectionary,CHAPPLE & JENKINS LTD,BS15,22/06/2022,455.06
27152233,Lydiard Park,Streetsmart,Lydiard : Coach House Caf�,Supplies and Services,Liquid,CHAPPLE & JENKINS LTD,BS15,10/06/2022,82.06
27152233,Lydiard Park,Streetsmart,Lydiard : Coach House Caf�,Supplies and Services,Confectionary,CHAPPLE & JENKINS LTD,BS15,10/06/2022,746.08
27151233,Lydiard Park,Streetsmart,Lydiard : Hotel Operations,Supplies and Services,Liquid,CHAPPLE & JENKINS LTD,BS15,10/06/2022,"5,736.00"
27151233,Lydiard Park,Streetsmart,Lydiard : Hotel Operations,Supplies and Services,Materials,CHAPPLE & JENKINS LTD,BS15,10/06/2022,774.78
29024234,Void Repairs,Supervision & Management,Void Property Repairs,3rd Party Payments,Contract Payments,CHARLES HARDING ESTATE AGENTS LIMITED,SN1 ,20/06/2022,35
29510233,Lydiard Park,Streetsmart,Lydiard : Forest Caf�,Supplies and Services,Food,CHARLES SAUNDERS LTD,BS37,22/06/2022,124.37
27138233,Lydiard Park,Streetsmart,Lydiard : Forest Caf�,Supplies and Services,Materials,CHARLES SAUNDERS LTD,BS37,10/06/2022,84.42
27190233,Lydiard Park,Streetsmart,Lydiard : Forest Caf�,Supplies and Services,Confectionary,CHARLES SAUNDERS LTD,BS37,10/06/2022,234.87
27199233,Lydiard Park,Streetsmart,Lydiard : Hotel Operations,Supplies and Services,Food,CHARLES SAUNDERS LTD,BS37,10/06/2022,538.48
30892233,Lydiard Park,Streetsmart,Lydiard : Forest Caf�,Supplies and Services,Food,CHARLES SAUNDERS LTD,BS37,29/06/2022,93.48
27190233,Lydiard Park,Streetsmart,Lydiard : Forest Caf�,Supplies and Services,Food,CHARLES SAUNDERS LTD,BS37,10/06/2022,562.75
27195233,Lydiard Park,Streetsmart,Lydiard : Forest Caf�,Supplies and Services,Food,CHARLES SAUNDERS LTD,BS37,10/06/2022,81.48
27150233,Lydiard Park,Streetsmart,Lydiard : Coach House Caf�,Supplies and Services,Materials,CHARLES SAUNDERS LTD,BS37,10/06/2022,4.86
27150233,Lydiard Park,Streetsmart,Lydiard : Coach House Caf�,Supplies and Services,Food,CHARLES SAUNDERS LTD,BS37,10/06/2022,124.36
27150233,Lydiard Park,Streetsmart,Lydiard : Coach House Caf�,Supplies and Services,Confectionary,CHARLES SAUNDERS LTD,BS37,10/06/2022,344.45
30403233,Lydiard Park,Streetsmart,Lydiard : Hotel Operations,Supplies and Services,Food,CHARLES SAUNDERS LTD,BS37,27/06/2022,"1,485.83"
30453233,Physical Support,Adults,Fessey House,Supplies and Services,Food,CHARLES SAUNDERS LTD,BS37,27/06/2022,260.55
27195233,Lydiard Park,Streetsmart,Lydiard : Forest Caf�,Supplies and Services,Confectionary,CHARLES SAUNDERS LTD,BS37,10/06/2022,251.28
29508233,Lydiard Park,Streetsmart,Lydiard : Coach House Caf�,Supplies and Services,Confectionary,CHARLES SAUNDERS LTD,BS37,22/06/2022,396.18
29930233,Physical Support,Adults,Fessey House,Supplies and Services,Food,CHARLES SAUNDERS LTD,BS37,22/06/2022,154.16
27150233,Lydiard Park,Streetsmart,Lydiard : Coach House Caf�,Supplies and Services,Confectionary,CHARLES SAUNDERS LTD,BS37,10/06/2022,116.68
30892233,Lydiard Park,Streetsmart,Lydiard : Forest Caf�,Supplies and Services,Confectionary,CHARLES SAUNDERS LTD,BS37,29/06/2022,509.7
27190233,Lydiard Park,Streetsmart,Lydiard : Forest Caf�,Supplies and Services,Confectionary,CHARLES SAUNDERS LTD,BS37,10/06/2022,230.68
27138233,Lydiard Park,Streetsmart,Lydiard : Forest Caf�,Supplies and Services,Confectionary,CHARLES SAUNDERS LTD,BS37,10/06/2022,650.82
27138233,Lydiard Park,Streetsmart,Lydiard : Forest Caf�,Supplies and Services,Food,CHARLES SAUNDERS LTD,BS37,10/06/2022,280.21
29508233,Lydiard Park,Streetsmart,Lydiard : Coach House Caf�,Supplies and Services,Confectionary,CHARLES SAUNDERS LTD,BS37,22/06/2022,91.01
30857233,Lydiard Park,Streetsmart,Lydiard : Hotel Operations,Supplies and Services,Materials,CHARLES SAUNDERS LTD,BS37,29/06/2022,761.31
30403233,Lydiard Park,Streetsmart,Lydiard : Hotel Operations,Supplies and Services,Food,CHARLES SAUNDERS LTD,BS37,27/06/2022,8.88
28655233,Lydiard Park,Streetsmart,Lydiard : Hotel Operations,Supplies and Services,Food,CHARLES SAUNDERS LTD,BS37,17/06/2022,6.39
26251234,Physical Support,Adults,Fessey House,Supplies and Services,Food,CHARLES SAUNDERS LTD,BS37,06/06/2022,232.54
27126233,Lydiard Park,Streetsmart,Lydiard : Forest Caf�,Supplies and Services,Materials,CHARLES SAUNDERS LTD,BS37,10/06/2022,441.97
28655233,Lydiard Park,Streetsmart,Lydiard : Forest Caf�,Supplies and Services,Confectionary,CHARLES SAUNDERS LTD,BS37,17/06/2022,656.79
27133233,Lydiard Park,Streetsmart,Lydiard : Forest Caf�,Supplies and Services,Food,CHARLES SAUNDERS LTD,BS37,10/06/2022,136.36
30255233,Lydiard Park,Streetsmart,Lydiard : Hotel Operations,Supplies and Services,Food,CHARLES SAUNDERS LTD,BS37,24/06/2022,512.68
27199233,Lydiard Park,Streetsmart,Lydiard : Hotel Operations,Supplies and Services,Food,CHARLES SAUNDERS LTD,BS37,10/06/2022,70.88
26198234,Physical Support,Adults,Fessey House,Supplies and Services,Food,CHARLES SAUNDERS LTD,BS37,06/06/2022,853.59
27486233,Physical Support,Adults,Fessey House,Supplies and Services,Food,CHARLES SAUNDERS LTD,BS37,13/06/2022,"1,000.51"
30393233,Lydiard Park,Streetsmart,Lydiard : Hotel Operations,Supplies and Services,Materials,CHARLES SAUNDERS LTD,BS37,27/06/2022,-427.3
27486233,Physical Support,Adults,Fessey House,Supplies and Services,Food,CHARLES SAUNDERS LTD,BS37,13/06/2022,357.78
26251234,Physical Support,Adults,Fessey House,Supplies and Services,Food,CHARLES SAUNDERS LTD,BS37,06/06/2022,961.26
27150233,Lydiard Park,Streetsmart,Lydiard : Coach House Caf�,Supplies and Services,Materials,CHARLES SAUNDERS LTD,BS37,10/06/2022,199.7
27133233,Lydiard Park,Streetsmart,Lydiard : Forest Caf�,Supplies and Services,Confectionary,CHARLES SAUNDERS LTD,BS37,10/06/2022,335.5
29510233,Lydiard Park,Streetsmart,Lydiard : Forest Caf�,Supplies and Services,Confectionary,CHARLES SAUNDERS LTD,BS37,22/06/2022,"1,010.56"
29510233,Lydiard Park,Streetsmart,Lydiard : Forest Caf�,Supplies and Services,Confectionary,CHARLES SAUNDERS LTD,BS37,22/06/2022,18.26
27138233,Lydiard Park,Streetsmart,Lydiard : Forest Caf�,Supplies and Services,Confectionary,CHARLES SAUNDERS LTD,BS37,10/06/2022,388.7
27195233,Lydiard Park,Streetsmart,Lydiard : Forest Caf�,Supplies and Services,Confectionary,CHARLES SAUNDERS LTD,BS37,10/06/2022,269.72
30453233,Physical Support,Adults,Fessey House,Supplies and Services,Food,CHARLES SAUNDERS LTD,BS37,27/06/2022,797.6
26198234,Physical Support,Adults,Fessey House,Supplies and Services,Food,CHARLES SAUNDERS LTD,BS37,06/06/2022,90.46
29930233,Physical Support,Adults,Fessey House,Supplies and Services,Food,CHARLES SAUNDERS LTD,BS37,22/06/2022,928.14
31089233,Human Resources and Organisational Development,"People, Culture and Organisational Resilience",Organisational Development,Employees,Training,CHARTERED TRADING STANDARDS INSTITUTE,SS15,29/06/2022,"3,518.00"
29429233,High Needs Block,DSG Skills and Attainment,SEND Support,Supplies and Services,Payments to Educational Bodies,CHEEKY CHIMPS,SN2 ,22/06/2022,"1,266.00"
28869236,Physical Support,Adults,Physical Support 65 and over,Income,Client Contribution - Residential,CHERITON (SW CARE) LTD,GL52,20/06/2022,-605.4
26575235,Physical Support,Adults,Physical Support 65 and over,3rd Party Payments,Residential Care,CHERITON (SW CARE) LTD,SN1 ,08/06/2022,"2,699.44"
28869236,Physical Support,Adults,Physical Support 65 and over,3rd Party Payments,Residential Care,CHERITON (SW CARE) LTD,GL52,20/06/2022,"2,668.72"
28869236,Physical Support,Adults,Physical Support 65 and over,3rd Party Payments,Nursing Care,CHERITON (SW CARE) LTD,GL52,20/06/2022,"4,601.14"
28869236,Physical Support,Adults,Physical Support 65 and over,3rd Party Payments,Nursing Care,CHERITON (SW CARE) LTD,GL52,20/06/2022,"-1,462.93"
28869236,Physical Support,Adults,Physical Support 65 and over,Income,Client Contribution - Nursing,CHERITON (SW CARE) LTD,GL52,20/06/2022,"-4,480.80"
28869236,Physical Support,Adults,Physical Support 65 and over,Income,Client Contribution - Nursing,CHERITON (SW CARE) LTD,GL52,20/06/2022,"-3,529.29"
28869236,Physical Support,Adults,Physical Support 65 and over,Income,Client Contribution - Nursing,CHERITON (SW CARE) LTD,GL52,20/06/2022,"2,688.48"
28869236,Physical Support,Adults,Physical Support 65 and over,3rd Party Payments,Nursing Care,CHERITON (SW CARE) LTD,GL52,20/06/2022,"3,310.52"
28869236,Physical Support,Adults,Physical Support 65 and over,3rd Party Payments,Nursing Care,CHERITON (SW CARE) LTD,GL52,20/06/2022,"-6,034.57"
28869236,Physical Support,Adults,Physical Support 65 and over,Income,Client Contribution - Nursing,CHERITON (SW CARE) LTD,GL52,20/06/2022,"-1,479.52"
28869236,Physical Support,Adults,Physical Support 65 and over,Income,Client Contribution - Nursing,CHERITON (SW CARE) LTD,GL52,20/06/2022,-559.01
28869236,Physical Support,Adults,Physical Support 65 and over,Income,Client Contribution - Nursing,CHERITON (SW CARE) LTD,GL52,20/06/2022,-678.48
27059233,Physical Support,Adults,Physical Support 65 and over,3rd Party Payments,Other Care Packages,CHERITON (SW CARE) LTD,SN1 ,10/06/2022,"12,857.14"
28869236,Physical Support,Adults,Physical Support 65 and over,3rd Party Payments,Residential Care,CHERITON (SW CARE) LTD,GL52,20/06/2022,"2,384.04"
28869236,Physical Support,Adults,Physical Support 65 and over,3rd Party Payments,Nursing Care,CHERITON (SW CARE) LTD,GL52,20/06/2022,"3,220.80"
28869236,Physical Support,Adults,Physical Support 65 and over,3rd Party Payments,Nursing Care,CHERITON (SW CARE) LTD,GL52,20/06/2022,"13,136.58"
28869236,Physical Support,Adults,Physical Support 65 and over,3rd Party Payments,Nursing Care,CHERITON (SW CARE) LTD,GL52,20/06/2022,-91.43
28869236,Physical Support,Adults,Physical Support 65 and over,3rd Party Payments,Nursing Care,CHERITON (SW CARE) LTD,GL52,20/06/2022,"-15,407.10"
28869236,Physical Support,Adults,Physical Support 65 and over,Income,Client Contribution - Nursing,CHERITON (SW CARE) LTD,GL52,20/06/2022,34.74
28869236,Physical Support,Adults,Physical Support 65 and over,Income,Client Contribution - Nursing,CHERITON (SW CARE) LTD,GL52,20/06/2022,"2,292.84"
28869236,Physical Support,Adults,Physical Support 18 - 64,3rd Party Payments,Residential Care,CHERITON (SW CARE) LTD,GL52,20/06/2022,"2,384.04"
28869236,Physical Support,Adults,Physical Support 65 and over,Income,Client Contribution - Residential,CHERITON (SW CARE) LTD,GL52,20/06/2022,-610
28869236,Physical Support,Adults,Physical Support 65 and over,3rd Party Payments,Nursing Care,CHERITON (SW CARE) LTD,GL52,20/06/2022,"6,126.00"
28869236,Physical Support,Adults,Physical Support 65 and over,Income,Client Contribution - Nursing,CHERITON (SW CARE) LTD,GL52,20/06/2022,"-2,774.16"
28869236,Physical Support,Adults,Physical Support 65 and over,Income,Client Contribution - Residential,CHERITON (SW CARE) LTD,GL52,20/06/2022,-608.8
28869236,Physical Support,Adults,Physical Support 65 and over,Income,Client Contribution - Residential,CHERITON (SW CARE) LTD,GL52,20/06/2022,-572.2
28869236,Physical Support,Adults,Physical Support 65 and over,3rd Party Payments,Nursing Care,CHERITON (SW CARE) LTD,GL52,20/06/2022,162.18
28869236,Physical Support,Adults,Physical Support 65 and over,3rd Party Payments,Nursing Care,CHERITON (SW CARE) LTD,GL52,20/06/2022,"1,554.36"
28869236,Physical Support,Adults,Physical Support 65 and over,3rd Party Payments,Nursing Care,CHERITON (SW CARE) LTD,GL52,20/06/2022,"-1,935.94"
28869236,Physical Support,Adults,Physical Support 65 and over,3rd Party Payments,Nursing Care,CHERITON (SW CARE) LTD,GL52,20/06/2022,"-6,044.99"
28869236,Physical Support,Adults,Physical Support 65 and over,Income,Client Contribution - Nursing,CHERITON (SW CARE) LTD,GL52,20/06/2022,"2,212.72"
28869236,Physical Support,Adults,Physical Support 65 and over,Income,Client Contribution - Nursing,CHERITON (SW CARE) LTD,GL52,20/06/2022,-968.72
28869236,Physical Support,Adults,Physical Support 65 and over,3rd Party Payments,Residential Care,CHERITON (SW CARE) LTD,GL52,20/06/2022,"2,560.12"
28869236,Physical Support,Adults,Physical Support 65 and over,3rd Party Payments,Nursing Care,CHERITON (SW CARE) LTD,GL52,20/06/2022,"12,800.60"
28869236,Physical Support,Adults,Physical Support 65 and over,3rd Party Payments,Nursing Care,CHERITON (SW CARE) LTD,GL52,20/06/2022,"2,384.04"
28869236,Physical Support,Adults,Physical Support 65 and over,3rd Party Payments,Nursing Care,CHERITON (SW CARE) LTD,GL52,20/06/2022,"2,560.12"
28869236,Physical Support,Adults,Physical Support 65 and over,Income,Client Contribution - Nursing,CHERITON (SW CARE) LTD,GL52,20/06/2022,"-2,318.01"
28869236,Physical Support,Adults,Physical Support 65 and over,Income,Client Contribution - Nursing,CHERITON (SW CARE) LTD,GL52,20/06/2022,"-2,327.58"
28869236,Physical Support,Adults,Physical Support 65 and over,Income,Client Contribution - Nursing,CHERITON (SW CARE) LTD,GL52,20/06/2022,528.41
28869236,Physical Support,Adults,Physical Support 65 and over,Income,Client Contribution - Nursing,CHERITON (SW CARE) LTD,GL52,20/06/2022,33.03
28869236,Physical Support,Adults,Physical Support 65 and over,Income,Client Contribution - Nursing,CHERITON (SW CARE) LTD,GL52,20/06/2022,"4,139.29"
29531233,Responsive Repairs,Repairs,Responsive Repairs,3rd Party Payments,Contract Payments,CHILD SCAFFOLDING LTD,SN1 ,22/06/2022,680
29531233,Responsive Repairs,Repairs,Responsive Repairs,3rd Party Payments,Contract Payments,CHILD SCAFFOLDING LTD,SN1 ,22/06/2022,580
29531233,Responsive Repairs,Repairs,Responsive Repairs,3rd Party Payments,Contract Payments,CHILD SCAFFOLDING LTD,SN1 ,22/06/2022,"2,250.00"
29531233,Responsive Repairs,Repairs,Responsive Repairs,3rd Party Payments,Contract Payments,CHILD SCAFFOLDING LTD,SN1 ,22/06/2022,"2,700.00"
29531233,Responsive Repairs,Repairs,Responsive Repairs,3rd Party Payments,Contract Payments,CHILD SCAFFOLDING LTD,SN1 ,22/06/2022,480
29531233,Responsive Repairs,Repairs,Responsive Repairs,3rd Party Payments,Contract Payments,CHILD SCAFFOLDING LTD,SN1 ,22/06/2022,540
29531233,Responsive Repairs,Repairs,Responsive Repairs,3rd Party Payments,Contract Payments,CHILD SCAFFOLDING LTD,SN1 ,22/06/2022,820
29531233,Responsive Repairs,Repairs,Responsive Repairs,3rd Party Payments,Contract Payments,CHILD SCAFFOLDING LTD,SN1 ,22/06/2022,"1,200.00"
30980233,Parking & Bus lanes,Highway Operations and Car Parking,Car Parking,Premises Costs,Maintenance - Buildings,CHILD SCAFFOLDING LTD,SN1 ,29/06/2022,"1,924.00"
30791233,Social Care,"Children, Families and Community Health Services",Unaccompanied Asylum Seeking Children (UASC),3rd Party Payments,Independent Fostering Agency Placements,REDACTED PERSONAL DATA,B60 ,29/06/2022,"3,393.00"
26478233,Parking & Bus lanes,Highway Operations and Car Parking,Bus Lane Enforcement,Supplies and Services,Materials,CHIPSIDE LTD,SN15,08/06/2022,386.4
26478233,Parking & Bus lanes,Highway Operations and Car Parking,Bus Lane Enforcement,Supplies and Services,Materials,CHIPSIDE LTD,SN15,08/06/2022,"3,706.14"
26478233,Parking & Bus lanes,Highway Operations and Car Parking,Street Parking,Supplies and Services,Materials,CHIPSIDE LTD,SN15,08/06/2022,540.75
28937233,Parking & Bus lanes,Highway Operations and Car Parking,Bus Lane Enforcement,Supplies and Services,Materials,CHIPSIDE LTD,SN15,20/06/2022,"3,527.16"
28937233,Parking & Bus lanes,Highway Operations and Car Parking,Street Parking,Supplies and Services,Materials,CHIPSIDE LTD,SN15,20/06/2022,354.9
26478233,Parking & Bus lanes,Highway Operations and Car Parking,Street Parking,Supplies and Services,Materials,CHIPSIDE LTD,SN15,08/06/2022,624.72
28937233,Parking & Bus lanes,Highway Operations and Car Parking,Street Parking,Supplies and Services,Materials,CHIPSIDE LTD,SN15,20/06/2022,745.56
28937233,Parking & Bus lanes,Highway Operations and Car Parking,Bus Lane Enforcement,Supplies and Services,Materials,CHIPSIDE LTD,SN15,20/06/2022,291.9
28513237,DSG Other Funding,DSG Skills and Attainment,DFE Additional Grants,3rd Party Payments,Payment of Pupil Premium to school,CHISELDON PRIMARY SCHOOL,SN4 ,17/06/2022,"3,483.00"
27236242,Early Years Block,DSG Skills and Attainment,Free Nursery Education Commissioning - two year olds,3rd Party Payments,Contracts - Child Care,CHISELDON PRIMARY SCHOOL,SN4 ,15/06/2022,559.73
25121242,Schools - Primary,DSG Skills and Attainment,Primary School Budgets,Supplies and Services,Payments to Educational Bodies,CHISELDON PRIMARY SCHOOL,SN4 ,01/06/2022,"1,123.75"
25123234,Schools - Primary,DSG Skills and Attainment,Primary School Budgets,Supplies and Services,Payments to Educational Bodies,CHISELDON PRIMARY SCHOOL,SN4 ,01/06/2022,"2,531.25"
25389239,DSG Other Funding,DSG Skills and Attainment,DFE Additional Grants,Supplies and Services,Payments to Educational Bodies,CHISELDON PRIMARY SCHOOL,SN4 ,01/06/2022,"1,329.00"
25120242,Schools - Primary,DSG Skills and Attainment,Primary School Budgets,Supplies and Services,Payments to Educational Bodies,CHISELDON PRIMARY SCHOOL,SN4 ,01/06/2022,"7,271.00"
27236241,Early Years Block,DSG Skills and Attainment,Free Nursery Education Commissioning - three & four  year olds,3rd Party Payments,Contracts - Child Care,CHISELDON PRIMARY SCHOOL,SN4 ,15/06/2022,"4,771.32"
30340243,DSG Other Funding,DSG Skills and Attainment,DFE Additional Grants,Supplies and Services,Payments to Educational Bodies,CHISELDON PRIMARY SCHOOL,SN4 ,27/06/2022,"9,512.00"
28508238,Schools - Primary,DSG Skills and Attainment,Primary School Budgets,3rd Party Payments,Mainstream Delegated Funding,CHISELDON PRIMARY SCHOOL,SN4 ,17/06/2022,"62,191.00"
28869279,Learning Disabilities,Adults,Learning Disability 26 - 64,3rd Party Payments,Residential Care,CHOSEN CARE LTD,GL3 ,20/06/2022,"7,137.76"
28869279,Learning Disabilities,Adults,Learning Disability 26 - 64,3rd Party Payments,Residential Care,CHOSEN CARE LTD,GL3 ,20/06/2022,"7,145.08"
28869279,Learning Disabilities,Adults,Learning Disability 26 - 64,Income,Client Contribution - Residential,CHOSEN CARE LTD,GL3 ,20/06/2022,-319
28869279,Learning Disabilities,Adults,Learning Disability 65 and over,3rd Party Payments,Residential Care,CHOSEN CARE LTD,GL3 ,20/06/2022,"7,297.20"
28869279,Learning Disabilities,Adults,Learning Disability 26 - 64,Income,Client Contribution - Residential,CHOSEN CARE LTD,GL3 ,20/06/2022,-359
28869279,Learning Disabilities,Adults,Learning Disability 65 and over,Income,Client Contribution - Residential,CHOSEN CARE LTD,GL3 ,20/06/2022,-605.8
28869279,Learning Disabilities,Adults,Learning Disability 26 - 64,3rd Party Payments,Residential Care,CHOSEN CARE LTD,GL3 ,20/06/2022,"11,209.16"
25960233,Care Management & Safeguarding,Adults,Mental Capacity & DOL,3rd Party Payments,Contracts - Social Care,CHRIS HORNE BIA/AMHP LIMITED,OX18,01/06/2022,802.2
30526233,Care Management & Safeguarding,Adults,Mental Capacity & DOL,3rd Party Payments,Contracts - Social Care,CHRIS HORNE BIA/AMHP LIMITED,OX18,27/06/2022,536.45
31040344,Physical Support,Adults,Physical Support 18 - 64,Transfer Payments,Personal Budget - Direct Payments - Domiciliary Care,REDACTED PERSONAL DATA,SN25,29/06/2022,752.6
29160233,Social Care,"Children, Families and Community Health Services",Placement Adoption Service,3rd Party Payments,Adoption Allowances,REDACTED PERSONAL DATA,SN6 ,20/06/2022,699.84
26279233,Social Care,"Children, Families and Community Health Services",Placement Adoption Service,3rd Party Payments,Adoption Allowances,REDACTED PERSONAL DATA,SN6 ,06/06/2022,"1,055.64"
26278235,Social Care,"Children, Families and Community Health Services",Placement Adoption Service,3rd Party Payments,Adoption Allowances,REDACTED PERSONAL DATA,SN6 ,06/06/2022,699.84
29160234,Social Care,"Children, Families and Community Health Services",Placement Adoption Service,3rd Party Payments,Adoption Allowances,REDACTED PERSONAL DATA,SN6 ,20/06/2022,"1,055.64"
25944233,Social Care,"Children, Families and Community Health Services",External Placements,3rd Party Payments,Independent Fostering Agency Placements,CHRYSALISCARE LTD,DA7 ,01/06/2022,"3,578.70"
25943233,Social Care,"Children, Families and Community Health Services",External Placements,3rd Party Payments,Independent Fostering Agency Placements,CHRYSALISCARE LTD,DA7 ,01/06/2022,"5,691.30"
28869312,Physical Support,Adults,Physical Support 65 and over,3rd Party Payments,Nursing Care,CHURCH VIEW,SN3 ,20/06/2022,"-4,256.38"
28869312,Physical Support,Adults,Physical Support 65 and over,3rd Party Payments,Nursing Care,CHURCH VIEW,SN3 ,20/06/2022,"3,383.02"
28869312,Physical Support,Adults,Physical Support 65 and over,Income,Client Contribution - Nursing,CHURCH VIEW,SN3 ,20/06/2022,"-1,802.48"
28869312,Physical Support,Adults,Physical Support 65 and over,Income,Client Contribution - Nursing,CHURCH VIEW,SN3 ,20/06/2022,-535.88
28869312,Physical Support,Adults,Physical Support 65 and over,Income,Client Contribution - Nursing,CHURCH VIEW,SN3 ,20/06/2022,-911.16
28869312,Physical Support,Adults,Physical Support 65 and over,Income,Client Contribution - Nursing,CHURCH VIEW,SN3 ,20/06/2022,"1,945.09"
28869312,Physical Support,Adults,Physical Support 65 and over,Income,Client Contribution - Nursing,CHURCH VIEW,SN3 ,20/06/2022,-910.56
28869312,Physical Support,Adults,Physical Support 65 and over,Income,Client Contribution - Nursing,CHURCH VIEW,SN3 ,20/06/2022,"-1,308.09"
28869312,Physical Support,Adults,Physical Support 65 and over,3rd Party Payments,Nursing Care,CHURCH VIEW,SN3 ,20/06/2022,"2,668.72"
28869312,Physical Support,Adults,Physical Support 65 and over,3rd Party Payments,Nursing Care,CHURCH VIEW,SN3 ,20/06/2022,"7,338.98"
28869312,Physical Support,Adults,Physical Support 65 and over,Income,Client Contribution - Nursing,CHURCH VIEW,SN3 ,20/06/2022,"-1,298.29"
28869312,Physical Support,Adults,Physical Support 65 and over,Income,Client Contribution - Nursing,CHURCH VIEW,SN3 ,20/06/2022,"-3,056.57"
28869312,Physical Support,Adults,Physical Support 65 and over,Income,Client Contribution - Nursing,CHURCH VIEW,SN3 ,20/06/2022,-606.52
28869312,Mental Health,Adults,Mental Health 65 and over,Income,Client Contribution - Nursing,CHURCH VIEW,SN3 ,20/06/2022,-538.11
28869312,Physical Support,Adults,Physical Support 65 and over,3rd Party Payments,Nursing Care,CHURCH VIEW,SN3 ,20/06/2022,"-8,185.39"
28869312,Physical Support,Adults,Physical Support 65 and over,3rd Party Payments,Nursing Care,CHURCH VIEW,SN3 ,20/06/2022,"-4,845.94"
28869312,Physical Support,Adults,Physical Support 65 and over,3rd Party Payments,Nursing Care,CHURCH VIEW,SN3 ,20/06/2022,"-2,668.72"
28869312,Physical Support,Adults,Physical Support 65 and over,3rd Party Payments,Nursing Care,CHURCH VIEW,SN3 ,20/06/2022,"1,594.30"
28869312,Physical Support,Adults,Physical Support 65 and over,3rd Party Payments,Nursing Care,CHURCH VIEW,SN3 ,20/06/2022,"4,670.26"
28869312,Physical Support,Adults,Physical Support 65 and over,3rd Party Payments,Nursing Care,CHURCH VIEW,SN3 ,20/06/2022,"5,235.68"
28869312,Mental Health,Adults,Mental Health 65 and over,3rd Party Payments,Nursing Care,CHURCH VIEW,SN3 ,20/06/2022,"5,000.00"
28869312,Mental Health,Adults,Mental Health 65 and over,Income,Client Contribution - Nursing,CHURCH VIEW,SN3 ,20/06/2022,-627.8
28869312,Physical Support,Adults,Physical Support 65 and over,Income,Client Contribution - Nursing,CHURCH VIEW,SN3 ,20/06/2022,-610
28869312,Physical Support,Adults,Physical Support 65 and over,Income,Client Contribution - Nursing,CHURCH VIEW,SN3 ,20/06/2022,-741.88
28869312,Physical Support,Adults,Physical Support 65 and over,Income,Client Contribution - Nursing,CHURCH VIEW,SN3 ,20/06/2022,-763.24
28869312,Physical Support,Adults,Physical Support 65 and over,Income,Client Contribution - Nursing,CHURCH VIEW,SN3 ,20/06/2022,"-1,111.48"
28869312,Physical Support,Adults,Physical Support 65 and over,3rd Party Payments,Nursing Care,CHURCH VIEW,SN3 ,20/06/2022,"2,560.12"
28869312,Mental Health,Adults,Mental Health 65 and over,3rd Party Payments,Nursing Care,CHURCH VIEW,SN3 ,20/06/2022,"4,285.71"
28869312,Physical Support,Adults,Physical Support 65 and over,Income,Client Contribution - Nursing,CHURCH VIEW,SN3 ,20/06/2022,-351.16
28869312,Physical Support,Adults,Physical Support 65 and over,Income,Client Contribution - Nursing,CHURCH VIEW,SN3 ,20/06/2022,"-1,288.96"
28869312,Physical Support,Adults,Physical Support 65 and over,Income,Client Contribution - Nursing,CHURCH VIEW,SN3 ,20/06/2022,-999.64
28869312,Physical Support,Adults,Physical Support 65 and over,3rd Party Payments,Nursing Care,CHURCH VIEW,SN3 ,20/06/2022,"-4,670.26"
28869312,Physical Support,Adults,Physical Support 65 and over,3rd Party Payments,Nursing Care,CHURCH VIEW,SN3 ,20/06/2022,"8,594.69"
28869312,Physical Support,Adults,Physical Support 65 and over,Income,Client Contribution - Nursing,CHURCH VIEW,SN3 ,20/06/2022,-620.28
28869312,Physical Support,Adults,Physical Support 65 and over,Income,Client Contribution - Nursing,CHURCH VIEW,SN3 ,20/06/2022,"1,111.48"
28869312,Physical Support,Adults,Physical Support 65 and over,Income,Client Contribution - Nursing,CHURCH VIEW,SN3 ,20/06/2022,"1,308.09"
28869312,Physical Support,Adults,Physical Support 65 and over,3rd Party Payments,Nursing Care,CHURCH VIEW,SN3 ,20/06/2022,"-6,045.24"
28869339,Learning Disabilities,Adults,Learning Disability 26 - 64,3rd Party Payments,Residential Care,CIDERSTONE HOUSE,SN25,20/06/2022,"10,495.76"
28869339,Learning Disabilities,Adults,Learning Disability 26 - 64,Income,Client Contribution - Residential,CIDERSTONE HOUSE,SN25,20/06/2022,-414.2
28869339,Learning Disabilities,Adults,Learning Disability 26 - 64,Income,Client Contribution - Residential,CIDERSTONE HOUSE,SN25,20/06/2022,-425.6
28869339,Learning Disabilities,Adults,Learning Disability 26 - 64,Income,Client Contribution - Residential,CIDERSTONE HOUSE,SN25,20/06/2022,-423
28869339,Learning Disabilities,Adults,Learning Disability 26 - 64,Income,Client Contribution - Residential,CIDERSTONE HOUSE,SN25,20/06/2022,-677.6
28869339,Learning Disabilities,Adults,Learning Disability 26 - 64,3rd Party Payments,Residential Care,CIDERSTONE HOUSE,SN25,20/06/2022,"9,703.96"
28869339,Learning Disabilities,Adults,Learning Disability 26 - 64,3rd Party Payments,Residential Care,CIDERSTONE HOUSE,SN25,20/06/2022,"11,049.40"
28869339,Learning Disabilities,Adults,Learning Disability 26 - 64,Income,Client Contribution - Residential,CIDERSTONE HOUSE,SN25,20/06/2022,-438.8
28869339,Learning Disabilities,Adults,Learning Disability 26 - 64,3rd Party Payments,Residential Care,CIDERSTONE HOUSE,SN25,20/06/2022,"10,018.48"
28869339,Learning Disabilities,Adults,Learning Disability 26 - 64,3rd Party Payments,Residential Care,CIDERSTONE HOUSE,SN25,20/06/2022,"9,895.88"
28352240,High Needs Block,DSG Skills and Attainment,Post 16 - New Responsibilties,3rd Party Payments,FE Colleges,CIRENCESTER COLLEGE,GL7 ,15/06/2022,"2,323.58"
28352235,High Needs Block,DSG Skills and Attainment,Out of Borough School Fees,3rd Party Payments,Other Local Authority Mainstream Schools- Pre 16,CIRENCESTER KINGSHILL SCHOOL,GL7 ,15/06/2022,582
28352236,High Needs Block,DSG Skills and Attainment,Out of Borough School Fees,3rd Party Payments,Other Local Authority Mainstream Schools- Pre 16,CIRENCESTER KINGSHILL SCHOOL,GL7 ,15/06/2022,582
30010236,Homelessness and Travellers,Housing Services,Leased Private Managed Accommodation,Transfer Payments,Payment of Costs,REDACTED PERSONAL DATA,SN5 ,24/06/2022,500
25400233,Licencing,Regulatory Services,Licensing,Supplies and Services,Equipment,CIRRUS RESEARCH PLC,YO14,01/06/2022,740.3
Corporate Card Transaction,Community Health & Wellbeing,Public Health,Community Health and Wellbeing Management,Supplies and Services,Materials,Citrix Systems Inc.,,09/06/2022,560.94
26520233,Planned Maintenance Programme,HRA Capital Financing,Improvements,Capital,Contractor Payments,CITY ENERGY NETWORK LTD,CF10,08/06/2022,"36,298.12"
29715233,Planned Maintenance Programme,HRA Capital Financing,Exceptional Extensive,Capital,Contractor Payments,CITY ENERGY NETWORK LTD,CF10,22/06/2022,586.4
30994233,Planned Maintenance Programme,HRA Capital Financing,Exceptional Extensive,Capital,Contractor Payments,CITY ENERGY NETWORK LTD,CF10,29/06/2022,"1,924.00"
30910233,Elections & Democracy,Elections and Democracy,Local Elections,Supplies and Services,Post,CIVICA ELECTION SERVICES LIMITED,N8 0,29/06/2022,"20,451.17"
30174233,Elections & Democracy,Elections and Democracy,Register of Electors,Supplies and Services,Materials,CIVICA ELECTION SERVICES LIMITED,N8 0,24/06/2022,453.42
30910233,Elections & Democracy,Elections and Democracy,Local Elections,Supplies and Services,Materials,CIVICA ELECTION SERVICES LIMITED,N8 0,29/06/2022,"10,903.50"
30174233,Elections & Democracy,Elections and Democracy,Register of Electors,Supplies and Services,Post,CIVICA ELECTION SERVICES LIMITED,N8 0,24/06/2022,398.75
26896233,Human Resources and Organisational Development,"People, Culture and Organisational Resilience",HR System,Supplies and Services,Services,CIVICA UK LTD,DY1 ,08/06/2022,"9,394.00"
26897233,Human Resources and Organisational Development,"People, Culture and Organisational Resilience",HR System,Supplies and Services,Services,CIVICA UK LTD,DY1 ,08/06/2022,"3,000.00"
28328242,High Needs Block,DSG Skills and Attainment,SEN Resourcing Assessment Panel,Supplies and Services,Services,REDACTED PERSONAL DATA,SN6 ,15/06/2022,"1,711.26"
27237238,Early Years Block,DSG Skills and Attainment,Free Nursery Education Commissioning - three & four  year olds,3rd Party Payments,Contracts - Child Care,REDACTED PERSONAL DATA,SN2 ,15/06/2022,586.56
26563233,Social Care,"Children, Families and Community Health Services",Placement Fostering Service,Supplies and Services,Service Charges,CLARK WARD ASSOCIATES LTD,SN1 ,08/06/2022,580
26000233,Care Management & Safeguarding,Adults,Local Safeguarding Board,Supplies and Services,Fees,CLARK WARD ASSOCIATES LTD,SN1 ,01/06/2022,580
26457233,NEV,"Economy, Growth and Place",Southern Connector Road,Capital,Professional Fees,CLARKE WILLMOTT LLP,BS1 ,08/06/2022,"1,290.00"
28592233,Disabled Children,"Children, Families and Community Health Services",DCT Daytime Short Breaks,Transfer Payments,Personal Budget - Direct Payments - Other,REDACTED PERSONAL DATA,SN25,17/06/2022,"1,206.00"
27014233,Responsive Repairs,Repairs,Responsive Repairs,3rd Party Payments,Contract Payments,CLOSOMAT LIMITED,M33 ,10/06/2022,495
28869303,Physical Support,Adults,Physical Support 65 and over,3rd Party Payments,Residential Care,COATE WATER CARE CO LTD,SN3 ,20/06/2022,"3,328.00"
28869303,Physical Support,Adults,Physical Support 18 - 64,3rd Party Payments,Residential Care,COATE WATER CARE CO LTD,SN3 ,20/06/2022,"2,668.72"
28869303,Physical Support,Adults,Physical Support 18 - 64,3rd Party Payments,Residential Care,COATE WATER CARE CO LTD,SN3 ,20/06/2022,"2,560.12"
28869303,Physical Support,Adults,Physical Support 18 - 64,3rd Party Payments,Residential Care,COATE WATER CARE CO LTD,SN3 ,20/06/2022,"8,959.27"
28869303,Physical Support,Adults,Physical Support 18 - 64,3rd Party Payments,Residential Care,COATE WATER CARE CO LTD,SN3 ,20/06/2022,"-8,532.65"
28869303,Mental Health,Adults,Mental Health 65 and over,3rd Party Payments,Residential Care,COATE WATER CARE CO LTD,SN3 ,20/06/2022,"2,800.00"
28869303,Physical Support,Adults,Physical Support 65 and over,3rd Party Payments,Residential Care,COATE WATER CARE CO LTD,SN3 ,20/06/2022,"-8,532.65"
28869303,Physical Support,Adults,Physical Support 65 and over,3rd Party Payments,Residential Care,COATE WATER CARE CO LTD,SN3 ,20/06/2022,"-3,394.56"
28869303,Physical Support,Adults,Physical Support 65 and over,3rd Party Payments,Residential Care,COATE WATER CARE CO LTD,SN3 ,20/06/2022,"-3,383.02"
28869303,Physical Support,Adults,Physical Support 65 and over,Income,Client Contribution - Residential,COATE WATER CARE CO LTD,SN3 ,20/06/2022,-955.48
28869303,Physical Support,Adults,Physical Support 65 and over,Income,Client Contribution - Residential,COATE WATER CARE CO LTD,SN3 ,20/06/2022,-597.4
28869303,Physical Support,Adults,Physical Support 65 and over,Income,Client Contribution - Residential,COATE WATER CARE CO LTD,SN3 ,20/06/2022,-510.92
28869303,Physical Support,Adults,Physical Support 65 and over,Income,Client Contribution - Residential,COATE WATER CARE CO LTD,SN3 ,20/06/2022,-893.72
28869303,Physical Support,Adults,Physical Support 65 and over,Income,Client Contribution - Residential,COATE WATER CARE CO LTD,SN3 ,20/06/2022,"-1,135.44"
28869303,Physical Support,Adults,Physical Support 65 and over,Income,Client Contribution - Residential,COATE WATER CARE CO LTD,SN3 ,20/06/2022,-506.2
28869303,Physical Support,Adults,Physical Support 65 and over,3rd Party Payments,Residential Care,COATE WATER CARE CO LTD,SN3 ,20/06/2022,"-2,060.98"
28869303,Physical Support,Adults,Physical Support 65 and over,Income,Client Contribution - Residential,COATE WATER CARE CO LTD,SN3 ,20/06/2022,-559.4
28869303,Physical Support,Adults,Physical Support 65 and over,Income,Client Contribution - Residential,COATE WATER CARE CO LTD,SN3 ,20/06/2022,-630.56
28869303,Physical Support,Adults,Physical Support 65 and over,3rd Party Payments,Residential Care,COATE WATER CARE CO LTD,SN3 ,20/06/2022,-8.46
28869303,Physical Support,Adults,Physical Support 65 and over,3rd Party Payments,Residential Care,COATE WATER CARE CO LTD,SN3 ,20/06/2022,"2,668.72"
28869303,Physical Support,Adults,Physical Support 65 and over,Income,Client Contribution - Residential,COATE WATER CARE CO LTD,SN3 ,20/06/2022,718.8
28869303,Physical Support,Adults,Physical Support 18 - 64,Income,Client Contribution - Residential,COATE WATER CARE CO LTD,SN3 ,20/06/2022,-359
28869303,Physical Support,Adults,Physical Support 65 and over,Income,Client Contribution - Residential,COATE WATER CARE CO LTD,SN3 ,20/06/2022,"-1,509.60"
28869303,Physical Support,Adults,Physical Support 65 and over,Income,Client Contribution - Residential,COATE WATER CARE CO LTD,SN3 ,20/06/2022,-754.8
28869303,Physical Support,Adults,Physical Support 65 and over,Income,Client Contribution - Residential,COATE WATER CARE CO LTD,SN3 ,20/06/2022,-539.4
28869303,Physical Support,Adults,Physical Support 65 and over,3rd Party Payments,Residential Care,COATE WATER CARE CO LTD,SN3 ,20/06/2022,"-8,185.39"
28869303,Physical Support,Adults,Physical Support 65 and over,3rd Party Payments,Residential Care,COATE WATER CARE CO LTD,SN3 ,20/06/2022,"2,560.12"
28869303,Physical Support,Adults,Physical Support 65 and over,Income,Client Contribution - Residential,COATE WATER CARE CO LTD,SN3 ,20/06/2022,553.2
28869303,Physical Support,Adults,Physical Support 65 and over,Income,Client Contribution - Residential,COATE WATER CARE CO LTD,SN3 ,20/06/2022,51.34
28869303,Physical Support,Adults,Physical Support 65 and over,Income,Client Contribution - Residential,COATE WATER CARE CO LTD,SN3 ,20/06/2022,-847.36
28869303,Physical Support,Adults,Physical Support 65 and over,Income,Client Contribution - Residential,COATE WATER CARE CO LTD,SN3 ,20/06/2022,-732
28869303,Physical Support,Adults,Physical Support 65 and over,Income,Client Contribution - Residential,COATE WATER CARE CO LTD,SN3 ,20/06/2022,-622.8
28869303,Physical Support,Adults,Physical Support 65 and over,3rd Party Payments,Residential Care,COATE WATER CARE CO LTD,SN3 ,20/06/2022,"5,120.24"
28869303,Physical Support,Adults,Physical Support 65 and over,3rd Party Payments,Residential Care,COATE WATER CARE CO LTD,SN3 ,20/06/2022,"2,671.24"
28869303,Physical Support,Adults,Physical Support 65 and over,Income,Client Contribution - Residential,COATE WATER CARE CO LTD,SN3 ,20/06/2022,"-1,434.76"
28869303,Physical Support,Adults,Physical Support 65 and over,Income,Client Contribution - Residential,COATE WATER CARE CO LTD,SN3 ,20/06/2022,"-1,201.84"
28869303,Physical Support,Adults,Physical Support 65 and over,Income,Client Contribution - Residential,COATE WATER CARE CO LTD,SN3 ,20/06/2022,-954
28869303,Physical Support,Adults,Physical Support 65 and over,3rd Party Payments,Residential Care,COATE WATER CARE CO LTD,SN3 ,20/06/2022,"8,594.69"
28869303,Physical Support,Adults,Physical Support 65 and over,3rd Party Payments,Residential Care,COATE WATER CARE CO LTD,SN3 ,20/06/2022,"8,959.27"
28869262,Learning Disabilities,Adults,Learning Disability 26 - 64,3rd Party Payments,Residential Care,COCKLEBURY FARMHOUSE,SN15,20/06/2022,"8,288.00"
28869262,Learning Disabilities,Adults,Learning Disability 26 - 64,Income,Client Contribution - Residential,COCKLEBURY FARMHOUSE,SN15,20/06/2022,-425.6
28768236,Town Centre,"Economy, Growth and Place",Fleming Way Bus Boulevard,Capital,Contractor Payments,COLAS LTD,B37 ,17/06/2022,"256,753.08"
28046249,Highways Inspections & Maintenance,Highway Operations and Car Parking,Highway Maintenance,Supplies and Services,Materials,COLAS LTD,B37 ,15/06/2022,505.64
28103233,Highways Inspections & Maintenance,Highway Operations and Car Parking,Highway Maintenance,Supplies and Services,Materials,COLAS LTD,B37 ,15/06/2022,"1,047.60"
26984233,Highways Inspections & Maintenance,Highway Operations and Car Parking,Highway Maintenance,Supplies and Services,Materials,COLAS LTD,B37 ,10/06/2022,746.4
27291233,Disabled Children,"Children, Families and Community Health Services",DCT Daytime Short Breaks,3rd Party Payments,Respite Care,COLLABORATIVE CARE SERVICES LTD,SN25,10/06/2022,"2,738.58"
28691233,NEV,"Economy, Growth and Place",Gablecross Junction,Capital,Consultants,COLLIERS INTERNATIONAL PROPERTY CONSULTANTS LTD,W1U ,17/06/2022,"2,000.00"
28689233,NEV,"Economy, Growth and Place",Gablecross Junction,Capital,Consultants,COLLIERS INTERNATIONAL PROPERTY CONSULTANTS LTD,W1U ,17/06/2022,"2,000.00"
29393233,High Needs Block,DSG Skills and Attainment,SEN Resourcing Assessment Panel,3rd Party Payments,Top up funding - Maintained providers Pre 16,COLOURFUL TIME DAY NURSERY LTD,SN5 ,22/06/2022,540
28869251,Learning Disabilities,Adults,Learning Disability 26 - 64,3rd Party Payments,Supported Living,COMMUNITY ACCESS NETWORK LTD,SN25,20/06/2022,497.28
28869250,Learning Disabilities,Adults,Learning Disability 26 - 64,3rd Party Payments,Residential Care,COMMUNITY ACCESS NETWORK LTD,SN25,20/06/2022,"4,820.08"
28869250,Learning Disabilities,Adults,Learning Disability 26 - 64,Income,Client Contribution - Residential,COMMUNITY ACCESS NETWORK LTD,SN25,20/06/2022,-293.6
28869250,Learning Disabilities,Adults,Learning Disability 65 and over,Income,Client Contribution - Residential,COMMUNITY ACCESS NETWORK LTD,SN25,20/06/2022,-578.2
28869251,Learning Disabilities,Adults,Learning Disability 26 - 64,3rd Party Payments,Supported Living,COMMUNITY ACCESS NETWORK LTD,SN25,20/06/2022,"1,207.68"
28869251,Learning Disabilities,Adults,Learning Disability 26 - 64,3rd Party Payments,Supported Living,COMMUNITY ACCESS NETWORK LTD,SN25,20/06/2022,24
28869251,Learning Disabilities,Adults,Learning Disability 26 - 64,3rd Party Payments,Supported Living,COMMUNITY ACCESS NETWORK LTD,SN25,20/06/2022,"1,342.76"
28869251,Learning Disabilities,Adults,Learning Disability 26 - 64,Income,Client Contribution - Supported Living,COMMUNITY ACCESS NETWORK LTD,SN25,20/06/2022,-142.8
28869250,Learning Disabilities,Adults,Learning Disability 65 and over,3rd Party Payments,Residential Care,COMMUNITY ACCESS NETWORK LTD,SN25,20/06/2022,"4,817.08"
28869251,Learning Disabilities,Adults,Learning Disability 26 - 64,3rd Party Payments,Supported Living,COMMUNITY ACCESS NETWORK LTD,SN25,20/06/2022,"3,683.08"
29789233,Social Care,"Children, Families and Community Health Services",Looked After Children Service,3rd Party Payments,Personal Needs,COMMUNITY FOSTER CARE,GL1 ,22/06/2022,584.01
28824237,Social Care,"Children, Families and Community Health Services",External Placements,3rd Party Payments,Independent Fostering Agency Placements,COMMUNITY FOSTER CARE,GL1 ,17/06/2022,"3,953.43"
28824238,Social Care,"Children, Families and Community Health Services",External Placements,3rd Party Payments,Independent Fostering Agency Placements,COMMUNITY FOSTER CARE,GL1 ,17/06/2022,"5,139.80"
28824236,Social Care,"Children, Families and Community Health Services",External Placements,3rd Party Payments,Independent Fostering Agency Placements,COMMUNITY FOSTER CARE,GL1 ,17/06/2022,"4,058.21"
28869304,Learning Disabilities,Adults,Learning Disability 26 - 64,3rd Party Payments,Residential Care,COMMUNITY THERAPEUTIC SERVICES LTD,BS22,20/06/2022,"10,824.40"
30335239,Social Care,"Children, Families and Community Health Services",External Placements,3rd Party Payments,Independent Fostering Agency Placements,COMPASS FOSTERING WEST LTD,LE11,24/06/2022,"3,445.65"
30179235,Social Care,"Children, Families and Community Health Services",External Placements,3rd Party Payments,Independent Fostering Agency Placements,COMPASS FOSTERING WEST LTD,LE11,24/06/2022,"3,445.65"
30180238,Social Care,"Children, Families and Community Health Services",External Placements,3rd Party Payments,Independent Fostering Agency Placements,COMPASS FOSTERING WEST LTD,LE11,24/06/2022,"3,501.90"
30335246,Social Care,"Children, Families and Community Health Services",External Placements,3rd Party Payments,Independent Fostering Agency Placements,COMPASS FOSTERING WEST LTD,LE11,24/06/2022,"3,284.40"
30181235,Social Care,"Children, Families and Community Health Services",External Placements,3rd Party Payments,Independent Fostering Agency Placements,COMPASS FOSTERING WEST LTD,LE11,24/06/2022,"3,326.70"
30181234,Social Care,"Children, Families and Community Health Services",External Placements,3rd Party Payments,Independent Fostering Agency Placements,COMPASS FOSTERING WEST LTD,LE11,24/06/2022,"3,437.59"
30180239,Social Care,"Children, Families and Community Health Services",External Placements,3rd Party Payments,Independent Fostering Agency Placements,COMPASS FOSTERING WEST LTD,LE11,24/06/2022,"3,461.15"
30179233,Social Care,"Children, Families and Community Health Services",External Placements,3rd Party Payments,Independent Fostering Agency Placements,COMPASS FOSTERING WEST LTD,LE11,24/06/2022,"3,239.50"
30335240,Social Care,"Children, Families and Community Health Services",External Placements,3rd Party Payments,Independent Fostering Agency Placements,COMPASS FOSTERING WEST LTD,LE11,24/06/2022,"3,334.50"
30179236,Social Care,"Children, Families and Community Health Services",External Placements,3rd Party Payments,Independent Fostering Agency Placements,COMPASS FOSTERING WEST LTD,LE11,24/06/2022,"3,334.50"
30180237,Social Care,"Children, Families and Community Health Services",External Placements,3rd Party Payments,Independent Fostering Agency Placements,COMPASS FOSTERING WEST LTD,LE11,24/06/2022,"3,618.63"
30180233,Social Care,"Children, Families and Community Health Services",External Placements,3rd Party Payments,Independent Fostering Agency Placements,COMPASS FOSTERING WEST LTD,LE11,24/06/2022,"3,224.00"
30335242,Social Care,"Children, Families and Community Health Services",External Placements,3rd Party Payments,Independent Fostering Agency Placements,COMPASS FOSTERING WEST LTD,LE11,24/06/2022,"3,135.00"
30335243,Social Care,"Children, Families and Community Health Services",External Placements,3rd Party Payments,Independent Fostering Agency Placements,COMPASS FOSTERING WEST LTD,LE11,24/06/2022,"5,092.99"
30179239,Social Care,"Children, Families and Community Health Services",External Placements,3rd Party Payments,Independent Fostering Agency Placements,COMPASS FOSTERING WEST LTD,LE11,24/06/2022,"3,069.00"
30179240,Social Care,"Children, Families and Community Health Services",External Placements,3rd Party Payments,Independent Fostering Agency Placements,COMPASS FOSTERING WEST LTD,LE11,24/06/2022,"2,970.00"
30335245,Social Care,"Children, Families and Community Health Services",External Placements,3rd Party Payments,Independent Fostering Agency Placements,COMPASS FOSTERING WEST LTD,LE11,24/06/2022,"2,518.04"
30180241,Social Care,"Children, Families and Community Health Services",External Placements,3rd Party Payments,Independent Fostering Agency Placements,COMPASS FOSTERING WEST LTD,LE11,24/06/2022,"3,437.59"
30180236,Social Care,"Children, Families and Community Health Services",External Placements,3rd Party Payments,Independent Fostering Agency Placements,COMPASS FOSTERING WEST LTD,LE11,24/06/2022,"3,120.00"
30335237,Social Care,"Children, Families and Community Health Services",External Placements,3rd Party Payments,Independent Fostering Agency Placements,COMPASS FOSTERING WEST LTD,LE11,24/06/2022,"6,195.66"
30181233,Social Care,"Children, Families and Community Health Services",External Placements,3rd Party Payments,Independent Fostering Agency Placements,COMPASS FOSTERING WEST LTD,LE11,24/06/2022,"3,326.70"
30180240,Social Care,"Children, Families and Community Health Services",External Placements,3rd Party Payments,Independent Fostering Agency Placements,COMPASS FOSTERING WEST LTD,LE11,24/06/2022,"3,349.50"
30335238,Social Care,"Children, Families and Community Health Services",External Placements,3rd Party Payments,Independent Fostering Agency Placements,COMPASS FOSTERING WEST LTD,LE11,24/06/2022,"5,995.80"
30179237,Social Care,"Children, Families and Community Health Services",External Placements,3rd Party Payments,Independent Fostering Agency Placements,COMPASS FOSTERING WEST LTD,LE11,24/06/2022,"3,009.17"
30335241,Social Care,"Children, Families and Community Health Services",External Placements,3rd Party Payments,Independent Fostering Agency Placements,COMPASS FOSTERING WEST LTD,LE11,24/06/2022,"3,239.50"
30180234,Social Care,"Children, Families and Community Health Services",External Placements,3rd Party Payments,Independent Fostering Agency Placements,COMPASS FOSTERING WEST LTD,LE11,24/06/2022,"3,120.00"
30179234,Social Care,"Children, Families and Community Health Services",External Placements,3rd Party Payments,Independent Fostering Agency Placements,COMPASS FOSTERING WEST LTD,LE11,24/06/2022,"3,135.00"
30181236,Social Care,"Children, Families and Community Health Services",Placement - Care Leaver Team,3rd Party Payments,Staying Put,COMPASS FOSTERING WEST LTD,LE11,24/06/2022,"2,035.80"
30179238,Social Care,"Children, Families and Community Health Services",External Placements,3rd Party Payments,Independent Fostering Agency Placements,COMPASS FOSTERING WEST LTD,LE11,24/06/2022,"2,912.10"
30335244,Social Care,"Children, Families and Community Health Services",External Placements,3rd Party Payments,Independent Fostering Agency Placements,COMPASS FOSTERING WEST LTD,LE11,24/06/2022,"4,928.70"
30180235,Social Care,"Children, Families and Community Health Services",External Placements,3rd Party Payments,Independent Fostering Agency Placements,COMPASS FOSTERING WEST LTD,LE11,24/06/2022,"3,224.00"
29901233,Disabled Children,"Children, Families and Community Health Services",DCT Daytime Short Breaks,3rd Party Payments,Respite Care,COMPLETELY CARE RECRUITMENT CONSULTANTS LIMITED,GL17,22/06/2022,932.1
25374233,Disabled Children,"Children, Families and Community Health Services",DCT Daytime Short Breaks,3rd Party Payments,Respite Care,COMPLETELY CARE RECRUITMENT CONSULTANTS LIMITED,GL17,01/06/2022,"1,179.15"
29485234,Disabled Children,"Children, Families and Community Health Services",DCT Daytime Short Breaks,3rd Party Payments,Respite Care,COMPLETELY CARE RECRUITMENT CONSULTANTS LIMITED,GL17,22/06/2022,796.75
29900233,Disabled Children,"Children, Families and Community Health Services",DCT Daytime Short Breaks,3rd Party Payments,Respite Care,COMPLETELY CARE RECRUITMENT CONSULTANTS LIMITED,GL17,22/06/2022,920.15
31040238,Learning Disabilities,Adults,Learning Disability 26 - 64,Transfer Payments,Personal Budget - Direct Payments - Domiciliary Care,REDACTED PERSONAL DATA,GL2 ,29/06/2022,"4,199.53"
28766233,Property Management,Property,Corporate Repairs & Maintenance Programme,Premises Costs,Maintenance - Buildings,COOLINK LTD,SN11,17/06/2022,489
27056233,Property Management,Property,Corporate Repairs & Maintenance Programme,Premises Costs,Maintenance - Buildings,COOLINK LTD,SN11,10/06/2022,195
27058233,Property Management,Property,Corporate Repairs & Maintenance Programme,Premises Costs,Maintenance - Buildings,COOLINK LTD,SN11,10/06/2022,731.54
27056233,Property Management,Property,Corporate Repairs & Maintenance Programme,Premises Costs,Maintenance - Buildings,COOLINK LTD,SN11,10/06/2022,240
27056233,Property Service Charged Properties,Property,Service Charged - North Swindon Library Complex,Premises Costs,Maintenance - Buildings,COOLINK LTD,SN11,10/06/2022,285
27056233,Property Service Charged Properties,Property,Service Charged - North Swindon Library Complex,Premises Costs,Maintenance - Buildings,COOLINK LTD,SN11,10/06/2022,229
28766233,Property Management,Property,Corporate Repairs & Maintenance Programme,Premises Costs,Maintenance - Buildings,COOLINK LTD,SN11,17/06/2022,208.6
27056233,Streetsmart,Streetsmart,Waterside Depot,Premises Costs,Maintenance - Buildings,COOLINK LTD,SN11,10/06/2022,252
27056233,Streetsmart,Streetsmart,Waterside Depot,Premises Costs,Maintenance - Buildings,COOLINK LTD,SN11,10/06/2022,144
31147248,Safeguarding and Quality Assurance,"Children, Families and Community Health Services",Participation,3rd Party Payments,Contracts - Child Care,CORAM VOICE,WC1N,29/06/2022,"12,396.95"
26214233,Social Care,"Children, Families and Community Health Services",Placement Adoption Service,3rd Party Payments,Adoption Allowances,REDACTED PERSONAL DATA,BA15,06/06/2022,860
29103233,Social Care,"Children, Families and Community Health Services",Placement Adoption Service,3rd Party Payments,Adoption Allowances,REDACTED PERSONAL DATA,BA15,20/06/2022,860
28869282,Learning Disabilities,Adults,Learning Disability 26 - 64,3rd Party Payments,Residential Care,CORNERSTONES UK LTD,SN9 ,20/06/2022,"4,178.84"
28869282,Learning Disabilities,Adults,Learning Disability 26 - 64,3rd Party Payments,Residential Care,CORNERSTONES UK LTD,SN9 ,20/06/2022,"5,322.56"
28869282,Learning Disabilities,Adults,Learning Disability 26 - 64,3rd Party Payments,Residential Care,CORNERSTONES UK LTD,SN9 ,20/06/2022,"8,160.76"
28869282,Learning Disabilities,Adults,Learning Disability 26 - 64,Income,Client Contribution - Residential,CORNERSTONES UK LTD,SN9 ,20/06/2022,-414.2
28869282,Learning Disabilities,Adults,Learning Disability 26 - 64,3rd Party Payments,Residential Care,CORNERSTONES UK LTD,SN9 ,20/06/2022,"7,986.12"
28869282,Learning Disabilities,Adults,Learning Disability 26 - 64,Income,Client Contribution - Residential,CORNERSTONES UK LTD,SN9 ,20/06/2022,-423
28869282,Learning Disabilities,Adults,Learning Disability 26 - 64,3rd Party Payments,Residential Care,CORNERSTONES UK LTD,SN9 ,20/06/2022,"6,922.20"
28869282,Learning Disabilities,Adults,Learning Disability 26 - 64,3rd Party Payments,Residential Care,CORNERSTONES UK LTD,SN9 ,20/06/2022,"6,251.16"
28869282,Learning Disabilities,Adults,Learning Disability 26 - 64,Income,Client Contribution - Residential,CORNERSTONES UK LTD,SN9 ,20/06/2022,-410.2
28869282,Learning Disabilities,Adults,Learning Disability 26 - 64,Income,Client Contribution - Residential,CORNERSTONES UK LTD,SN9 ,20/06/2022,-361
30941233,Small New Build Schemes,HRA Capital Financing,Ventnor Close,Capital,Professional Fees,COTSWOLD TREE SURGEONS LTD,SN5 ,29/06/2022,"1,450.00"
31040505,Learning Disabilities,Adults,Learning Disability 26 - 64,Transfer Payments,Personal Budget - Direct Payments - Domiciliary Care,REDACTED PERSONAL DATA,SP11,29/06/2022,"1,604.83"
28508239,Schools - Primary,DSG Skills and Attainment,Primary School Budgets,3rd Party Payments,Mainstream Delegated Funding,COVINGHAM PARK PRIMARY SCHOOL,SN3 ,17/06/2022,"130,174.00"
25121243,Schools - Primary,DSG Skills and Attainment,Primary School Budgets,Supplies and Services,Payments to Educational Bodies,COVINGHAM PARK PRIMARY SCHOOL,SN3 ,01/06/2022,"2,283.75"
28330236,High Needs Block,DSG Skills and Attainment,SEN Resourcing Assessment Panel,3rd Party Payments,Top up funding - Maintained providers Pre 16,COVINGHAM PARK PRIMARY SCHOOL,SN3 ,15/06/2022,"1,561.67"
25123235,Schools - Primary,DSG Skills and Attainment,Primary School Budgets,Supplies and Services,Payments to Educational Bodies,COVINGHAM PARK PRIMARY SCHOOL,SN3 ,01/06/2022,"4,944.38"
28513238,DSG Other Funding,DSG Skills and Attainment,DFE Additional Grants,3rd Party Payments,Payment of Pupil Premium to school,COVINGHAM PARK PRIMARY SCHOOL,SN3 ,17/06/2022,"8,157.00"
30340244,DSG Other Funding,DSG Skills and Attainment,DFE Additional Grants,Supplies and Services,Payments to Educational Bodies,COVINGHAM PARK PRIMARY SCHOOL,SN3 ,27/06/2022,"18,665.00"
25120243,Schools - Primary,DSG Skills and Attainment,Primary School Budgets,Supplies and Services,Payments to Educational Bodies,COVINGHAM PARK PRIMARY SCHOOL,SN3 ,01/06/2022,"8,033.00"
28869356,Memory & Cognition,Adults,Support for Memory and Cognition 65 and over,3rd Party Payments,Residential Care,COXWELL HALL AND MEWS NURSING HOME,TW20,20/06/2022,"5,968.24"
29716233,Streetsmart,Streetsmart,Lydiard House - Maintenance,Capital,Contractor Payments,CPS CONSTRUCTION LTD,BS15,22/06/2022,"28,458.24"
28869256,Learning Disabilities,Adults,Learning Disability 26 - 64,Income,Client Contribution - Residential,CRAEGMOOR HEALTHCARE,BA14,20/06/2022,-414.2
28869256,Learning Disabilities,Adults,Learning Disability 26 - 64,3rd Party Payments,Residential Care,CRAEGMOOR HEALTHCARE,BA14,20/06/2022,"8,267.84"
27607233,Town Centre,"Economy, Growth and Place",Economic Development,Supplies and Services,Publicity,CREATE STUDIOS DIGITAL MEDIA LTD,SN1 ,13/06/2022,"2,497.50"
29360234,Early Years Block,DSG Skills and Attainment,Free Nursery Education Commissioning - three & four  year olds,3rd Party Payments,Contracts - Child Care,CROFT PLAYGROUP,SN3 ,22/06/2022,750
29140241,School Transport,Inclusion and Achievement,Mainstream School Transport,Transport Costs,Home to School Transport,CROSS STREET RADIO CARS,SN1 ,20/06/2022,950
29160235,School Transport,Inclusion and Achievement,Mainstream School Transport,Transport Costs,Home to School Transport,CROSS STREET RADIO CARS,SN1 ,20/06/2022,"1,900.00"
28898233,School Transport,Inclusion and Achievement,Special Educational Needs Transport,Transport Costs,Home to School Transport,CROSS STREET RADIO CARS,SN1 ,17/06/2022,"1,320.00"
27629233,School Transport,Inclusion and Achievement,Special Educational Needs Transport,Transport Costs,Home to School Transport,CROSS STREET RADIO CARS,SN1 ,13/06/2022,"2,400.00"
28900233,School Transport,Inclusion and Achievement,Special Educational Needs Transport,Transport Costs,Home to School Transport,CROSS STREET RADIO CARS,SN1 ,17/06/2022,"1,900.00"
25121253,High Needs Block,DSG Skills and Attainment,Special School Place,3rd Party Payments,HNB- Place Funding post 16,CROWDYS HILL SCHOOL,SN2 ,01/06/2022,"6,017.50"
28332238,High Needs Block,DSG Skills and Attainment,SEN Resourcing Assessment Panel,3rd Party Payments,Top up funding - Maintained providers Pre 16,CROWDYS HILL SCHOOL,SN2 ,15/06/2022,"138,378.28"
28508250,High Needs Block,DSG Skills and Attainment,Special School Place,3rd Party Payments,HNB- Place Funding pre 16,CROWDYS HILL SCHOOL,SN2 ,17/06/2022,"170,000.00"
28332237,High Needs Block,DSG Skills and Attainment,SEN Resourcing Assessment Panel,3rd Party Payments,Top up funding - Maintained providers Pre 16,CROWDYS HILL SCHOOL,SN2 ,15/06/2022,"52,406.16"
28508249,High Needs Block,DSG Skills and Attainment,Special School Place,3rd Party Payments,HNB- Place Funding post 16,CROWDYS HILL SCHOOL,SN2 ,17/06/2022,"38,333.00"
25123245,High Needs Block,DSG Skills and Attainment,Special School Place,3rd Party Payments,HNB- Place Funding post 16,CROWDYS HILL SCHOOL,SN2 ,01/06/2022,"17,889.38"
28336234,High Needs Block,DSG Skills and Attainment,SEN Resourcing Assessment Panel,3rd Party Payments,Top up funding - Maintained providers Post 16,CROWDYS HILL SCHOOL,SN2 ,15/06/2022,"56,576.61"
25120253,High Needs Block,DSG Skills and Attainment,Special School Place,3rd Party Payments,HNB- Place Funding post 16,CROWDYS HILL SCHOOL,SN2 ,01/06/2022,"6,837.00"
28515233,DSG Other Funding,DSG Skills and Attainment,DFE Additional Grants,3rd Party Payments,Payment of Pupil Premium to school,CROWDYS HILL SCHOOL,SN2 ,17/06/2022,"9,578.00"
26165233,Physical Support,Adults,Physical Support 65 and over,3rd Party Payments,Personal Budget - Domiciliary care,CRYSTAL CARING LIMITED,SN2 ,06/06/2022,"1,650.40"
26164233,Physical Support,Adults,Physical Support 65 and over,3rd Party Payments,Personal Budget - Domiciliary care,CRYSTAL CARING LIMITED,SN2 ,06/06/2022,"2,855.52"
26163233,Physical Support,Adults,Physical Support 65 and over,3rd Party Payments,Personal Budget - Domiciliary care,CRYSTAL CARING LIMITED,SN2 ,06/06/2022,"1,448.00"
26166233,Physical Support,Adults,Physical Support 18 - 64,3rd Party Payments,Personal Budget - Domiciliary care,CRYSTAL CARING LIMITED,SN2 ,06/06/2022,"4,158.56"
29295233,Other Repairs,Repairs,Asbestos Services,Premises Costs,Permanent Fixtures and Fittings,CRYSTAL ELECTRONICS LTD,NN6 ,20/06/2022,"1,667.17"
29296233,Other Repairs,Repairs,Asbestos Services,Premises Costs,Permanent Fixtures and Fittings,CRYSTAL ELECTRONICS LTD,NN6 ,20/06/2022,"1,667.17"
29443233,Responsive Repairs,Repairs,Responsive Repairs,3rd Party Payments,Contract Payments,CRYSTAL ELECTRONICS LTD,NN6 ,22/06/2022,548.5
29293233,Other Repairs,Repairs,Asbestos Services,Premises Costs,Permanent Fixtures and Fittings,CRYSTAL ELECTRONICS LTD,NN6 ,20/06/2022,"1,667.17"
29440233,Responsive Repairs,Repairs,Responsive Repairs,Supplies and Services,Materials,CRYSTAL ELECTRONICS LTD,NN6 ,22/06/2022,807.5
29297233,Other Repairs,Repairs,Asbestos Services,Premises Costs,Permanent Fixtures and Fittings,CRYSTAL ELECTRONICS LTD,NN6 ,20/06/2022,"1,667.17"
29442233,Responsive Repairs,Repairs,Responsive Repairs,Supplies and Services,Materials,CRYSTAL ELECTRONICS LTD,NN6 ,22/06/2022,575
29441233,Responsive Repairs,Repairs,Responsive Repairs,Supplies and Services,Materials,CRYSTAL ELECTRONICS LTD,NN6 ,22/06/2022,655
29294233,Other Repairs,Repairs,Asbestos Services,Premises Costs,Permanent Fixtures and Fittings,CRYSTAL ELECTRONICS LTD,NN6 ,20/06/2022,"1,667.17"
30967233,Property Regeneration,Property,Regeneration Schemes,Supplies and Services,Services,CSQUARED REAL ESTATE LLP,BA1 ,29/06/2022,"1,475.00"
30235233,Highways Inspections & Maintenance,Highway Operations and Car Parking,Streetlighting,Supplies and Services,Materials,CU PHOSCO LIGHTING LTD,SG12,24/06/2022,13.14
30235233,Highways Inspections & Maintenance,Highway Operations and Car Parking,Streetlighting,Supplies and Services,Materials,CU PHOSCO LIGHTING LTD,SG12,24/06/2022,14.42
30235233,Highways Inspections & Maintenance,Highway Operations and Car Parking,Streetlighting,Supplies and Services,Materials,CU PHOSCO LIGHTING LTD,SG12,24/06/2022,19.97
30235233,Highways Inspections & Maintenance,Highway Operations and Car Parking,Streetlighting,Supplies and Services,Materials,CU PHOSCO LIGHTING LTD,SG12,24/06/2022,89.85
30235233,Highways Inspections & Maintenance,Highway Operations and Car Parking,Streetlighting,Supplies and Services,Materials,CU PHOSCO LIGHTING LTD,SG12,24/06/2022,"1,305.00"
28524233,Customer Strategy & Operations,"People, Culture and Organisational Resilience",Cemeteries & Crematoria,Supplies and Services,Goods for resale,CYAN-------,CR5 ,15/06/2022,"1,433.33"
27212233,DSG Other Funding,DSG Skills and Attainment,LAC pupil premium,3rd Party Payments,Education / Training,CYGNETS PRE-SCHOOL,BA13,10/06/2022,"1,072.50"
31040273,Physical Support,Adults,Physical Support 18 - 64,Transfer Payments,Personal Budget - Direct Payments - Domiciliary Care,REDACTED PERSONAL DATA,SN25,29/06/2022,"3,076.26"
31040576,Physical Support,Adults,Physical Support 18 - 64,Transfer Payments,Personal Budget - Direct Payments - Domiciliary Care,REDACTED PERSONAL DATA,SP11,29/06/2022,"4,468.00"
31034235,Physical Support,Adults,Physical Support 18 - 64,Transfer Payments,Personal Budget - Direct Payments - Domiciliary Care,REDACTED PERSONAL DATA,SN3 ,29/06/2022,"2,686.43"
31040409,Learning Disabilities,Adults,Learning Disability 26 - 64,Transfer Payments,Personal Budget - Direct Payments - Domiciliary Care,REDACTED PERSONAL DATA,SN2 ,29/06/2022,"1,445.84"
31040447,Learning Disabilities,Adults,Learning Disability 26 - 64,Transfer Payments,Personal Budget - Direct Payments - Domiciliary Care,REDACTED PERSONAL DATA,SN2 ,29/06/2022,"9,937.71"
31040322,Physical Support,Adults,Physical Support 18 - 64,Transfer Payments,Personal Budget - Direct Payments - Domiciliary Care,REDACTED PERSONAL DATA,SN2 ,29/06/2022,599.56
31040392,Learning Disabilities,Adults,Learning Disability 26 - 64,Transfer Payments,Personal Budget - Direct Payments - Domiciliary Care,REDACTED PERSONAL DATA,SP11,29/06/2022,698.07
31040393,Learning Disabilities,Adults,Learning Disability 26 - 64,Transfer Payments,Personal Budget - Direct Payments - Domiciliary Care,REDACTED PERSONAL DATA,SP11,29/06/2022,698.07
31040394,Learning Disabilities,Adults,Learning Disability 26 - 64,Transfer Payments,Personal Budget - Direct Payments - Domiciliary Care,REDACTED PERSONAL DATA,SP11,29/06/2022,698.07
29175307,Social Care,"Children, Families and Community Health Services",Placement Adoption Service,3rd Party Payments,Special Guardianship Orders,REDACTED PERSONAL DATA,B35 ,20/06/2022,676.96
26323235,Social Care,"Children, Families and Community Health Services",Placement Adoption Service,3rd Party Payments,Special Guardianship Orders,REDACTED PERSONAL DATA,B35 ,06/06/2022,676.96
26680233,Streetsmart,Streetsmart,Waterside Fleet Hires,Transport Costs,Vehicle Hire / Contract,DAWSONRENTLES SWEEPERS,HD6 ,08/06/2022,"3,041.67"
27341233,Streetsmart,Streetsmart,Waterside Fleet Hires,Transport Costs,Vehicle Hire / Contract,DAWSONRENTLES SWEEPERS,HD6 ,10/06/2022,"3,041.67"
27340233,Streetsmart,Streetsmart,Waterside Fleet Hires,Transport Costs,Vehicle Hire / Contract,DAWSONRENTLES SWEEPERS,HD6 ,10/06/2022,"2,867.86"
26679233,Streetsmart,Streetsmart,Waterside Fleet Hires,Transport Costs,Vehicle Hire / Contract,DAWSONRENTLES SWEEPERS,HD6 ,08/06/2022,"2,867.86"
27342233,Streetsmart,Streetsmart,Waterside Fleet Hires,Transport Costs,Vehicle Hire / Contract,DAWSONRENTLES SWEEPERS,HD6 ,10/06/2022,"2,150.90"
27343233,Streetsmart,Streetsmart,Waterside Fleet Hires,Transport Costs,Vehicle Hire / Contract,DAWSONRENTLES SWEEPERS,HD6 ,10/06/2022,"2,954.77"
27344233,Streetsmart,Streetsmart,Waterside Fleet Hires,Transport Costs,Vehicle Hire / Contract,DAWSONRENTLES SWEEPERS,HD6 ,10/06/2022,"2,954.77"
26681233,Streetsmart,Streetsmart,Waterside Fleet Hires,Transport Costs,Vehicle Hire / Contract,DAWSONRENTLES SWEEPERS,HD6 ,08/06/2022,"2,150.90"
26683233,Streetsmart,Streetsmart,Waterside Fleet Hires,Transport Costs,Vehicle Hire / Contract,DAWSONRENTLES SWEEPERS,HD6 ,08/06/2022,"2,954.77"
26682233,Streetsmart,Streetsmart,Waterside Fleet Hires,Transport Costs,Vehicle Hire / Contract,DAWSONRENTLES SWEEPERS,HD6 ,08/06/2022,"2,954.77"
26146235,Social Care,"Children, Families and Community Health Services",Placement Fostering Service,3rd Party Payments,Foster Care Basic Payments,REDACTED PERSONAL DATA,SN5 ,06/06/2022,301.06
26146235,Social Care,"Children, Families and Community Health Services",Placement Fostering Service,3rd Party Payments,Foster Care Additional Allowance,REDACTED PERSONAL DATA,SN5 ,06/06/2022,18
26134233,Social Care,"Children, Families and Community Health Services",Placement Fostering Service,3rd Party Payments,Foster Care Additional Allowance,REDACTED PERSONAL DATA,SN5 ,06/06/2022,100
26134233,Social Care,"Children, Families and Community Health Services",Placement Fostering Service,3rd Party Payments,Foster Care Basic Payments,REDACTED PERSONAL DATA,SN5 ,06/06/2022,520.2
26134233,Social Care,"Children, Families and Community Health Services",Placement Fostering Service,3rd Party Payments,Carers Skills Payments - Advanced,REDACTED PERSONAL DATA,SN5 ,06/06/2022,270
29050233,Social Care,"Children, Families and Community Health Services",Placement Fostering Service,3rd Party Payments,Carers Skills Payments - Advanced,REDACTED PERSONAL DATA,SN5 ,20/06/2022,270
29050233,Social Care,"Children, Families and Community Health Services",Placement Fostering Service,3rd Party Payments,Foster Care Basic Payments,REDACTED PERSONAL DATA,SN5 ,20/06/2022,520.2
29050233,Social Care,"Children, Families and Community Health Services",Placement Fostering Service,3rd Party Payments,Foster Care Additional Allowance,REDACTED PERSONAL DATA,SN5 ,20/06/2022,100
26138233,Social Care,"Children, Families and Community Health Services",Placement Fostering Service,3rd Party Payments,Carers Skills Payments - Qualified,REDACTED PERSONAL DATA,SN1 ,06/06/2022,160
26138233,Social Care,"Children, Families and Community Health Services",Placement Fostering Service,3rd Party Payments,Carers Skills Payments - Qualified,REDACTED PERSONAL DATA,SN1 ,06/06/2022,34.29
26138233,Social Care,"Children, Families and Community Health Services",Placement Fostering Service,3rd Party Payments,Carers Skills Payments - Qualified,REDACTED PERSONAL DATA,SN1 ,06/06/2022,-22.86
26138233,Social Care,"Children, Families and Community Health Services",Placement Fostering Service,3rd Party Payments,Foster Care Basic Payments,REDACTED PERSONAL DATA,SN1 ,06/06/2022,520.2
26138233,Social Care,"Children, Families and Community Health Services",Placement Fostering Service,3rd Party Payments,Foster Care Basic Payments,REDACTED PERSONAL DATA,SN1 ,06/06/2022,-70.22
26138233,Social Care,"Children, Families and Community Health Services",Placement Fostering Service,3rd Party Payments,Foster Care Basic Payments,REDACTED PERSONAL DATA,SN1 ,06/06/2022,105.33
28779233,Other Repairs,Repairs,Delivery Team & Overheads,Transport Costs,Repairs & Maintenance - Vehicles,DEMAR UK LTD,WR14,22/06/2022,470
27241233,Early Years Block,DSG Skills and Attainment,Free Nursery Education Commissioning - three & four  year olds,3rd Party Payments,Contracts - Child Care,REDACTED PERSONAL DATA,SN1 ,15/06/2022,534.4
28473233,Learning Disabilities,Adults,Learning Disability 26 - 64,3rd Party Payments,Supported Accommodation Scheme,REDACTED PERSONAL DATA,SN2 ,22/06/2022,"2,094.20"
28473233,Learning Disabilities,Adults,Learning Disability 26 - 64,3rd Party Payments,Supported Accommodation Scheme,REDACTED PERSONAL DATA,SN2 ,22/06/2022,"2,505.90"
28473233,Learning Disabilities,Adults,Learning Disability 26 - 64,3rd Party Payments,Supported Accommodation Scheme,REDACTED PERSONAL DATA,SN2 ,22/06/2022,"2,076.42"
27597233,Planning & Regulatory,Strategic Planning,Landscape & Countryside Works,Supplies and Services,Subscriptions,DESIGNCO LTD T/A CAD SOFTWARE DIRECT,CO1 ,13/06/2022,690
26465234,Street Furniture & Lighting,Strategic Planning and Highways,LED Street Lighting,Capital,Professional Fees,DESIGNS FOR LIGHTING LTD,SO23,08/06/2022,"1,147.50"
29742233,Other Repairs,Repairs,Cyclical Maintenance,Premises Costs,Maintenance - Buildings,DEVELOP TRAINING LTD,DE24,22/06/2022,"3,405.00"
29583234,Social Care,"Children, Families and Community Health Services",Looked After Children Service,Transport Costs,Client Costs of Taxis,DEVON COUNTY COUNCIL,EX4 ,22/06/2022,"2,496.00"
29082233,Social Care,"Children, Families and Community Health Services",Placement Adoption Service,3rd Party Payments,Adoption Allowances,REDACTED PERSONAL DATA,CF44,20/06/2022,500.34
26187233,Social Care,"Children, Families and Community Health Services",Placement Adoption Service,3rd Party Payments,Adoption Allowances,REDACTED PERSONAL DATA,CF44,06/06/2022,500.34
28582233,Disabled Children,"Children, Families and Community Health Services",Aiming High for Disabled Children,Supplies and Services,Services,DIRECT HEALTHCARE GROUP,CF83,17/06/2022,477.39
28869343,Physical Support,Adults,Physical Support 65 and over,Income,Client Contribution - Nursing,DIVA CARE LIMITED,GL7 ,20/06/2022,-610
28869343,Physical Support,Adults,Physical Support 65 and over,3rd Party Payments,Nursing Care,DIVA CARE LIMITED,GL7 ,20/06/2022,"3,246.44"
28618233,Social Care,"Children, Families and Community Health Services",Legal Fees,Supplies and Services,Fees,DNA WORLDWIDE GROUP,BA11,17/06/2022,"1,589.00"
30259233,Social Care,"Children, Families and Community Health Services",Legal Fees,Supplies and Services,Fees,DNA WORLDWIDE GROUP,BA11,24/06/2022,"1,938.00"
28759233,Social Care,"Children, Families and Community Health Services",Legal Fees,Supplies and Services,Fees,DNA WORLDWIDE GROUP,BA11,17/06/2022,987
30157233,Social Care,"Children, Families and Community Health Services",Legal Fees,Supplies and Services,Fees,DNA WORLDWIDE GROUP,BA11,24/06/2022,649
28814233,Social Care,"Children, Families and Community Health Services",Legal Fees,Supplies and Services,Fees,DNA WORLDWIDE GROUP,BA11,17/06/2022,479
28707234,Social Care,"Children, Families and Community Health Services",Legal Fees,Supplies and Services,Fees,DNA WORLDWIDE GROUP,BA11,17/06/2022,631.67
28680235,Social Care,"Children, Families and Community Health Services",Legal Fees,Supplies and Services,Fees,DNA WORLDWIDE GROUP,BA11,17/06/2022,665
27210233,Homelessness and Travellers,Housing Services,Leased Private Managed Accommodation,Transfer Payments,Payment of Costs,DODE'S LOADS,SN5 ,10/06/2022,550
26379233,Planned Maintenance Programme,HRA Capital Financing,Kitchens,Capital,Contractor Payments,DOMESTIC APPLIANCE DISTRIBUTORS,GL20,06/06/2022,"1,635.00"
26379233,Planned Maintenance Programme,HRA Capital Financing,Kitchens,Capital,Contractor Payments,DOMESTIC APPLIANCE DISTRIBUTORS,GL20,06/06/2022,"2,010.00"
31040241,Physical Support,Adults,Physical Support 18 - 64,Transfer Payments,Personal Budget - Direct Payments - Domiciliary Care,REDACTED PERSONAL DATA,SP11,29/06/2022,"4,756.08"
28342240,High Needs Block,DSG Skills and Attainment,SEN Resourcing Assessment Panel,3rd Party Payments,Top up funding - Academies and Free Schools Pre 16,DORCAN ACADEMY,SN3 ,15/06/2022,"9,831.69"
30068235,Homelessness and Travellers,Housing Services,Leased Private Managed Accommodation,Transfer Payments,Payment of Costs,REDACTED PERSONAL DATA,SN6 ,24/06/2022,675
26749233,Highways Inspections & Maintenance,Highway Operations and Car Parking,Highway Maintenance,Supplies and Services,Materials,DRAIN DEPOT,SN2 ,08/06/2022,39.29
26749233,Highways Inspections & Maintenance,Highway Operations and Car Parking,Highway Maintenance,Supplies and Services,Materials,DRAIN DEPOT,SN2 ,08/06/2022,75.78
26749233,Highways Inspections & Maintenance,Highway Operations and Car Parking,Highway Maintenance,Supplies and Services,Materials,DRAIN DEPOT,SN2 ,08/06/2022,147.5
26749233,Highways Inspections & Maintenance,Highway Operations and Car Parking,Highway Maintenance,Supplies and Services,Materials,DRAIN DEPOT,SN2 ,08/06/2022,3.76
26749233,Highways Inspections & Maintenance,Highway Operations and Car Parking,Highway Maintenance,Supplies and Services,Materials,DRAIN DEPOT,SN2 ,08/06/2022,51.6
26749233,Highways Inspections & Maintenance,Highway Operations and Car Parking,Highway Maintenance,Supplies and Services,Materials,DRAIN DEPOT,SN2 ,08/06/2022,25.8
26749233,Highways Inspections & Maintenance,Highway Operations and Car Parking,Highway Maintenance,Supplies and Services,Materials,DRAIN DEPOT,SN2 ,08/06/2022,90.6
Corporate Card Transaction,ASC Finance Services Teams,ASC Finance Services,ASC Money Management Team,Supplies and Services,Services,Dreams Ltd,,16/06/2022,"1,423.00"
28869340,Physical Support,Adults,Physical Support 18 - 64,3rd Party Payments,Nursing Care,DRUMMOND GRANGE NURSING HOME,EH18,20/06/2022,"6,603.00"
28415233,Learning Disabilities,Adults,Learning Disability 26 - 64,3rd Party Payments,Supported Accommodation Scheme,REDACTED PERSONAL DATA,SN25,22/06/2022,"2,573.70"
Corporate Card Transaction,Lydiard Park,Streetsmart,Lydiard : Hotel Operations,Supplies and Services,Equipment,Dunelm (Soft Furnishin,,15/06/2022,525
Corporate Card Transaction,ASC Finance Services Teams,ASC Finance Services,ASC Money Management Team,Supplies and Services,Services,Dunelm Softfurnishings,,01/06/2022,"1,811.55"
28041233,NEV,"Economy, Growth and Place",Gablecross Junction,Capital,Consultants,DYER & BUTLER LTD,SO16,15/06/2022,"252,369.23"
28869337,Learning Disabilities,Adults,Learning Disability 26 - 64,3rd Party Payments,Supported Living,DYNAMIC SUPPORT LTD,SN25,20/06/2022,"3,765.12"
27621234,Physical Support,Adults,Physical Support 65 and over,3rd Party Payments,Personal Budget - Domiciliary care,DYNAMIC SUPPORT LTD,SN25,13/06/2022,"15,229.44"
28869337,Learning Disabilities,Adults,Learning Disability 26 - 64,3rd Party Payments,Supported Living,DYNAMIC SUPPORT LTD,SN25,20/06/2022,"6,464.64"
28869337,Learning Disabilities,Adults,Learning Disability 26 - 64,3rd Party Payments,Supported Living,DYNAMIC SUPPORT LTD,SN25,20/06/2022,"13,019.76"
27621233,Learning Disabilities,Adults,Learning Disability 26 - 64,3rd Party Payments,Personal Budget - Domiciliary care,DYNAMIC SUPPORT LTD,SN25,13/06/2022,586.08
27620236,Learning Disabilities,Adults,Learning Disability 26 - 64,3rd Party Payments,Personal Budget - Domiciliary care,DYNAMIC SUPPORT LTD,SN25,13/06/2022,632.96
28869337,Learning Disabilities,Adults,Learning Disability 26 - 64,3rd Party Payments,Supported Living,DYNAMIC SUPPORT LTD,SN25,20/06/2022,"1,342.76"
28869337,Learning Disabilities,Adults,Learning Disability 26 - 64,3rd Party Payments,Supported Living,DYNAMIC SUPPORT LTD,SN25,20/06/2022,122.64
28869337,Learning Disabilities,Adults,Learning Disability 26 - 64,3rd Party Payments,Supported Living,DYNAMIC SUPPORT LTD,SN25,20/06/2022,"2,060.16"
28869337,Learning Disabilities,Adults,Learning Disability 26 - 64,3rd Party Payments,Supported Living,DYNAMIC SUPPORT LTD,SN25,20/06/2022,"2,486.40"
28869337,Learning Disabilities,Adults,Learning Disability 26 - 64,3rd Party Payments,Supported Living,DYNAMIC SUPPORT LTD,SN25,20/06/2022,142.08
28869337,Learning Disabilities,Adults,Learning Disability 26 - 64,3rd Party Payments,Supported Living,DYNAMIC SUPPORT LTD,SN25,20/06/2022,"4,475.52"
28869337,Mental Health,Adults,Mental Health 18-64,3rd Party Payments,Supported Living,DYNAMIC SUPPORT LTD,SN25,20/06/2022,"1,491.84"
28869337,Mental Health,Adults,Mental Health 18-64,3rd Party Payments,Supported Living,DYNAMIC SUPPORT LTD,SN25,20/06/2022,"1,342.76"
28869337,Learning Disabilities,Adults,Learning Disability 26 - 64,3rd Party Payments,Supported Living,DYNAMIC SUPPORT LTD,SN25,20/06/2022,-182.67
28869337,Learning Disabilities,Adults,Learning Disability 26 - 64,3rd Party Payments,Supported Living,DYNAMIC SUPPORT LTD,SN25,20/06/2022,-91.34
28869337,Learning Disabilities,Adults,Learning Disability 26 - 64,3rd Party Payments,Supported Living,DYNAMIC SUPPORT LTD,SN25,20/06/2022,-30.45
28869337,Learning Disabilities,Adults,Learning Disability 26 - 64,3rd Party Payments,Supported Living,DYNAMIC SUPPORT LTD,SN25,20/06/2022,"-5,107.14"
27622233,Physical Support,Adults,Physical Support 65 and over,3rd Party Payments,Personal Budget - Domiciliary care,DYNAMIC SUPPORT LTD,SN25,13/06/2022,"7,614.72"
28869337,Mental Health,Adults,Mental Health 18-64,3rd Party Payments,Supported Living,DYNAMIC SUPPORT LTD,SN25,20/06/2022,"2,592.96"
28869337,Mental Health,Adults,Mental Health 18-64,3rd Party Payments,Supported Living,DYNAMIC SUPPORT LTD,SN25,20/06/2022,"2,273.28"
28869337,Learning Disabilities,Adults,Learning Disability 26 - 64,Income,Client Contribution - Supported Living,DYNAMIC SUPPORT LTD,SN25,20/06/2022,-18.12
28869337,Learning Disabilities,Adults,Learning Disability 26 - 64,Income,Client Contribution - Supported Living,DYNAMIC SUPPORT LTD,SN25,20/06/2022,-112
28869337,Learning Disabilities,Adults,Learning Disability 26 - 64,3rd Party Payments,Supported Living,DYNAMIC SUPPORT LTD,SN25,20/06/2022,"1,847.04"
28869337,Learning Disabilities,Adults,Learning Disability 26 - 64,3rd Party Payments,Supported Living,DYNAMIC SUPPORT LTD,SN25,20/06/2022,"2,770.56"
28869337,Learning Disabilities,Adults,Learning Disability 26 - 64,3rd Party Payments,Supported Living,DYNAMIC SUPPORT LTD,SN25,20/06/2022,"7,459.20"
28869337,Learning Disabilities,Adults,Learning Disability 26 - 64,3rd Party Payments,Supported Living,DYNAMIC SUPPORT LTD,SN25,20/06/2022,"4,984.56"
29849238,Learning Disabilities,Adults,Learning Disability 26 - 64,3rd Party Payments,Personal Budget - Domiciliary care,DYNAMIC SUPPORT LTD,SN25,22/06/2022,632.96
28869337,Learning Disabilities,Adults,Learning Disability 65 and over,3rd Party Payments,Supported Living,DYNAMIC SUPPORT LTD,SN25,20/06/2022,"2,685.48"
28869337,Learning Disabilities,Adults,Learning Disability 26 - 64,Income,Client Contribution - Supported Living,DYNAMIC SUPPORT LTD,SN25,20/06/2022,-440.6
28869337,Learning Disabilities,Adults,Learning Disability 26 - 64,3rd Party Payments,Supported Living,DYNAMIC SUPPORT LTD,SN25,20/06/2022,"1,390.40"
28869337,Learning Disabilities,Adults,Learning Disability 26 - 64,3rd Party Payments,Supported Living,DYNAMIC SUPPORT LTD,SN25,20/06/2022,-60.89
28869337,Physical Support,Adults,Physical Support 65 and over,3rd Party Payments,Supported Living,DYNAMIC SUPPORT LTD,SN25,20/06/2022,"7,459.20"
28869337,Learning Disabilities,Adults,Learning Disability 26 - 64,3rd Party Payments,Supported Living,DYNAMIC SUPPORT LTD,SN25,20/06/2022,"4,688.64"
28869337,Learning Disabilities,Adults,Learning Disability 26 - 64,3rd Party Payments,Supported Living,DYNAMIC SUPPORT LTD,SN25,20/06/2022,"-8,511.90"
28869337,Learning Disabilities,Adults,Learning Disability 26 - 64,3rd Party Payments,Supported Living,DYNAMIC SUPPORT LTD,SN25,20/06/2022,"6,393.60"
28869337,Learning Disabilities,Adults,Learning Disability 65 and over,3rd Party Payments,Supported Living,DYNAMIC SUPPORT LTD,SN25,20/06/2022,"3,480.96"
28869337,Learning Disabilities,Adults,Learning Disability 26 - 64,Income,Client Contribution - Personal Budget � Fairer Charging,DYNAMIC SUPPORT LTD,SN25,20/06/2022,-135.6
28869337,Learning Disabilities,Adults,Learning Disability 26 - 64,3rd Party Payments,Supported Living,DYNAMIC SUPPORT LTD,SN25,20/06/2022,"1,562.88"
28869337,Learning Disabilities,Adults,Learning Disability 26 - 64,3rd Party Payments,Supported Living,DYNAMIC SUPPORT LTD,SN25,20/06/2022,"1,072.00"
28869337,Learning Disabilities,Adults,Learning Disability 26 - 64,3rd Party Payments,Supported Living,DYNAMIC SUPPORT LTD,SN25,20/06/2022,"2,685.48"
28869337,Learning Disabilities,Adults,Learning Disability 26 - 64,3rd Party Payments,Supported Living,DYNAMIC SUPPORT LTD,SN25,20/06/2022,"6,606.72"
28869337,Learning Disabilities,Adults,Learning Disability 26 - 64,3rd Party Payments,Supported Living,DYNAMIC SUPPORT LTD,SN25,20/06/2022,"7,175.04"
28869337,Learning Disabilities,Adults,Learning Disability 26 - 64,3rd Party Payments,Supported Living,DYNAMIC SUPPORT LTD,SN25,20/06/2022,426.24
29850233,Learning Disabilities,Adults,Learning Disability 26 - 64,3rd Party Payments,Personal Budget - Domiciliary care,DYNAMIC SUPPORT LTD,SN25,22/06/2022,586.08
28869337,Physical Support,Adults,Physical Support 65 and over,3rd Party Payments,Supported Living,DYNAMIC SUPPORT LTD,SN25,20/06/2022,"4,475.52"
28869337,Learning Disabilities,Adults,Learning Disability 26 - 64,Income,Client Contribution - Supported Living,DYNAMIC SUPPORT LTD,SN25,20/06/2022,-258.12
28869337,Learning Disabilities,Adults,Learning Disability 26 - 64,3rd Party Payments,Supported Living,DYNAMIC SUPPORT LTD,SN25,20/06/2022,-150.21
28869337,Learning Disabilities,Adults,Learning Disability 26 - 64,3rd Party Payments,Supported Living,DYNAMIC SUPPORT LTD,SN25,20/06/2022,"2,244.00"
28869337,Learning Disabilities,Adults,Learning Disability 26 - 64,3rd Party Payments,Supported Living,DYNAMIC SUPPORT LTD,SN25,20/06/2022,"2,592.96"
28869337,Learning Disabilities,Adults,Learning Disability 26 - 64,3rd Party Payments,Supported Living,DYNAMIC SUPPORT LTD,SN25,20/06/2022,671.36
28869337,Learning Disabilities,Adults,Learning Disability 26 - 64,3rd Party Payments,Supported Living,DYNAMIC SUPPORT LTD,SN25,20/06/2022,"2,344.32"
28869337,Learning Disabilities,Adults,Learning Disability 26 - 64,3rd Party Payments,Supported Living,DYNAMIC SUPPORT LTD,SN25,20/06/2022,532.8
28869337,Learning Disabilities,Adults,Learning Disability 26 - 64,3rd Party Payments,Supported Living,DYNAMIC SUPPORT LTD,SN25,20/06/2022,"3,132.76"
28510235,Town Centre,"Economy, Growth and Place","No 7, 9 & 11 Carriage works @ Railway Village",Capital,Contractor Payments,E W BEARD LTD,SN3 ,15/06/2022,"154,181.91"
27186233,Property & Assets,Property & Assets,Health Hydro Improvements,Capital,Contractor Payments,E W BEARD LTD,SN3 ,10/06/2022,"3,231.36"
27132233,Property & Assets,Property & Assets,Barnfield Battery,Capital,Contractor Payments,E.ON UK HEAT LTD,CV4 ,10/06/2022,"52,999.65"
27124233,Property & Assets,Property & Assets,Barnfield Battery,Capital,Contractor Payments,E.ON UK HEAT LTD,CV4 ,10/06/2022,"52,999.65"
30253233,Environmental & Regulatory,Highways & Transport,Shaw Farm Landfill Site,Supplies and Services,Testing / Inspection,EARTH DIRECT LTD,WV10,24/06/2022,752.87
26422233,Environmental & Regulatory,Highways & Transport,Shaw Farm Landfill Site,Supplies and Services,Testing / Inspection,EARTH DIRECT LTD,WV10,08/06/2022,"2,650.00"
26438234,Environmental & Regulatory,Highways & Transport,Shaw Farm Landfill Site,Supplies and Services,Testing / Inspection,EARTH DIRECT LTD,WV10,08/06/2022,"2,867.52"
26454233,Environmental & Regulatory,Highways & Transport,Shaw Farm Landfill Site,Supplies and Services,Testing / Inspection,EARTH DIRECT LTD,WV10,08/06/2022,735.95
26458233,Environmental & Regulatory,Highways & Transport,Shaw Farm Landfill Site,Supplies and Services,Testing / Inspection,EARTH DIRECT LTD,WV10,08/06/2022,"3,476.84"
30410233,Environmental & Regulatory,Highways & Transport,Shaw Farm Landfill Site,Supplies and Services,Testing / Inspection,EARTH DIRECT LTD,WV10,27/06/2022,"2,910.86"
25388240,DSG Other Funding,DSG Skills and Attainment,DFE Additional Grants,Supplies and Services,Payments to Educational Bodies,EAST WICHEL COMMUNITY PRIMARY SCHOOL,SN1 ,01/06/2022,705
28330237,High Needs Block,DSG Skills and Attainment,SEN Resourcing Assessment Panel,3rd Party Payments,Top up funding - Maintained providers Pre 16,EAST WICHEL COMMUNITY PRIMARY SCHOOL,SN1 ,15/06/2022,"4,984.17"
25123236,Schools - Primary,DSG Skills and Attainment,Primary School Budgets,Supplies and Services,Payments to Educational Bodies,EAST WICHEL COMMUNITY PRIMARY SCHOOL,SN1 ,01/06/2022,"5,062.50"
30340245,DSG Other Funding,DSG Skills and Attainment,DFE Additional Grants,Supplies and Services,Payments to Educational Bodies,EAST WICHEL COMMUNITY PRIMARY SCHOOL,SN1 ,27/06/2022,"19,358.00"
25120244,Schools - Primary,DSG Skills and Attainment,Primary School Budgets,Supplies and Services,Payments to Educational Bodies,EAST WICHEL COMMUNITY PRIMARY SCHOOL,SN1 ,01/06/2022,"8,042.00"
28513239,DSG Other Funding,DSG Skills and Attainment,DFE Additional Grants,3rd Party Payments,Payment of Pupil Premium to school,EAST WICHEL COMMUNITY PRIMARY SCHOOL,SN1 ,17/06/2022,"7,076.00"
25389240,DSG Other Funding,DSG Skills and Attainment,DFE Additional Grants,Supplies and Services,Payments to Educational Bodies,EAST WICHEL COMMUNITY PRIMARY SCHOOL,SN1 ,01/06/2022,"1,993.00"
28508240,Schools - Primary,DSG Skills and Attainment,Primary School Budgets,3rd Party Payments,Mainstream Delegated Funding,EAST WICHEL COMMUNITY PRIMARY SCHOOL,SN1 ,17/06/2022,"133,267.00"
25121244,Schools - Primary,DSG Skills and Attainment,Primary School Budgets,Supplies and Services,Payments to Educational Bodies,EAST WICHEL COMMUNITY PRIMARY SCHOOL,SN1 ,01/06/2022,"2,211.25"
27482236,Education,Inclusion and Achievement,Afghan Resettlement (Education) Grant Funding 2021,Supplies and Services,Payments to Educational Bodies,EAST WICHEL COMMUNITY PRIMARY SCHOOL,SN1 ,15/06/2022,"3,194.00"
28869300,Learning Disabilities,Adults,Learning Disability 26 - 64,Income,Client Contribution - Residential,EASTERBROOK FARM LTD,EX20,20/06/2022,-347
28869300,Learning Disabilities,Adults,Learning Disability 26 - 64,3rd Party Payments,Residential Care,EASTERBROOK FARM LTD,EX20,20/06/2022,"4,494.52"
29969233,Travel,Highways & Transport,Concessionary Travel,3rd Party Payments,Concessionary Travel Subsidy,EASY RIDER PRIVATE HIRE,SN1 ,22/06/2022,533.54
26522233,DSG Other Funding,DSG Skills and Attainment,LAC pupil premium,3rd Party Payments,Education / Training,EB EDUCATION SERVICES LTD,SK4 ,08/06/2022,"15,555.00"
